Workbook

Sheet TARIFAS HISTORICO POLIDUCTO (hidden)
AA1: Año 2009 | AD1: Año 2010 | AG1: Año 2011 | AJ1: Año 2012 | AN1: Año 2013 | AR1: Año 2014 | AU1: Año 2015 | AX1: Año 2016
A2: TABLA DE TARIFAS DE TRANSPORTE POLIDUCTOS | V2: IPC proyectado 2007 BanRep | W2: 0.04 | Y2: IPC proyectado 2008 BanRep | Z2: 0.04 | AA2: IPC proyectado BREPUBLICA | AC2: 0.05 | AD2: IPC proyectado BREPUBLICA | AF2: 0.03 | AG2: IPC proyectado BREPUBLICA | AI2: 0.03 | AJ2: IPC proyectado BREPUBLICA | AL2: 0.03 | AN2: IPC proyectado BREPUBLICA | AP2: 0.03 | AR2: IPC proyectado BREPUBLICA | AT2: 0.03 | AU2: IPC proyectado BREPUBLICA | AW2: 0.03 | AX2: IPC proyectado BREPUBLICA | AZ2: 0.03
C3: Resolución No. 180088 Enero 30 de 2003 | F3: Resolución No. 18 1701 Diciembre 22 de 2003 | I3: Año 2004 | L3: Año 2005 | O3: Año 2006 | R3: Año 2006 A PARTIR DE MARZO SE MODIFICÓ TARIFA EN B/BERMEJA Y LIZAMA | U3: Año 2007 A partir de Febrero 1 | X3: Año 2008 A partir de Febrero 1
C4: Tarifa Tramo Febrero/03 Gl | D4: Sitio de Entrega/Gl | E4: Valor barril | F4: Tarifa Tramo Diciembre 22/03 Gl | G4: Sitio de Entrega/Gl | H4: Valor barril | I4: Tarifa Tramo Febrero/04 Gl | J4: Sitio de Entrega/Gl | K4: Valor barril | L4: Tarifa Tramo Febrero/05 Gl | M4: Sitio de Entrega/Gl | N4: Valor barril | O4: Tarifa Tramo Febrero/05 Gl | P4: Sitio de Entrega/Gl | Q4: Valor barril | R4: Tarifa Tramo Febrero/05 Gl | S4: Sitio de Entrega/Gl | T4: Valor barril | U4: Tarifa Tramo Febrero/07 Gl | V4: Sitio de Entrega/Gl | W4: Valor barril | X4: Tarifa Tramo Febrero/07 Gl | Y4: Sitio de Entrega/Gl | Z4: Valor barril | AA4: Tarifa Tramo Febrero/07 Gl | AB4: Sitio de Entrega/Gl | AC4: Valor barril | AD4: Tarifa Tramo Febrero/10 Gl | AE4: Sitio de Entrega/Gl | AF4: Valor barril | AG4: Tarifa Tramo Febrero/11 Gl | AH4: Sitio de Entrega/Gl | AI4: Valor barril | AJ4: Tarifa Tramo Febrero/12 Gl | AK4: Sitio de Entrega/Gl | AL4: Valor barril | AN4: Tarifa Tramo Febrero/13 Gl | AO4: Sitio de Entrega/Gl | AP4: Valor barril | AR4: Tarifa Tramo Febrero/13 Gl | AS4: Sitio de Entrega/Gl | AT4: Valor barril | AU4: Tarifa Tramo Febrero/13 Gl | AV4: Sitio de Entrega/Gl | AW4: Valor barril | AX4: Tarifa Tramo Febrero/13 Gl | AY4: Sitio de Entrega/Gl | AZ4: Valor barril
B5: CARTAGENA / MUELLE | C5: 12 | D5: 12 | E5: 504 | F5: 34 | G5: 34 | H5: 1428 | I5: 35.87 | J5: 35.87 | K5: 1506.54 | L5: 37.6635 | M5: 37.6635 | N5: 1581.867 | O5: 39.3583575 | P5: 39.3583575 | Q5: 1653.051015 | R5: 39.3583575 | S5: 39.3583575 | T5: 1653.051015 | U5: 40.9326918 | V5: 40.9326918 | W5: 1719.173056 | AM5: CARTAGENA / MUELLE | AQ5: CARTAGENA / MUELLE
A6: 420 | B6: CARTAGENA / Mamonal | C6: 15 | D6: 15 | E6: 630 | F6: 34 | G6: 34 | H6: 1428 | I6: 35.87 | J6: 35.87 | K6: 1506.54 | L6: 37.6635 | M6: 37.6635 | N6: 1581.867 | O6: 39.3583575 | P6: 39.3583575 | Q6: 1653.051015 | R6: 39.3583575 | S6: 39.3583575 | T6: 1653.051015 | U6: 40.9326918 | V6: 40.9326918 | W6: 1719.173056 | AM6: CARTAGENA / Mamonal | AQ6: CARTAGENA / Mamonal
B7: CARTAGENA / MUELLE 1 sept 2007 | U7: 56.7 | V7: 56.7 | W7: 2381.4 | X7: 58.968 | Y7: 58.968 | Z7: 2476.656 | AA7: 61.9164 | AB7: 61.9164 | AC7: 2600.4888 | AD7: 63.78 | AE7: 63.78 | AF7: =AE7*42 -> 2678.76 | AG7: 65.6934 | AH7: 65.6934 | AI7: 2759.1228 | AJ7: 67.664202 | AK7: 67.664202 | AL7: 2841.896484 | AM7: CARTAGENA / MUELLE 1 sept 2007 | AN7: 69.69412806 | AO7: 69.69412806 | AP7: 2927.153379 | AQ7: CARTAGENA / MUELLE 1 sept 2007 | AR7: =AN7*(1+$AT$2) -> 71.7849519 | AS7: =AO7*(1+$AT$2) -> 71.7849519 | AT7: 3014.96798 | AU7: =AR7*(1+$AW$2) -> 73.93850046 | AV7: =AS7*(1+$AW$2) -> 73.93850046 | AW7: =AT7*(1+$AW$2) -> 3105.417019 | AX7: =AU7*(1+$AZ$2) -> 76.15665547 | AY7: =AV7*(1+$AZ$2) -> 76.15665547 | AZ7: =AW7*(1+$AZ$2) -> 3198.57953
B8: CARTAGENA / Mamonal 1 sept 2007 | U8: 56.7 | V8: 56.7 | W8: 2381.4 | X8: 58.968 | Y8: 58.968 | Z8: 2476.656 | AA8: 61.9164 | AB8: 61.9164 | AC8: 2600.4888 | AD8: 63.78 | AE8: 63.78 | AF8: =AE8*42 -> 2678.76 | AG8: 65.6934 | AH8: 65.6934 | AI8: 2759.1228 | AJ8: 67.664202 | AK8: 67.664202 | AL8: 2841.896484 | AM8: CARTAGENA / Mamonal 1 sept 2007 | AN8: 69.69412806 | AO8: 69.69412806 | AP8: 2927.153379 | AQ8: CARTAGENA / Mamonal 1 sept 2007 | AR8: =AN8*(1+$AT$2) -> 71.7849519 | AS8: =AO8*(1+$AT$2) -> 71.7849519 | AT8: =AP8*(1+$AT$2) -> 3014.96798 | AU8: =AR8*(1+$AW$2) -> 73.93850046 | AV8: =AS8*(1+$AW$2) -> 73.93850046 | AW8: =AT8*(1+$AW$2) -> 3105.417019 | AX8: =AU8*(1+$AZ$2) -> 76.15665547 | AY8: =AV8*(1+$AZ$2) -> 76.15665547 | AZ8: =AW8*(1+$AZ$2) -> 3198.57953
A9: 422 | B9: GALAPA+BARANOA | C9: 50 | D9: 50 | E9: 2100 | F9: 69 | G9: 69 | H9: 2898 | I9: 72.795 | J9: 72.8 | K9: 3057.6 | L9: 76.43475 | M9: 76.43475 | N9: 3210.2595 | O9: 79.87431375 | P9: 79.87431375 | Q9: 3354.721178 | R9: 79.87431375 | S9: 79.87431375 | T9: 3354.721178 | U9: 83.0692863 | V9: 83.0692863 | W9: 3488.910025 | X9: 86.39205775 | Y9: 86.39205775 | Z9: 3628.466426 | AA9: 90.71166064 | AB9: 90.71166064 | AC9: 3809.889747 | AD9: =93.43+0.01 -> 93.44 | AE9: =93.43+0.01 -> 93.44 | AF9: =AE9*42 -> 3924.48 | AG9: 96.2432 | AH9: 96.2432 | AI9: 4042.2144 | AJ9: 99.130496 | AK9: 99.130496 | AL9: 4163.480832 | AM9: GALAPA+BARANOA | AN9: 102.1044109 | AO9: 102.1044109 | AP9: 4288.385257 | AQ9: GALAPA+BARANOA | AR9: 105.1675432 | AS9: 105.1675432 | AT9: 4417.036815 | AU9: 108.3225695 | AV9: 108.3225695 | AW9: 4549.547919 | AX9: 111.5722466 | AY9: 111.5722466 | AZ9: 4686.034357
B10: POZOS - GALAN | C10: 42 | D10: 42 | E10: 1764 | F10: 42 | G10: 42 | H10: 1764 | I10: 44.31 | J10: 44.31 | K10: 1861.02 | L10: 46.5255 | M10: 46.5255 | N10: 1954.071 | O10: 48.6191475 | P10: 48.6191475 | Q10: 2042.004195 | R10: 48.6191475 | S10: 48.6191475 | T10: 2042.004195 | U10: 50.5639134 | V10: 50.5639134 | W10: 2123.684363 | X10: 52.57646994 | Y10: 52.57646994 | Z10: 2208.211737 | AA10: 55.20529343 | AB10: 55.20529343 | AC10: 2318.622324 | AD10: 56.87 | AE10: 56.87 | AF10: 2388.54 | AG10: 58.5761 | AH10: 58.5761 | AI10: 2460.1962 | AJ10: 60.333383 | AK10: 60.333383 | AL10: 2534.002086 | AM10: POZOS - GALAN | AN10: 62.14338449 | AO10: 62.14338449 | AP10: 2610.022149 | AQ10: POZOS - GALAN | AR10: 64.00768602 | AS10: 64.00768602 | AT10: 2688.322813 | AU10: 65.92791661 | AV10: 65.92791661 | AW10: 2768.972497 | AX10: 67.9057541 | AY10: 67.9057541 | AZ10: 2852.041672
B11: COVEÑAS -GALAN | C11: 42 | D11: 42 | E11: 1764 | F11: 42 | G11: 42 | H11: 1764 | I11: 44.31 | J11: 44.31 | K11: 1861.02 | L11: 46.5255 | M11: 46.5255 | N11: 1954.071 | O11: 48.6191475 | P11: 48.6191475 | Q11: 2042.004195 | R11: 48.6191475 | S11: 48.6191475 | T11: 2042.004195 | U11: 50.5639134 | V11: 50.5639134 | W11: 2123.684363 | X11: 52.57646994 | Y11: 52.57646994 | Z11: 2208.211737 | AA11: 55.20529343 | AB11: 55.20529343 | AC11: 2318.622324 | AD11: 56.87 | AE11: 56.87 | AF11: 2388.54 | AG11: 58.5761 | AH11: 58.5761 | AI11: 2460.1962 | AJ11: 60.333383 | AK11: 60.333383 | AL11: 2534.002086 | AM11: COVEÑAS -GALAN | AN11: 62.14338449 | AO11: 62.14338449 | AP11: 2610.022149 | AQ11: COVEÑAS -GALAN | AR11: 64.00768602 | AS11: 64.00768602 | AT11: 2688.322813 | AU11: 65.92791661 | AV11: 65.92791661 | AW11: 2768.972497 | AX11: 67.9057541 | AY11: 67.9057541 | AZ11: 2852.041672
A12: 210 | B12: BARRANCABERMEJA/Galán | C12: 15 | D12: 15 | E12: 630 | F12: 35.32 | G12: 35.32 | H12: 1483.44 | I12: 37.2626 | J12: 37.26 | K12: 1564.92 | L12: 39.12573 | M12: 39.12573 | N12: 1643.28066 | O12: 40.88638785 | P12: 40.88638785 | Q12: 1717.22829 | R12: 63.55 | S12: 63.55 | T12: 2669.1 | U12: 66.092 | V12: 66.092 | W12: 2775.864 | X12: 68.72568 | Y12: 68.72568 | Z12: 2886.47856 | AA12: 72.161964 | AB12: 72.161964 | AC12: 3030.802488 | AD12: 74.32 | AE12: 74.32 | AF12: 3121.44 | AG12: 76.5496 | AH12: 76.5496 | AI12: 3215.0832 | AJ12: 78.846088 | AK12: 78.846088 | AL12: 3311.535696 | AM12: BARRANCABERMEJA/Galán | AN12: 81.21147064 | AO12: 81.21147064 | AP12: 3410.881767 | AQ12: BARRANCABERMEJA/Galán | AR12: 83.64781476 | AS12: 83.64781476 | AT12: 3513.20822 | AU12: 86.1572492 | AV12: 86.1572492 | AW12: 3618.604466 | AX12: 88.74196668 | AY12: 88.74196668 | AZ12: 3727.1626
A13: 212 | B13: B/MANGA | C13: 75 | D13: 75 | E13: 3150 | F13: 94 | G13: 94 | H13: 3948 | I13: 99.17 | J13: 99.17 | K13: 4165.14 | L13: 104.1285 | M13: 104.1285 | N13: 4373.397 | O13: 108.8142825 | P13: 108.8142825 | Q13: 4570.199865 | R13: 108.8142825 | S13: 108.8142825 | T13: 4570.199865 | U13: 113.1668538 | V13: 113.1668538 | W13: 4753.00786 | X13: 117.703528 | Y13: 117.703528 | Z13: 4943.548174 | AA13: 123.5887043 | AB13: 123.5887043 | AC13: 5190.725583 | AD13: 127.3 | AE13: 127.3 | AF13: 5346.6 | AG13: 131.119 | AH13: 131.119 | AI13: 5506.998 | AJ13: 135.05257 | AK13: 135.05257 | AL13: 5672.20794 | AM13: B/MANGA | AN13: 139.1041471 | AO13: 139.1041471 | AP13: 5842.374178 | AQ13: B/MANGA | AR13: 143.2772715 | AS13: 143.2772715 | AT13: 6017.645404 | AU13: =AR13*(1+$AW$2) -> 147.5755897 | AV13: =AS13*(1+$AW$2) -> 147.5755897 | AW13: 6198.174766 | AX13: 152.0028573 | AY13: 152.0028573 | AZ13: 6384.120009
A14: 214 | B14: LIZAMA | C14: 31.70103093 | D14: 31.7 | E14: 1331.36 | F14: 39.73195876 | G14: 39.73195876 | H14: 1668.742268 | I14: 41.91721649 | J14: 41.92 | K14: 1760.64 | L14: 44.01307732 | M14: 44.01307732 | N14: 1848.549247 | O14: 45.9936658 | P14: 45.9936658 | Q14: 1931.733964 | R14: 81.04 | S14: 81.04 | T14: 3403.68 | U14: 84.2816 | V14: 84.2816 | W14: 3539.8272 | X14: 87.652864 | Y14: 87.652864 | Z14: 3681.420288 | AA14: 92.0355072 | AB14: 92.0355072 | AC14: 3865.491302 | AD14: 94.8 | AE14: 94.8 | AF14: 3981.6 | AG14: 97.644 | AH14: 97.644 | AI14: 4101.048 | AJ14: 100.57332 | AK14: 100.57332 | AL14: 4224.07944 | AM14: LIZAMA | AN14: 103.5905196 | AO14: 103.5905196 | AP14: 4350.801823 | AQ14: LIZAMA | AR14: 106.6982352 | AS14: 106.6982352 | AT14: 4481.325878 | AU14: 109.8991822 | AV14: 109.8991822 | AW14: 4615.765654 | AX14: 113.1961577 | AY14: 113.1961577 | AZ14: 4754.238624
A15: 210 | B15: BARRANCABERMEJA/Galán | C15: 15 | D15: 15 | E15: 630 | F15: 35.32 | G15: 35.32 | H15: 1483.44 | I15: 37.2626 | J15: 37.26 | K15: 1564.92 | L15: 39.12573 | M15: 39.12573 | N15: 1643.28066 | O15: 40.88638785 | P15: 40.88638785 | Q15: 1717.22829 | R15: 63.55 | S15: 63.55 | T15: 2669.1 | U15: 66.092 | V15: 66.092 | W15: 2775.864 | X15: 68.72568 | Y15: 68.72568 | Z15: 2886.47856 | AA15: 72.161964 | AB15: 72.161964 | AC15: 3030.802488 | AD15: 74.32 | AE15: 74.32 | AF15: 3121.44 | AG15: 76.5496 | AH15: 76.5496 | AI15: 3215.0832 | AJ15: 78.846088 | AK15: 78.846088 | AL15: 3311.535696 | AM15: RIO SOGAMOSO | AN15: 0.45629 | AO15: 104.0468096 | AP15: 4369.966003 | AQ15: RIO SOGAMOSO | AR15: 0.4699787 | AS15: 107.1682139 | AT15: 4501.064983 | AU15: 0.484078061 | AV15: 110.3832603 | AW15: 4636.096933 | AX15: 0.4986004028 | AY15: 113.6947581 | AZ15: 4775.179841
A16: 260 | B16: SEBASTOPOL | C16: 100 | D16: 100 | E16: 4200 | F16: 106.32 | G16: 106.32 | H16: 4465.44 | I16: 112.1676 | J16: 112.1676 | K16: 4711.0392 | L16: 117.77598 | M16: 117.77598 | N16: 4946.59116 | O16: 123.0758991 | P16: 123.0758991 | Q16: 5169.187762 | R16: 123.0758991 | S16: 123.0758991 | T16: 5169.187762 | U16: 127.9989351 | V16: 127.9989351 | W16: 5375.955273 | X16: 133.1238925 | Y16: 133.1238925 | Z16: 5591.203484 | AA16: 139.7800871 | AB16: 139.7800871 | AC16: 5870.763658 | AD16: 143.97 | AE16: 143.97 | AF16: 6046.74 | AG16: 148.2891 | AH16: 148.2891 | AI16: 6228.1422 | AJ16: 152.737773 | AK16: 152.737773 | AL16: 6414.986466 | AM16: BARRANCABERMEJA/Galán | AN16: 81.21147064 | AO16: 81.21147064 | AP16: 3410.881767 | AQ16: BARRANCABERMEJA/Galán | AR16: 83.64781476 | AS16: 83.64781476 | AT16: 3513.20822 | AU16: 86.1572492 | AV16: 86.1572492 | AW16: 3618.604466 | AX16: 88.74196668 | AY16: 88.74196668 | AZ16: 3727.1626
A17: 224 | B17: TOCANCIPA | C17: 106.75 | D17: 206.75 | E17: 8683.5 | F17: 129 | G17: 235.32 | H17: 9883.44 | I17: 136.095 | J17: 248.2726 | K17: 10427.4492 | L17: 142.89975 | M17: 260.67573 | N17: 10948.38066 | O17: 149.3302388 | P17: 272.4061378 | Q17: 11441.05779 | R17: 149.3302388 | S17: 272.4061378 | T17: 11441.05779 | U17: 155.3034483 | V17: 283.3023834 | W17: 11898.7001 | X17: 161.5055862 | Y17: 294.6294787 | Z17: 12374.43811 | AA17: 169.5808655 | AB17: 309.3609526 | AC17: 12993.16001 | AD17: 174.67 | AE17: 318.64 | AF17: 13382.88 | AG17: 179.9101 | AH17: 328.1992 | AI17: 13784.3664 | AJ17: 185.307403 | AK17: 338.045176 | AL17: 14197.89739 | AM17: SEBASTOPOL | AN17: 157.3199062 | AO17: 157.3199062 | AP17: 6607.43606 | AQ17: SEBASTOPOL | AR17: 162.0395034 | AS17: 162.0395034 | AT17: 6805.659142 | AU17: 166.9006885 | AV17: 166.9006885 | AW17: 7009.828916 | AX17: 171.9077091 | AY17: 171.9077091 | AZ17: 7220.123784
A18: 210 | B18: BARRANCABERMEJA/Galán | C18: 15 | D18: 15 | E18: 630 | F18: 35.32 | G18: 35.32 | H18: 1483.44 | I18: 37.2626 | J18: 37.26 | K18: 1564.92 | L18: 39.12573 | M18: 39.12573 | N18: 1643.28066 | O18: 40.88638785 | P18: 40.88638785 | Q18: 1717.22829 | R18: 63.55 | S18: 63.55 | T18: 2669.1 | U18: 66.092 | V18: 66.092 | W18: 2775.864 | X18: 68.72568 | Y18: 68.72568 | Z18: 2886.47856 | AA18: 72.161964 | AB18: 72.161964 | AC18: 3030.802488 | AD18: 74.32 | AE18: 74.32 | AF18: 3121.44 | AG18: 76.5496 | AH18: 76.5496 | AI18: 3215.0832 | AJ18: 78.846088 | AK18: 78.846088 | AL18: 3311.535696 | AM18: TOCANCIPA | AN18: 190.8666251 | AO18: 348.1865313 | AP18: 14623.83431 | AQ18: TOCANCIPA | AR18: 196.5926238 | AS18: 358.6321272 | AT18: 15062.54934 | AU18: 202.4904026 | AV18: 369.391091 | AW18: 15514.42582 | AX18: 208.5651146 | AY18: 372.28 | AZ18: 15979.8586
A19: 260 | B19: SEBASTOPOL | C19: 100 | D19: 100 | E19: 4200 | F19: 106.32 | G19: 106.32 | H19: 4465.44 | I19: 112.1676 | J19: 112.1676 | K19: 4711.0392 | L19: 117.77598 | M19: 117.77598 | N19: 4946.59116 | O19: 123.0758991 | P19: 123.0758991 | Q19: 5169.187762 | R19: 123.0758991 | S19: 123.0758991 | T19: 5169.187762 | U19: 127.9989351 | V19: 127.9989351 | W19: 5375.955273 | X19: 133.1188925 | Y19: 133.1188925 | Z19: 5590.993484 | AA19: 139.7800871 | AB19: 139.7800871 | AC19: 5870.763658 | AD19: 143.97 | AE19: 143.97 | AF19: 6046.74 | AG19: 148.2891 | AH19: 148.2891 | AI19: 6228.1422 | AJ19: 152.737773 | AK19: 152.737773 | AL19: 6414.986466 | AM19: BARRANCABERMEJA/Galán | AN19: 81.21147064 | AO19: 81.21147064 | AP19: 3410.881767 | AQ19: BARRANCABERMEJA/Galán | AR19: 83.64781476 | AS19: 83.64781476 | AT19: 3513.20822 | AU19: 86.1572492 | AV19: 86.1572492 | AW19: 3618.604466 | AX19: 88.74196668 | AY19: 88.74196668 | AZ19: 3727.1626
A20: 231 | B20: PTO. NIÑO | C20: 22.08955224 | D20: 122.09 | E20: 5127.78 | F20: 22.08955224 | G20: 128.4095522 | H20: 5393.201194 | I20: 23.30447761 | J20: 135.4720776 | K20: 5689.82726 | L20: 24.46970149 | M20: 142.2456815 | N20: 5974.318623 | O20: 25.57083806 | P20: 148.6467372 | Q20: 6243.162961 | R20: 25.57083806 | S20: 148.6467372 | T20: 6243.162961 | U20: 26.59367158 | V20: 154.5926066 | W20: 6492.889479 | X20: 27.64741845 | Y20: 160.7663109 | Z20: 6752.185058 | AA20: 29.02978937 | AB20: 168.8098765 | AC20: 7090.014811 | AD20: 29.9 | AE20: 173.87 | AF20: 7302.54 | AG20: 30.797 | AH20: 179.0861 | AI20: 7521.6162 | AJ20: 31.72091 | AK20: 184.458683 | AL20: 7747.264686 | AM20: SEBASTOPOL | AN20: 157.3199062 | AO20: 157.3199062 | AP20: 6607.43606 | AQ20: SEBASTOPOL | AR20: 162.0395034 | AS20: 162.0395034 | AT20: 6805.659142 | AU20: 166.9006885 | AV20: 166.9006885 | AW20: 7009.828916 | AX20: 171.9077091 | AY20: 171.9077091 | AZ20: 7220.123784
A21: 221 | B21: SALGAR | C21: 40 | D21: 140 | E21: 5880 | F21: 40 | G21: 146.32 | H21: 6145.44 | I21: 42.2 | J21: 154.3676 | K21: 6483.4392 | L21: 44.31 | M21: 162.08598 | N21: 6807.61116 | O21: 46.30395 | P21: 169.3798491 | Q21: 7113.953662 | R21: 46.30395 | S21: 169.3798491 | T21: 7113.953662 | U21: 48.156108 | V21: 176.1550431 | W21: 7398.511809 | X21: 50.09235232 | Y21: 183.2112448 | Z21: 7694.872281 | AA21: 52.58696994 | AB21: 192.367057 | AC21: 8079.416395 | AD21: 54.17 | AE21: 198.14 | AF21: 8321.88 | AG21: 55.7851 | AH21: 204.0842 | AI21: 8571.5364 | AJ21: 57.448653 | AK21: 210.186726 | AL21: 8827.842492 | AM21: PTO. NIÑO | AN21: 32.6725373 | AO21: 189.9924435 | AP21: 7979.682627 | AQ21: PTO. NIÑO | AR21: 33.65271342 | AS21: 195.6922168 | AT21: 8219.073105 | AU21: 34.66229482 | AV21: 201.5629833 | AW21: 8465.645299 | AX21: 35.70216367 | AY21: 207.6098728 | AZ21: 8719.614657
A22: 225 | B22: MANSILLA-CONSORCIO | C22: 19.07 | D22: 159.07 | E22: 6680.94 | F22: 74 | G22: 220.32 | H22: 9253.44 | I22: 78.07 | J22: 232.4376 | K22: 9762.3792 | L22: 81.9735 | M22: 244.05948 | N22: 10250.49816 | O22: 85.6623075 | P22: 255.0421566 | Q22: 10711.77058 | R22: 85.6623075 | S22: 255.0421566 | T22: 10711.77058 | U22: 89.0887998 | V22: 265.2438429 | W22: 11140.2414 | X22: 92.64235179 | Y22: 275.8535966 | Z22: 11585.85106 | AA22: 97.28446938 | AB22: 289.6515264 | AC22: 12165.36411 | AD22: 100.2 | AE22: 298.34 | AF22: 12530.28 | AG22: 103.206 | AH22: 307.2902 | AI22: 12906.1884 | AJ22: 106.30218 | AK22: 316.488906 | AL22: 13292.53405 | AM22: SALGAR | AN22: 59.17211259 | AO22: 216.4923278 | AP22: 9092.677767 | AQ22: SALGAR | AR22: 60.94727597 | AS22: 222.9870976 | AT22: 9365.4581 | AU22: 62.77569425 | AV22: 229.6767105 | AW22: 9646.421843 | AX22: 64.65896507 | AY22: 236.5670119 | AZ22: 9935.814498
A23: 228 | B23: PUENTE ARANDA | C23: 47.68 | D23: 206.75 | E23: 8683.5 | F23: 15 | G23: 235.32 | H23: 9883.44 | I23: 15.825 | J23: 248.2726 | K23: 10427.4492 | L23: 16.61625 | M23: 260.67573 | N23: 10948.38066 | O23: 17.37228938 | P23: 272.414446 | Q23: 11441.40673 | R23: 17.36398125 | S23: 272.4061378 | T23: 11441.05779 | U23: 18.0585405 | V23: 283.3023834 | W23: 11898.7001 | X23: 18.78088212 | Y23: 294.6344787 | Z23: 12374.64811 | AA23: 19.70992623 | AB23: 309.3614526 | AC23: 12993.18101 | AD23: 20.3 | AE23: 318.64 | AF23: 13382.88 | AG23: 20.909 | AH23: 328.1992 | AI23: 13784.3664 | AJ23: 21.56627 | AK23: 338.045176 | AL23: 14197.89739 | AM23: MANSILLA-CONSORCIO | AN23: 109.4912454 | AO23: 325.9835732 | AP23: 13691.31007 | AQ23: MANSILLA-CONSORCIO | AR23: 112.7759828 | AS23: 335.7630804 | AT23: 14102.04938 | AU23: 116.1592622 | AV23: 345.8359728 | AW23: 14525.11086 | AX23: 119.6440401 | AY23: 348.02 | AZ23: 14960.86418
A24: 227 | B24: EL DORADO | C24: 0 | D24: 0 | E24: 0 | F24: 0 | G24: 0 | H24: 0 | I24: 0 | J24: 0 | K24: 0 | L24: 0 | M24: 0 | N24: 0 | O24: 0 | P24: 0 | Q24: 0 | R24: 0 | S24: 0 | T24: 0 | U24: 0 | V24: 0 | W24: 0 | X24: 0 | Y24: 0 | Z24: 0 | AA24: 0 | AB24: 0 | AC24: 0 | AD24: 0 | AE24: 0 | AF24: 0 | AG24: 0 | AH24: 0 | AI24: 0 | AJ24: 0 | AK24: 0 | AL24: 0 | AM24: PUENTE ARANDA | AN24: 22.2132581 | AO24: 348.1865313 | AP24: 14623.83431 | AQ24: PUENTE ARANDA | AR24: 22.87965584 | AS24: 358.6321272 | AT24: 15062.54934 | AU24: 23.56604552 | AV24: 369.391091 | AW24: 15514.42582 | AX24: 24.27302688 | AY24: 372.28 | AZ24: 15979.8586
A25: 210 | B25: BARRANCABERMEJA/Galán | C25: 15 | D25: 15 | E25: 630 | F25: 35.32 | G25: 35.32 | H25: 1483.44 | I25: 37.2626 | J25: 37.2626 | K25: 1565.0292 | L25: 39.12573 | M25: 39.12573 | N25: 1643.28066 | O25: 40.88638785 | P25: 40.88638785 | Q25: 1717.22829 | R25: 63.55 | S25: 63.55 | T25: 2669.1 | U25: 66.092 | V25: 66.092 | W25: 2775.864 | X25: 68.72568 | Y25: 68.72568 | Z25: 2886.47856 | AA25: 72.161964 | AB25: 72.161964 | AC25: 3030.802488 | AD25: 74.32 | AE25: 74.32 | AF25: 3121.44 | AG25: 76.5496 | AH25: 76.5496 | AI25: 3215.0832 | AJ25: 78.846088 | AK25: 78.846088 | AL25: 3311.535696 | AM25: EL DORADO | AN25: 0 | AO25: 0 | AP25: 0 | AQ25: EL DORADO | AR25: 0 | AS25: 0 | AT25: 0 | AU25: 0 | AV25: 0 | AW25: 0 | AX25: 0 | AY25: 0 | AZ25: 0
A26: 260 | B26: SEBASTOPOL | C26: 100 | D26: 100 | E26: 4200 | F26: 106.32 | G26: 106.32 | H26: 4465.44 | I26: 112.1676 | J26: 112.1676 | K26: 4711.0392 | L26: 117.77598 | M26: 117.77598 | N26: 4946.59116 | O26: 123.0758991 | P26: 123.0758991 | Q26: 5169.187762 | R26: 123.0758991 | S26: 123.0758991 | T26: 5169.187762 | U26: 127.9989351 | V26: 127.9989351 | W26: 5375.955273 | X26: 133.1188925 | Y26: 133.1188925 | Z26: 5590.993484 | AA26: 139.7800871 | AB26: 139.7800871 | AC26: 5870.763658 | AD26: 143.97 | AE26: 143.97 | AF26: 6046.74 | AG26: 148.2891 | AH26: 148.2891 | AI26: 6228.1422 | AJ26: 152.737773 | AK26: 152.737773 | AL26: 6414.986466 | AM26: BARRANCABERMEJA/Galán | AN26: 81.21147064 | AO26: 81.21147064 | AP26: 3410.881767 | AQ26: BARRANCABERMEJA/Galán | AR26: 83.64781476 | AS26: 83.64781476 | AT26: 3513.20822 | AU26: 86.1572492 | AV26: 86.1572492 | AW26: 3618.604466 | AX26: 88.74196668 | AY26: 88.74196668 | AZ26: 3727.1626
A27: 231 | B27: PTO. NIÑO | C27: 22.08955224 | D27: 122.09 | E27: 5127.78 | F27: 22.08955224 | G27: 128.4095522 | H27: 5393.201194 | I27: 23.30447761 | J27: 135.4720776 | K27: 5689.82726 | L27: 24.46970149 | M27: 142.2456815 | N27: 5974.318623 | O27: 25.57083806 | P27: 148.6467372 | Q27: 6243.162961 | R27: 25.57083806 | S27: 148.6467372 | T27: 6243.162961 | U27: 26.59367158 | V27: 154.5926066 | W27: 6492.889479 | X27: 27.64741845 | Y27: 160.7663109 | Z27: 6752.185058 | AA27: 29.02978937 | AB27: 168.8098765 | AC27: 7090.014811 | AD27: 29.9 | AE27: 173.87 | AF27: 7302.54 | AG27: 30.797 | AH27: 179.0861 | AI27: 7521.6162 | AJ27: 31.72091 | AK27: 184.458683 | AL27: 7747.264686 | AM27: SEBASTOPOL | AN27: 157.3199062 | AO27: 157.3199062 | AP27: 6607.43606 | AQ27: SEBASTOPOL | AR27: 162.0395034 | AS27: 162.0395034 | AT27: 6805.659142 | AU27: 166.9006885 | AV27: 166.9006885 | AW27: 7009.828916 | AX27: 171.9077091 | AY27: 171.9077091 | AZ27: 7220.123784
A28: 221 | B28: SALGAR | C28: 40 | D28: 140 | E28: 5880 | F28: 40 | G28: 146.32 | H28: 6145.44 | I28: 42.2 | J28: 154.3676 | K28: 6483.4392 | L28: 44.31 | M28: 162.08598 | N28: 6807.61116 | O28: 46.30395 | P28: 169.3798491 | Q28: 7113.953662 | R28: 46.30395 | S28: 169.3798491 | T28: 7113.953662 | U28: 48.156108 | V28: 176.1550431 | W28: 7398.511809 | X28: 50.09235232 | Y28: 183.2112448 | Z28: 7694.872281 | AA28: 52.58696994 | AB28: 192.367057 | AC28: 8079.416395 | AD28: 54.17 | AE28: 198.14 | AF28: 8321.88 | AG28: 55.7851 | AH28: 204.0842 | AI28: 8571.5364 | AJ28: 57.448653 | AK28: 210.186726 | AL28: 8827.842492 | AM28: PTO. NIÑO | AN28: 32.6725373 | AO28: 189.9924435 | AP28: 7979.682627 | AQ28: PTO. NIÑO | AR28: 33.65271342 | AS28: 195.6922168 | AT28: 8219.073105 | AU28: 34.66229482 | AV28: 201.5629833 | AW28: 8465.645299 | AX28: 35.70216367 | AY28: 207.6098728 | AZ28: 8719.614657
A29: 243 | B29: MARIQUITA | C29: 8.136094675 | D29: 148.14 | E29: 6221.88 | F29: 16.27218935 | G29: 162.5921893 | H29: 6828.871953 | I29: 17.16863905 | J29: 171.5362391 | K29: 7204.52204 | L29: 18.02707101 | M29: 180.113051 | N29: 7564.748142 | O29: 18.8382892 | P29: 188.2181383 | Q29: 7905.161809 | R29: 18.8382892 | S29: 188.2181383 | T29: 7905.161809 | U29: 19.59182077 | V29: 195.7468638 | W29: 8221.368281 | X29: 20.3654936 | Y29: 203.5767384 | Z29: 8550.223012 | AA29: 21.39376828 | AB29: 213.7608253 | AC29: 8977.954663 | AD29: 22.03 | AE29: 220.17 | AF29: 9247.14 | AG29: 22.7009 | AH29: 226.7751 | AI29: 9524.5542 | AJ29: 23.391927 | AK29: 233.578353 | AL29: 9810.290826 | AM29: SALGAR | AN29: 59.17211259 | AO29: 216.4923278 | AP29: 9092.677767 | AQ29: SALGAR | AR29: 60.94727597 | AS29: 222.9870976 | AT29: 9365.4581 | AU29: 62.77569425 | AV29: 229.6767105 | AW29: 9646.421843 | AX29: 64.65896507 | AY29: 236.5670119 | AZ29: 9935.814498
A30: 258 | B30: GUALANDAY | C30: 27.5 | D30: 167.5 | E30: 7035 | F30: 55 | G30: 201.32 | H30: 8455.44 | I30: 58.025 | J30: 212.4026 | K30: 8920.9092 | L30: 60.92625 | M30: 223.02223 | N30: 9366.93366 | O30: 63.66793125 | P30: 233.0477804 | Q30: 9788.006775 | R30: 63.66793125 | S30: 233.0477804 | T30: 9788.006775 | U30: 66.2146485 | V30: 242.3696916 | W30: 10179.52705 | X30: 68.85323444 | Y30: 252.0644792 | Z30: 10586.70813 | AA30: 72.30589616 | AB30: 264.6729532 | AC30: 11116.26403 | AD30: 74.48 | AE30: 272.62 | AF30: 11450.04 | AG30: 76.7244 | AH30: 280.7986 | AI30: 11793.5412 | AJ30: 79.026132 | AK30: 289.212558 | AL30: 12146.92744 | AM30: MARIQUITA | AN30: 24.09368481 | AO30: 240.5857036 | AP30: 10104.59955 | AQ30: MARIQUITA | AR30: 24.81649535 | AS30: 247.8032747 | AT30: 10407.73754 | AU30: 25.56099021 | AV30: 255.2373729 | AW30: 10719.96966 | AX30: 26.32781992 | AY30: 262.8944941 | AZ30: 11041.56875
A31: 259 | B31: NEIVA | C31: 26 | D31: 193.5 | E31: 8127 | F31: 52 | G31: 253.32 | H31: 10639.44 | I31: 54.86 | J31: 267.2626 | K31: 11225.0292 | L31: 57.603 | M31: 280.62423 | N31: 11786.21766 | O31: 60.195135 | P31: 293.2529154 | Q31: 12316.62244 | R31: 60.195135 | S31: 293.2529154 | T31: 12316.62244 | U31: 62.6029404 | V31: 304.982632 | W31: 12809.27054 | X31: 65.09705802 | Y31: 317.1715372 | Z31: 13321.20456 | AA31: 68.36191092 | AB31: 333.0348641 | AC31: 13987.46429 | AD31: 70.41 | AE31: 343.03 | AF31: 14407.26 | AG31: 72.5223 | AH31: 353.3209 | AI31: 14839.4778 | AJ31: 74.697969 | AK31: 363.910527 | AL31: 15284.24213 | AM31: GUALANDAY | AN31: 81.39691596 | AO31: 297.8889347 | AP31: 12511.33526 | AQ31: GUALANDAY | AR31: 83.83882344 | AS31: 306.8256028 | AT31: 12886.67532 | AU31: 86.35398814 | AV31: 316.0303709 | AW31: 13273.27558 | AX31: 88.94460779 | AY31: 325.511282 | AZ31: 13671.47384
A32: 210 | B32: BARRANCABERMEJA/Galán | C32: 15 | D32: 15 | E32: 630 | F32: 35.32 | G32: 35.32 | H32: 1483.44 | I32: 37.2626 | J32: 37.2626 | K32: 1565.0292 | L32: 39.12573 | M32: 39.12573 | N32: 1643.28066 | O32: 40.88638785 | P32: 40.88638785 | Q32: 1717.22829 | R32: 63.55 | S32: 63.55 | T32: 2669.1 | U32: 66.092 | V32: 66.092 | W32: 2775.864 | X32: 68.72568 | Y32: 68.72568 | Z32: 2886.47856 | AA32: 72.161964 | AB32: 72.161964 | AC32: 3030.802488 | AD32: 74.32 | AE32: 74.32 | AF32: 3121.44 | AG32: 76.5496 | AH32: 76.5496 | AI32: 3215.0832 | AJ32: 78.846088 | AK32: 78.846088 | AL32: 3311.535696 | AM32: NEIVA | AN32: 76.93890807 | AO32: 374.8278428 | AP32: 15742.7694 | AQ32: NEIVA | AR32: 79.24707531 | AS32: 386.0726781 | AT32: 16215.05248 | AU32: 81.62448757 | AV32: 397.6548584 | AW32: 16701.50405 | AX32: 84.0732222 | AY32: 409.5845042 | AZ32: 17202.54918
A33: 260 | B33: SEBASTOPOL | C33: 100 | D33: 100 | E33: 4200 | F33: 106.32 | G33: 106.32 | H33: 4465.44 | I33: 112.1676 | J33: 112.1676 | K33: 4711.0392 | L33: 117.77598 | M33: 117.77598 | N33: 4946.59116 | O33: 123.0758991 | P33: 123.0758991 | Q33: 5169.187762 | R33: 123.0758991 | S33: 123.0758991 | T33: 5169.187762 | U33: 127.9989351 | V33: 127.9989351 | W33: 5375.955273 | X33: 133.1188925 | Y33: 133.1188925 | Z33: 5590.993484 | AA33: 139.7800871 | AB33: 139.7800871 | AC33: 5870.763658 | AD33: 143.97 | AE33: 143.97 | AF33: 6046.74 | AG33: 148.2891 | AH33: 148.2891 | AI33: 6228.1422 | AJ33: 152.737773 | AK33: 152.737773 | AL33: 6414.986466 | AM33: BARRANCABERMEJA/Galán | AN33: 81.21147064 | AO33: 81.21147064 | AP33: 3410.881767 | AQ33: BARRANCABERMEJA/Galán | AR33: 83.64781476 | AS33: 83.64781476 | AT33: 3513.20822 | AU33: 86.1572492 | AV33: 86.1572492 | AW33: 3618.604466 | AX33: 88.74196668 | AY33: 88.74196668 | AZ33: 3727.1626
A34: 263 | B34: LA PINTADA | C34: 5.576271186 | D34: 201.58 | E34: 8466.36 | F34: 11.15254237 | G34: 213.4725424 | H34: 8965.84678 | I34: 11.7659322 | J34: 225.2235322 | K34: 9459.388353 | L34: 12.35422881 | M34: 236.4742088 | N34: 9931.91677 | O34: 12.91016911 | P34: 247.1155482 | Q34: 10378.85302 | R34: 12.91016911 | S34: 247.1155482 | T34: 10378.85302 | U34: 13.42657587 | V34: 257.0001701 | W34: 10794.00715 | X34: 13.96363891 | Y34: 267.2701769 | Z34: 11225.34743 | AA34: 14.66182086 | AB34: 280.6289358 | AC34: 11786.4153 | AD34: 15.1 | AE34: 289.05 | AF34: 12140.1 | AG34: 15.553 | AH34: 297.7215 | AI34: 12504.303 | AJ34: 16.01959 | AK34: 306.653145 | AL34: 12879.43209 | AM34: SEBASTOPOL | AN34: 157.3199062 | AO34: 157.3199062 | AP34: 6607.43606 | AQ34: SEBASTOPOL | AR34: 162.0395034 | AS34: 162.0395034 | AT34: 6805.659142 | AU34: 166.9006885 | AV34: 166.9006885 | AW34: 7009.828916 | AX34: 171.9077091 | AY34: 171.9077091 | AZ34: 7220.123784
A35: 264 | B35: MEDELLIN | C35: 96 | D35: 196 | E35: 8232 | F35: 96 | G35: 202.32 | H35: 8497.44 | I35: 101.28 | J35: 213.4476 | K35: 8964.7992 | L35: 106.344 | M35: 224.11998 | N35: 9413.03916 | O35: 111.12948 | P35: 234.2053791 | Q35: 9836.625922 | R35: 111.12948 | S35: 234.2053791 | T35: 9836.625922 | U35: 115.5746592 | V35: 243.5735943 | W35: 10230.09096 | X35: 120.1876456 | Y35: 253.306538 | Z35: 10638.8746 | AA35: 126.1870278 | AB35: 265.9671149 | AC35: 11170.61883 | AD35: 129.98 | AE35: 273.95 | AF35: 11505.9 | AG35: 133.8794 | AH35: 282.1685 | AI35: 11851.077 | AJ35: 137.895782 | AK35: 290.633555 | AL35: 12206.60931 | AM35: LA PINTADA | AN35: 16.5001777 | AO35: 315.8527393 | AP35: 13265.81505 | AQ35: LA PINTADA | AR35: 16.99518303 | AS35: 325.3283215 | AT35: 13663.7895 | AU35: 17.50503852 | AV35: 335.0881712 | AW35: 14073.70319 | AX35: 18.03018968 | AY35: 345.1408163 | AZ35: 14495.91429
A36: 264 | B36: GIRARDOTA | O36: 93.0541009 | P36: 216.13 | Q36: 9077.46 | R36: 96.78106494 | S36: 224.78 | T36: 9440.76 | U36: 96.78106494 | V36: 224.78 | W36: 9440.76 | X36: 100.6523075 | Y36: 233.7712 | Z36: 9818.3904 | AA36: 105.6749229 | AB36: 245.45501 | AC36: 10309.11042 | AD36: 108.84 | AE36: 252.81 | AF36: 10618.02 | AG36: 112.0952 | AH36: 260.3943 | AI36: 10936.5606 | AJ36: 115.448056 | AK36: 268.186129 | AL36: 11263.81742 | AM36: MEDELLIN | AN36: 142.0326555 | AO36: 299.3525616 | AP36: 12572.80759 | AQ36: MEDELLIN | AR36: 146.2936351 | AS36: 308.3331385 | AT36: 12949.99182 | AU36: 150.6824442 | AV36: 317.5831327 | AW36: 13338.49157 | AX36: 155.2029175 | AY36: 327.1106266 | AZ36: 13738.64632
A37: 271 | B37: CARTAGO | C37: 14 | D37: 210 | E37: 8820 | F37: 28 | G37: 230.32 | H37: 9673.44 | I37: 29.54 | J37: 242.9876 | K37: 10205.4792 | L37: 31.017 | M37: 255.13698 | N37: 10715.75316 | O37: 32.412765 | P37: 266.6181441 | Q37: 11197.96205 | R37: 32.412765 | S37: 266.6181441 | T37: 11197.96205 | U37: 33.7092756 | V37: 277.2828699 | W37: 11645.88053 | X37: 35.06764662 | Y37: 288.3741847 | Z37: 12111.71576 | AA37: 36.82102896 | AB37: 302.7881439 | AC37: 12717.10204 | AD37: 37.92 | AE37: 311.87 | AF37: 13098.54 | AG37: 39.0576 | AH37: 321.2261 | AI37: 13491.4962 | AJ37: 40.229328 | AK37: 330.862883 | AL37: 13896.24109 | AM37: GIRARDOTA | AN37: 118.9114977 | AO37: 276.2317129 | AP37: 11601.73194 | AQ37: GIRARDOTA | AR37: 122.4788426 | AS37: 284.5186643 | AT37: 11949.7839 | AU37: 126.1532079 | AV37: 293.0542242 | AW37: 12308.27742 | AX37: 129.9378041 | AY37: 301.8458509 | AZ37: 12677.52574
A38: 273 | B38: BUGA | C38: 9.126582278 | D38: 219.13 | E38: 9203.46 | F38: 18.25316456 | G38: 248.5731646 | H38: 10440.07291 | I38: 19.25708861 | J38: 262.2546886 | K38: 11014.69692 | L38: 20.21994304 | M38: 275.356923 | N38: 11564.99077 | O38: 21.12984047 | P38: 287.7479846 | Q38: 12085.41535 | R38: 21.12984047 | S38: 287.7479846 | T38: 12085.41535 | U38: 21.97503409 | V38: 299.257904 | W38: 12568.83197 | X38: 22.85403546 | Y38: 311.2282201 | Z38: 13071.58524 | AA38: 23.99673723 | AB38: 326.7848811 | AC38: 13724.96501 | AD38: 24.72 | AE38: 336.59 | AF38: 14136.78 | AG38: 25.4616 | AH38: 346.6877 | AI38: 14560.8834 | AJ38: 26.225448 | AK38: 357.088331 | AL38: 14997.7099 | AM38: CARTAGO | AN38: 41.43588957 | AO38: 340.7884512 | AP38: 14313.11495 | AQ38: CARTAGO | AR38: 42.67896626 | AS38: 351.0121048 | AT38: 14742.5084 | AU38: 43.95933524 | AV38: 361.5424679 | AW38: 15184.78365 | AX38: 45.2781153 | AY38: 372.3887419 | AZ38: 15640.32716
A39: 280 | B39: MULALO | C39: 4.430379747 | D39: 223.56 | E39: 9389.52 | F39: 8.860759494 | G39: 257.4339241 | H39: 10812.22481 | I39: 9.348101266 | J39: 271.6027899 | K39: 11407.31717 | L39: 9.815506329 | M39: 285.1724294 | N39: 11977.24203 | O39: 10.25720411 | P39: 298.0051887 | Q39: 12516.21792 | R39: 10.25720411 | S39: 298.0051887 | T39: 12516.21792 | U39: 10.66749228 | V39: 309.9253962 | W39: 13016.86664 | X39: 11.10419197 | Y39: 322.3324121 | Z39: 13537.96131 | AA39: 11.65940157 | AB39: 338.4442827 | AC39: 14214.65987 | AD39: 12.01 | AE39: 348.6 | AF39: 14641.2 | AG39: 12.3703 | AH39: 359.058 | AI39: 15080.436 | AJ39: 12.741409 | AK39: 369.82974 | AL39: 15532.84908 | AM39: BUGA | AN39: 27.01221144 | AO39: 367.8009809 | AP39: 15447.6412 | AQ39: BUGA | AR39: 27.82257778 | AS39: 378.8350104 | AT39: 15911.07044 | AU39: 28.65725512 | AV39: 390.2000607 | AW39: 16388.40255 | AX39: 29.51697277 | AY39: 401.9060625 | AZ39: 16880.05462
A40: 278 | B40: YUMBO | C40: 14 | D40: 224 | E40: 9408 | F40: 28 | G40: 258.32 | H40: 10849.44 | I40: 29.54 | J40: 272.5276 | K40: 11446.1592 | L40: 31.017 | M40: 286.16398 | N40: 12018.88716 | O40: 32.4189684 | P40: 299.0371125 | Q40: 12559.55872 | R40: 32.422765 | S40: 299.0409091 | T40: 12559.71818 | U40: 33.7196756 | V40: 311.0025455 | W40: 13062.10691 | X40: 35.05846262 | Y40: 323.4326473 | Z40: 13584.17119 | AA40: 36.81138576 | AB40: 339.5995296 | AC40: 14263.18025 | AD40: 37.91 | AE40: 349.78 | AF40: 14690.76 | AG40: 39.0473 | AH40: 360.2734 | AI40: 15131.4828 | AJ40: 40.218719 | AK40: 371.081602 | AL40: 15585.42728 | AM40: MULALO | AN40: 13.12365127 | AO40: 380.9246322 | AP40: 15998.83455 | AQ40: MULALO | AR40: 13.51736081 | AS40: 392.3523712 | AT40: 16478.79959 | AU40: 13.92288163 | AV40: 404.1229423 | AW40: 16973.16358 | AX40: 14.34056808 | AY40: 416.2466306 | AZ40: 17482.35848
A41: 276 | B41: CTQS Buenavnetura ** | I41: 0 | K41: 0 | R41: 0 | AA41: 0 | AC41: 0 | AD41: 0 | AF41: 0 | AG41: 0 | AH41: 0 | AI41: 0 | AJ41: 0 | AK41: 0 | AL41: 0 | AM41: YUMBO | AN41: 41.42528057 | AO41: 382.2140501 | AP41: 16052.9901 | AQ41: YUMBO | AR41: 42.66803899 | AS41: 393.6804716 | AT41: 16534.57981 | AU41: 43.94808016 | AV41: 405.4908857 | AW41: 17030.6172 | AX41: 45.26652256 | AY41: 417.6556123 | AZ41: 17541.53572
A42: 279 | B42: BUENAVENTURA ** | C42: 0 | D42: 0 | E42: 0 | F42: 37 | G42: 295.32 | H42: 12403.44 | I42: 39.035 | J42: 311.5726 | K42: 13086.0492 | L42: 40.98675 | M42: 327.15073 | N42: 13740.33066 | O42: 42.83115375 | P42: 341.8682662 | Q42: 14358.46718 | R42: 42.83115375 | S42: 341.8720629 | T42: 14358.62664 | U42: 44.5443999 | V42: 355.5469454 | W42: 14932.97171 | X42: 46.3361759 | Y42: 369.7688232 | Z42: 15530.29057 | AA42: 48.65298469 | AB42: 388.2525143 | AC42: 16306.6056 | AD42: 50.11 | AE42: 399.89 | AF42: 16795.38 | AG42: 51.6133 | AH42: 411.8867 | AI42: 17299.2414 | AJ42: 53.171699 | AK42: 424.253301 | AL42: 17818.63864 | AM42: CTQS Buenavnetura ** | AN42: 0 | AO42: 0 | AP42: 0 | AQ42: CTQS Buenavnetura ** | AR42: 0 | AS42: 0 | AT42: 0 | AU42: 0 | AV42: 0 | AW42: 0 | AX42: 0 | AY42: 0 | AZ42: 0
B43: BUENAVENTURA/YUMBO | C43: 67 | D43: 67 | E43: 2814 | F43: 37 | G43: 332.32 | H43: 13957.44 | I43: 39.035 | J43: 350.5976 | K43: 14725.0992 | L43: 40.98675 | M43: 368.13748 | N43: 15461.77416 | O43: 42.83115375 | P43: 384.7032166 | Q43: 16157.5351 | R43: 42.83115375 | S43: 384.7032166 | T43: 16157.5351 | U43: 44.5443999 | V43: 400.0913453 | W43: 16803.8365 | X43: 46.3261759 | Y43: 416.0949991 | Z43: 17475.98996 | AA43: 48.65248469 | AB43: 436.909749 | AC43: 18350.20946 | AD43: 50.11 | AE43: 450.02 | AF43: 18900.84 | AG43: 51.6133 | AH43: 463.5206 | AI43: 19467.8652 | AJ43: 53.171699 | AK43: 477.426218 | AL43: 20051.90116 | AM43: BUENAVENTURA ** | AN43: 54.76684997 | AO43: 436.9809 | AP43: 18353.1978 | AQ43: BUENAVENTURA ** | AR43: 56.40985547 | AS43: 450.090327 | AT43: 18903.79374 | AU43: 58.10215113 | AV43: 463.5930368 | AW43: 19470.90755 | AX43: 59.84521567 | AY43: 477.5008279 | AZ43: 20055.03477
A44: 277 | B44: BUENAVENTURA cabotaje | C44: 0 | D44: 0 | E44: 0 | F44: 295.32 | G44: 295.32 | H44: 12403.44 | I44: 311.5626 | J44: 311.5726 | K44: 13086.0492 | L44: 327.14073 | M44: 327.15073 | N44: 13740.33066 | O44: 341.8620628 | P44: 341.8720628 | Q44: 14358.62664 | R44: 341.8720628 | S44: 341.8720628 | T44: 14358.62664 | U44: 355.5469454 | V44: 355.5469454 | W44: 14932.97171 | X44: 369.7688232 | Y44: 369.7688232 | Z44: 15530.29057 | AA44: 388.2572643 | AB44: 388.2572643 | AC44: 16306.8051 | AD44: 399.91 | AE44: 399.91 | AF44: 16796.22 | AG44: 411.9073 | AH44: 411.9073 | AI44: 17300.1066 | AJ44: 424.264519 | AK44: 424.264519 | AL44: 17819.1098 | AM44: BUENAVENTURA/YUMBO | AN44: 54.76684997 | AO44: 491.7490045 | AP44: 20653.45819 | AQ44: BUENAVENTURA/YUMBO | AR44: 56.40985547 | AS44: 506.5014747 | AT44: 21273.06194 | AU44: 58.10215113 | AV44: 521.6965189 | AW44: 21911.25379 | AX44: 59.84521567 | AY44: 537.3474145 | AZ44: 22568.59141
A45: 210 | B45: BARRANCABERMEJA/Galán | C45: 15 | D45: 15 | E45: 630 | F45: 35.32 | G45: 35.32 | H45: 1483.44 | I45: 37.2626 | J45: 37.2626 | K45: 1565.0292 | L45: 39.12573 | M45: 39.12573 | N45: 1643.28066 | O45: 40.88638785 | P45: 40.88638785 | Q45: 1717.22829 | R45: 63.55 | S45: 63.55 | T45: 2669.1 | U45: 66.092 | V45: 66.092 | W45: 2775.864 | X45: 68.72568 | Y45: 68.72568 | Z45: 2886.47856 | AA45: 72.161964 | AB45: 72.161964 | AC45: 3030.802488 | AD45: 74.32 | AE45: 74.32 | AF45: 3121.44 | AG45: 76.5496 | AH45: 76.5496 | AI45: 3215.0832 | AJ45: 78.846088 | AK45: 78.846088 | AL45: 3311.535696 | AM45: BUENAVENTURA cabotaje | AN45: 436.9924546 | AO45: 436.9924546 | AP45: 18353.68309 | AQ45: BUENAVENTURA cabotaje | AR45: 450.1022282 | AS45: 450.1022282 | AT45: 18904.29358 | AU45: 463.6052951 | AV45: 463.6052951 | AW45: 19471.42239 | AX45: 477.5134539 | AY45: 477.5134539 | AZ45: 20055.56506
A46: 260 | B46: SEBASTOPOL | C46: 100 | D46: 100 | E46: 4200 | F46: 106.32 | G46: 106.32 | H46: 4465.44 | I46: 112.1676 | J46: 112.1676 | K46: 4711.0392 | L46: 117.77598 | M46: 117.77598 | N46: 4946.59116 | O46: 123.0758991 | P46: 123.0758991 | Q46: 5169.187762 | R46: 123.0758991 | S46: 123.0758991 | T46: 5169.187762 | U46: 127.9989351 | V46: 127.9989351 | W46: 5375.955273 | X46: 133.1188925 | Y46: 133.1188925 | Z46: 5590.993484 | AA46: 139.7800871 | AB46: 139.7800871 | AC46: 5870.763658 | AD46: 143.97 | AE46: 143.97 | AF46: 6046.74 | AG46: 148.2891 | AH46: 148.2891 | AI46: 6228.1422 | AJ46: 152.737773 | AK46: 152.737773 | AL46: 6414.986466 | AM46: BARRANCABERMEJA/Galán | AN46: 81.21147064 | AO46: 81.21147064 | AP46: 3410.881767 | AQ46: BARRANCABERMEJA/Galán | AR46: 83.64781476 | AS46: 83.64781476 | AT46: 3513.20822 | AU46: 86.1572492 | AV46: 86.1572492 | AW46: 3618.604466 | AX46: 88.74196668 | AY46: 88.74196668 | AZ46: 3727.1626
A47: 231 | B47: PTO. NIÑO | C47: 22.08955224 | D47: 122.09 | E47: 5127.78 | F47: 22.08955224 | G47: 128.4095522 | H47: 5393.201194 | I47: 23.30447761 | J47: 135.4720776 | K47: 5689.82726 | L47: 24.46970149 | M47: 142.2456815 | N47: 5974.318623 | O47: 25.57083806 | P47: 148.6467372 | Q47: 6243.162961 | R47: 25.57083806 | S47: 148.6467372 | T47: 6243.162961 | U47: 26.59367158 | V47: 154.5926066 | W47: 6492.889479 | X47: 27.64741845 | Y47: 160.7663109 | Z47: 6752.185058 | AA47: 29.02978937 | AB47: 168.8098765 | AC47: 7090.014811 | AD47: 29.9 | AE47: 173.87 | AF47: 7302.54 | AG47: 30.797 | AH47: 179.0861 | AI47: 7521.6162 | AJ47: 31.72091 | AK47: 184.458683 | AL47: 7747.264686 | AM47: SEBASTOPOL | AN47: 157.3199062 | AO47: 157.3199062 | AP47: 6607.43606 | AQ47: SEBASTOPOL | AR47: 162.0395034 | AS47: 162.0395034 | AT47: 6805.659142 | AU47: 166.9006885 | AV47: 166.9006885 | AW47: 7009.828916 | AX47: 171.9077091 | AY47: 171.9077091 | AZ47: 7220.123784
A48: 221 | B48: SALGAR | C48: 40 | D48: 140 | E48: 5880 | F48: 40 | G48: 146.32 | H48: 6145.44 | I48: 42.2 | J48: 154.3676 | K48: 6483.4392 | L48: 44.31 | M48: 162.08598 | N48: 6807.61116 | O48: 46.30395 | P48: 169.3798491 | Q48: 7113.953662 | R48: 46.30395 | S48: 169.3798491 | T48: 7113.953662 | U48: 48.156108 | V48: 176.1550431 | W48: 7398.511809 | X48: 50.09235232 | Y48: 183.2112448 | Z48: 7694.872281 | AA48: 52.58696994 | AB48: 192.367057 | AC48: 8079.416395 | AD48: 54.17 | AE48: 198.14 | AF48: 8321.88 | AG48: 55.7851 | AH48: 204.0842 | AI48: 8571.5364 | AJ48: 57.448653 | AK48: 210.186726 | AL48: 8827.842492 | AM48: PTO. NIÑO | AN48: 32.6725373 | AO48: 189.9924435 | AP48: 7979.682627 | AQ48: PTO. NIÑO | AR48: 33.65271342 | AS48: 195.6922168 | AT48: 8219.073105 | AU48: 34.66229482 | AV48: 201.5629833 | AW48: 8465.645299 | AX48: 35.70216367 | AY48: 207.6098728 | AZ48: 8719.614657
A49: 245 | B49: MANIZALES | C49: 70 | D49: 210 | E49: 8820 | F49: 84 | G49: 230.32 | H49: 9673.44 | I49: 88.62 | J49: 242.9876 | K49: 10205.4792 | L49: 93.051 | M49: 255.13698 | N49: 10715.75316 | O49: 97.238295 | P49: 266.6181441 | Q49: 11197.96205 | R49: 97.238295 | S49: 266.6181441 | T49: 11197.96205 | U49: 101.1178268 | V49: 277.2728699 | W49: 11645.46053 | X49: 105.1525399 | Y49: 288.3637847 | Z49: 12111.27896 | AA49: 110.4101669 | AB49: 302.7772239 | AC49: 12716.6434 | AD49: 113.72 | AE49: 311.86 | AF49: 13098.12 | AG49: 117.1416 | AH49: 321.2258 | AI49: 13491.4836 | AJ49: 120.675848 | AK49: 330.862574 | AL49: 13896.22811 | AM49: SALGAR | AN49: 59.17211259 | AO49: 216.4923278 | AP49: 9092.677767 | AQ49: SALGAR | AR49: 60.94727597 | AS49: 222.9870976 | AT49: 9365.4581 | AU49: 62.77569425 | AV49: 229.6767105 | AW49: 9646.421843 | AX49: 64.65896507 | AY49: 236.5670119 | AZ49: 9935.814498
A50: 251 | B50: PEREIRA | C50: 70 | D50: 162.09 | E50: 6807.78 | F50: 84 | G50: 230.32 | H50: 9673.44 | I50: 88.62 | J50: 242.9876 | K50: 10205.4792 | L50: 93.051 | M50: 255.13698 | N50: 10715.75316 | O50: 97.238295 | P50: 266.6181441 | Q50: 11197.96205 | R50: 97.238295 | S50: 266.6181441 | T50: 11197.96205 | U50: 101.1178268 | V50: 277.2728699 | W50: 11645.46053 | X50: 105.1525399 | Y50: 288.3637847 | Z50: 12111.27896 | AA50: 110.4101669 | AB50: 302.7772239 | AC50: 12716.6434 | AD50: 113.72 | AE50: 311.86 | AF50: 13098.12 | AG50: 117.1416 | AH50: 321.2258 | AI50: 13491.4836 | AJ50: 120.675848 | AK50: 330.862574 | AL50: 13896.22811 | AM50: MANIZALES | AN50: 124.2961234 | AO50: 340.7884512 | AP50: 14313.11495 | AQ50: MANIZALES | AR50: 128.0250071 | AS50: 351.0121048 | AT50: 14742.5084 | AU50: 131.8657574 | AV50: 361.5424679 | AW50: 15184.78365 | AX50: 135.8217301 | AY50: 372.3887419 | AZ50: 15640.32716
A51: 210 | B51: BARRANCABERMEJA/Galán | C51: 15 | D51: 15 | E51: 630 | F51: 35.32 | G51: 35.32 | H51: 1483.44 | I51: 37.2626 | J51: 37.2626 | K51: 1565.0292 | L51: 39.12573 | M51: 39.12573 | N51: 1643.28066 | O51: 40.88638785 | P51: 40.88638785 | Q51: 1717.22829 | R51: 63.55 | S51: 63.55 | T51: 2669.1 | U51: 66.092 | V51: 66.092 | W51: 2775.864 | X51: 68.72568 | Y51: 68.72568 | Z51: 2886.47856 | AA51: 72.161964 | AB51: 72.161964 | AC51: 3030.802488 | AD51: 74.32 | AE51: 74.32 | AF51: 3121.44 | AG51: 76.5496 | AH51: 76.5496 | AI51: 3215.0832 | AJ51: 78.846088 | AK51: 78.846088 | AL51: 3311.535696 | AM51: PEREIRA | AN51: 124.2961234 | AO51: 340.7884512 | AP51: 14313.11495 | AQ51: PEREIRA | AR51: 128.0250071 | AS51: 351.0121048 | AT51: 14742.5084 | AU51: 131.8657574 | AV51: 361.5424679 | AW51: 15184.78365 | AX51: 135.8217301 | AY51: 372.3887419 | AZ51: 15640.32716
A52: 260 | B52: SEBASTOPOL | C52: 100 | D52: 100 | E52: 4200 | F52: 106.32 | G52: 106.32 | H52: 4465.44 | I52: 112.1676 | J52: 112.1676 | K52: 4711.0392 | L52: 117.77598 | M52: 117.77598 | N52: 4946.59116 | O52: 123.0758991 | P52: 123.0758991 | Q52: 5169.187762 | R52: 123.0758991 | S52: 123.0758991 | T52: 5169.187762 | U52: 127.9989351 | V52: 127.9989351 | W52: 5375.955273 | X52: 133.1188925 | Y52: 133.1188925 | Z52: 5590.993484 | AA52: 139.7800871 | AB52: 139.7800871 | AC52: 5870.763658 | AD52: 143.97 | AE52: 143.97 | AF52: 6046.74 | AG52: 148.2891 | AH52: 148.2891 | AI52: 6228.1422 | AJ52: 152.737773 | AK52: 152.737773 | AL52: 6414.986466 | AM52: BARRANCABERMEJA/Galán | AN52: 81.21147064 | AO52: 81.21147064 | AP52: 3410.881767 | AQ52: BARRANCABERMEJA/Galán | AR52: 83.64781476 | AS52: 83.64781476 | AT52: 3513.20822 | AU52: 86.1572492 | AV52: 86.1572492 | AW52: 3618.604466 | AX52: 88.74196668 | AY52: 88.74196668 | AZ52: 3727.1626
A53: 231 | B53: PTO. NIÑO | C53: 22.08955224 | D53: 122.09 | E53: 5127.78 | F53: 22.08955224 | G53: 128.4095522 | H53: 5393.201194 | I53: 23.30447761 | J53: 135.4720776 | K53: 5689.82726 | L53: 24.46970149 | M53: 142.2456815 | N53: 5974.318623 | O53: 25.57083806 | P53: 148.6467372 | Q53: 6243.162961 | R53: 25.57083806 | S53: 148.6467372 | T53: 6243.162961 | U53: 26.59367158 | V53: 154.5926066 | W53: 6492.889479 | X53: 27.64741845 | Y53: 160.7663109 | Z53: 6752.185058 | AA53: 29.02978937 | AB53: 168.8098765 | AC53: 7090.014811 | AD53: 29.9 | AE53: 173.87 | AF53: 7302.54 | AG53: 30.797 | AH53: 179.0861 | AI53: 7521.6162 | AJ53: 31.72091 | AK53: 184.458683 | AL53: 7747.264686 | AM53: SEBASTOPOL | AN53: 157.3199062 | AO53: 157.3199062 | AP53: 6607.43606 | AQ53: SEBASTOPOL | AR53: 162.0395034 | AS53: 162.0395034 | AT53: 6805.659142 | AU53: 166.9006885 | AV53: 166.9006885 | AW53: 7009.828916 | AX53: 171.9077091 | AY53: 171.9077091 | AZ53: 7220.123784
A54: 221 | B54: SALGAR | C54: 40 | D54: 140 | E54: 5880 | F54: 40 | G54: 146.32 | H54: 6145.44 | I54: 42.2 | J54: 154.3676 | K54: 6483.4392 | L54: 44.31 | M54: 162.08598 | N54: 6807.61116 | O54: 46.30395 | P54: 169.3798491 | Q54: 7113.953662 | R54: 46.30395 | S54: 169.3798491 | T54: 7113.953662 | U54: 48.156108 | V54: 176.1550431 | W54: 7398.511809 | X54: 50.09235232 | Y54: 183.2112448 | Z54: 7694.872281 | AA54: 52.58696994 | AB54: 192.367057 | AC54: 8079.416395 | AD54: 54.17 | AE54: 198.14 | AF54: 8321.88 | AG54: 55.7851 | AH54: 204.0842 | AI54: 8571.5364 | AJ54: 57.448653 | AK54: 210.186726 | AL54: 8827.842492 | AM54: PTO. NIÑO | AN54: 32.6725373 | AO54: 189.9924435 | AP54: 7979.682627 | AQ54: PTO. NIÑO | AR54: 33.65271342 | AS54: 195.6922168 | AT54: 8219.073105 | AU54: 34.66229482 | AV54: 201.5629833 | AW54: 8465.645299 | AX54: 35.70216367 | AY54: 207.6098728 | AZ54: 8719.614657
B55: LA DORADA | AG55: 74.6 | AH55: 278.6842 | AI55: 11704.7364 | AJ55: 76.838 | AK55: 287.024726 | AL55: 12055.03849 | AM55: SALGAR | AN55: 59.17211259 | AO55: 216.4923278 | AP55: 9092.677767 | AQ55: SALGAR | AR55: 60.94727597 | AS55: 222.9870976 | AT55: 9365.4581 | AU55: 62.77569425 | AV55: 229.6767105 | AW55: 9646.421843 | AX55: 64.65896507 | AY55: 236.5670119 | AZ55: 9935.814498
A56: 210 | B56: BARRANCABERMEJA/Galán | C56: 15 | D56: 15 | E56: 630 | F56: 35.32 | G56: 35.32 | H56: 1483.44 | I56: 37.2626 | J56: 37.2626 | K56: 1565.0292 | L56: 39.12573 | M56: 39.12573 | N56: 1643.28066 | O56: 40.88638785 | P56: 40.88638785 | Q56: 1717.22829 | R56: 63.55 | S56: 63.55 | T56: 2669.1 | U56: 66.092 | V56: 66.092 | W56: 2775.864 | X56: 68.72568 | Y56: 68.72568 | Z56: 2886.47856 | AA56: 72.161964 | AB56: 72.161964 | AC56: 3030.802488 | AD56: 74.32 | AE56: 74.32 | AF56: =AE56*42 -> 3121.44 | AG56: 76.5496 | AH56: 76.5496 | AI56: 3215.0832 | AJ56: 78.846088 | AK56: 78.846088 | AL56: 3311.535696 | AM56: LA DORADA | AN56: 53.4364 | AO56: 269.9287278 | AP56: 11337.00657 | AQ56: LA DORADA | AR56: 55.039492 | AS56: 278.0265896 | AT56: 11677.11676 | AU56: 56.69067676 | AV56: 286.3673873 | AW56: 12027.43027 | AX56: 58.39139706 | AY56: 294.9584089 | AZ56: 12388.25317
A57: 260 | B57: SEBASTOPOL | C57: 100 | D57: 100 | E57: 4200 | F57: 106.32 | G57: 106.32 | H57: 4465.44 | I57: 112.1676 | J57: 112.1676 | K57: 4711.0392 | L57: 117.77598 | M57: 117.77598 | N57: 4946.59116 | O57: 123.0758991 | P57: 123.0758991 | Q57: 5169.187762 | R57: 123.0758991 | S57: 123.0758991 | T57: 5169.187762 | U57: 127.9989351 | V57: 127.9989351 | W57: 5375.955273 | X57: 133.1188925 | Y57: 133.1188925 | Z57: 5590.993484 | AA57: 139.7800871 | AB57: 139.7800871 | AC57: 5870.763658 | AD57: 143.97 | AE57: 143.97 | AF57: =AE57*42 -> 6046.74 | AG57: 148.2891 | AH57: 148.2891 | AI57: 6228.1422 | AJ57: 152.737773 | AK57: 152.737773 | AL57: 6414.986466 | AM57: BARRANCABERMEJA/Galán | AN57: 81.21147064 | AO57: 81.21147064 | AP57: 3410.881767 | AQ57: BARRANCABERMEJA/Galán | AR57: 83.64781476 | AS57: 83.64781476 | AT57: 3513.20822 | AU57: 86.1572492 | AV57: 86.1572492 | AW57: 3618.604466 | AX57: 88.74196668 | AY57: 88.74196668 | AZ57: 3727.1626
B58: SUTAMARCHAN | AG58: 116.2794768 | AH58: 264.5685768 | AI58: 11111.88023 | AJ58: 119.7678611 | AK58: 272.5056341 | AL58: 11445.23663 | AM58: SEBASTOPOL | AN58: 157.3199062 | AO58: 157.3199062 | AP58: 6607.43606 | AQ58: SEBASTOPOL | AR58: 162.0395034 | AS58: 162.0395034 | AT58: 6805.659142 | AU58: 166.9006885 | AV58: 166.9006885 | AW58: 7009.828916 | AX58: 171.9077091 | AY58: 171.9077091 | AZ58: 7220.123784
B59: APIAY | AG59: 205.64 | AH59: 470.2085768 | AI59: 19748.76023 | AJ59: 211.8092 | AK59: 484.3148341 | AL59: 20341.22303 | AM59: SUTAMARCHAN | AN59: 127.0617239 | AO59: 284.3816301 | AP59: 11944.02846 | AQ59: SUTAMARCHAN | AR59: 130.8735756 | AS59: 292.913079 | AT59: 12302.34932 | AU59: 134.7997829 | AV59: 301.7004714 | AW59: 12671.4198 | AX59: 138.8437764 | AY59: 310.7514855 | AZ59: 13051.56239
A60: Tarifa según Resolución No. 180088 de Enero 30 de 2003 | AM60: APIAY | AN60: 218.163476 | AO60: 502.5451061 | AP60: 21106.89446 | AQ60: APIAY | AR60: 224.7083803 | AS60: 517.6214593 | AT60: 21740.10129 | AU60: 231.4496317 | AV60: 533.150103 | AW60: 22392.30433 | AX60: 238.3931206 | AY60: 549.1446061 | AZ60: 23064.07346
A61: Tarifa de tramos intermedios calculada de acuerdo al kilometraje | AM61: CHICHIMENE - APIAY | AN61: 43.569 | AO61: 43.569 | AP61: 1829.898 | AQ61: CHICHIMENE - APIAY | AR61: 44.87607 | AS61: 44.87607 | AT61: 1884.79494 | AU61: 46.2223521 | AV61: 46.2223521 | AW61: 1941.338788 | AX61: 47.60902266 | AY61: 47.60902266 | AZ61: 1999.578952
A62: Cambio tarifa tramo según Resolución No. 180209 de Febrero 27 2003
A63: Tarifa según Resolución No. 18 1701 de Diciembre 22 de 2003
A64: Tarifa según Resolución No. 18 0989 de Junio 17 de 2011
A65: Tarifa según Resolución No. 124302 de Mayo 27 de 2011
A66: 279 | B66: BUENAVENTURA | K66: 0.0649 | N66: 0.055 | Q66: 0.0485 | V66: IPC Real 2007 BanRep | W66: 0.0448 | Y66: IPC Real 2008 BanRep | Z66: 0.0569 | AC66: 0.0767 | AF66: 0.02 | AG66: IPC Real 2010 BanRep | AI66: 0.0317 | AJ66: IPC Real 2011 BanRep | AL66: 0.0373
B67: Diesel Marino | C67: Tarifa Vigente hasta Mar. 28/03 | F67: Tarifa Vigente Mar. 28 a Dic. 31/03 | I67: Tarifa Vigente 1 Ene. a Dic. 31/04 | L67: Tarifa Vigente 1 Ene. a Dic. 31/05 | O67: Tarifa Vigente 1 Ene. a Dic. 31/06 | R67: Tarifa Vigente 1 Ene. a Dic. 31/06 | U67: Tarifa Vigente 1 Ene. a Dic. 31/07 | X67: Tarifa Vigente 1 Ene. a Dic. 31/08 | AA67: Tarifa Vigente 1 Ene. a Dic. 31/09 | AD67: Tarifa Vigente 1 Ene. a Dic. 31/10 | AG67: Tarifa Vigente 1 Ene. a Dic. 31/11 | AJ67: Tarifa Vigente 1 Ene. a Dic. 31/12
B68: Cartagena-Buenaventura (Cabotaje) | C68: 306.31 | D68: 306.31 | E68: 12865.02 | F68: 327.72 | G68: 327.72 | H68: 13764.24 | I68: 348.989028 | J68: 348.989028 | K68: 14657.53918 | L68: 368.1834245 | M68: 368.1834245 | N68: 15463.70383 | O68: 386.0403206 | P68: 386.0403206 | Q68: 16213.69347 | R68: 386.0403206 | S68: 386.0403206 | T68: 16213.69347 | U68: 403.334927 | V68: 403.334927 | W68: 16940.06693 | X68: 426.2846843 | Y68: 426.2846843 | Z68: 17903.95674 | AA68: 458.9807196 | AB68: 458.9807196 | AC68: 19277.19022 | AD68: 468.16 | AE68: 468.16 | AF68: =AE68*42 -> 19662.72 | AG68: 483.000672 | AH68: 483.000672 | AI68: 20286.02822 | AJ68: 501.0165971 | AK68: 501.0165971 | AL68: 21042.69708
B69: Resolución 180324 de Marzo 28-03 | F69: Tarifa Vigente Nov. 1 a Dic. 31/03 | I69: Tarifa Vigente 1 Ene. a Dic. 31/04 | L69: Tarifa Vigente 1 Ene. a Dic. 31/05 | O69: Tarifa Vigente 1 Ene. a Dic. 31/05 | R69: Tarifa Vigente 1 Ene. a Dic. 31/06 | U69: Tarifa Vigente 1 Ene. a Dic. 31/07 | X69: Tarifa Vigente 1 Ene. a Dic. 31/08 | AA69: Tarifa Vigente 1 Ene. a Dic. 31/09 | AD69: Tarifa Vigente 1 Ene. a Dic. 31/10 | AG69: Tarifa Vigente 1 Ene. a Dic. 31/11 | AJ69: Tarifa Vigente 1 Ene. a Dic. 31/12
B70: Producto Importado | F70: 323 | G70: 323 | H70: 13566 | I70: 343.9627 | J70: 343.9627 | K70: 14446.4334 | L70: 362.8806485 | M70: 362.8806485 | N70: 15240.98724 | O70: 380.48036 | P70: 380.48036 | Q70: 15980.17512 | R70: 380.48036 | S70: 380.48036 | T70: 15980.17512 | U70: 397.5258801 | V70: 397.5258801 | W70: 16696.08696 | X70: 420.1451027 | Y70: 420.1451027 | Z70: 17646.09431 | AA70: 452.370232 | AB70: 452.370232 | AC70: 18999.54975 | AD70: 461.42 | AE70: 461.42 | AF70: =AE70*42 -> 19379.64 | AG70: 476.047014 | AH70: 476.047014 | AI70: 19993.97459 | AJ70: 493.8035676 | AK70: 493.8035676 | AL70: 20739.74984
B71: Resolución 180324 de Marzo 28-03 | AM71: Estructura de tarifas de transporte de Diesel Marino en Buenaventura | AN71: IPC Real 2012 BanRep | AP71: 0.0244 | AQ71: Estructura de tarifas de transporte de Diesel Marino en Buenaventura
B72: Poliductos | C72: Tarifa Vigente hasta Febrero 28/03 | F72: Tarifa Vigente Nov. 1 a Dic. 31/03 | I72: Tarifa Vigente hasta Dic. 31/04 | AM72: Diesel Marino | AN72: Tarifa Vigente | AQ72: Diesel Marino
B73: Entregas Buenaventura | C73: 320.31 | D73: 320.31 | E73: 13453.02 | F73: 297.04 | G73: 297.04 | H73: 12475.68 | I73: 299.552928 | J73: 299.552928 | K73: 12581.22298 | AM73: Cartagena-Buenaventura (Cabotaje) | AN73: 513.241402 | AO73: 513.241402 | AP73: 21556.13889 | AQ73: Cartagena-Buenaventura (Cabotaje)
B74: Diesel Marino | I74: Tarifa Vigente Febrero 1 a Dic 31 /04 | L74: Tarifa Vigente Febrero 1 a Dic 31 /05 | O74: Tarifa Vigente Febrero 1 a Dic 31 /05 | R74: Tarifa Vigente 1 Ene. a Dic. 31/06 | U74: Tarifa Vigente 1 Ene. a Dic. 31/07 | X74: Tarifa Vigente 1 Ene. a Dic. 31/08 | AA74: Tarifa Vigente 1 Ene. a Dic. 31/09 | AD74: Tarifa Vigente 1 Ene. a Dic. 31/10 | AG74: Tarifa Vigente 1 Ene. a Dic. 31/11 | AJ74: Tarifa Vigente 1 Ene. a Dic. 31/12 | AM74: Resolución 180324 de Marzo 28-03 | AN74: Tarifa Vigente | AQ74: Resolución 180324 de Marzo 28-03
B75: Resolución 180324 de Marzo 28-03 | I75: 313.760528 | J75: 313.760528 | K75: 13177.94218 | L75: 329.664719 | M75: 329.664719 | N75: 13845.9182 | O75: 344.6476374 | P75: 344.6476374 | Q75: 14475.20077 | R75: 344.6476374 | S75: 344.6476374 | T75: 14475.20077 | U75: 358.6564219 | V75: 358.6564219 | W75: 15063.56972 | X75: 373.7980292 | Y75: 373.7980292 | Z75: 15699.51723 | AA75: 393.8279364 | AB75: 393.8279364 | AC75: 16540.77333 | AD75: =38.72*1.0649*1.055*1.0485*1.0448*1.0569*1.0767*1.02+AE40 -> 405.0929749 | AE75: =AD75 -> 405.0929749 | AF75: =AE75*42 -> 17013.90495 | AG75: 417.3397962 | AH75: 417.3397962 | AI75: 17528.27144 | AJ75: 430.2765748 | AK75: 430.2765748 | AL75: 18071.61614 | AM75: Producto Importado | AN75: 505.8523747 | AO75: 505.8523747 | AP75: 21245.79974 | AQ75: Producto Importado
B76: Diesel marino Yumbo - B/ventura | I76: 41.232928 | L76: 43.50073904 | O76: 45.61052488 | R76: 45.61052488 | U76: 47.6538764 | X76: 50.35538197 | AA76: 54.22763976 | AD76: 55.31 | AG76: 57.063327 | AJ76: 59.1917891 | AM76: Resolución 180324 de Marzo 28-03 | AQ76: Resolución 180324 de Marzo 28-03
A77: ** Nota: según resolución No 1817001 de diciembre 22 del 2003 el sector Buenaventura -Yumbo | AM77: Poliductos | AQ77: Poliductos
A78: disminuye en 30 pesos. (VIT-TEU-006379) | AM78: Entregas Buenaventura | AQ78: Entregas Buenaventura
AM79: Diesel Marino | AN79: Tarifa Vigente | AQ79: Diesel Marino
AM80: Resolución 180324 de Marzo 28-03 | AN80: 442.8501188 | AO80: 442.8501188 | AP80: 18599.70499 | AQ80: Resolución 180324 de Marzo 28-03
Z81: Meta de inflación de 5% para 2009 y tasa de interés de intervención inalterada | AD81: La estrategia de inflación objetivos en colombia | AG81: Banco de la República fija el rango meta de inflación para 2011 y mantiene inalterada tasa de interés de intervención | AJ81: Banco de la República fija el rango meta de inflación para 2011 y mantiene inalterada tasa de interés de intervención | AM81: Diesel marino Yumbo - B/ventura | AN81: 60.63606875 | AQ81: Diesel marino Yumbo - B/ventura
Z83: La Junta Directiva del Banco de la República, en su sesión de hoy, fijó la meta de inflación para el año 2009 en el rango entre 4.5% y 5.5%, con 5% como meta puntual para efectos legales. Así mismo, fijó en 4% el punto medio del rango-meta de inflación para el año 2010 y confía que en el 2011 la inflación estará en el rango-meta de largo plazo (3% +/- 1 punto porcentual). | AD83: Decisiones de política Ante el anterior panorama macroeconómico, en septiembre de 2009 la Junta Directiva del Banco de la República (JDBR) disminuyó 50 pb la tasa política, y la dejó en 4%. En octubre mantuvo inalterada la tasa de interés de referencia y fijó el objetivo de inflación para 2010 en la meta de largo plazo (entre 2% y 4%, con punto medio de 3% para efectos legales). Así mismo, decidió dar una mayor proporción de liquidez permanente para atender las necesidades de liquidez que aumentan tradicionalmente en el fin de año. Para estos efectos comprará TES en el mercado secundario y divisas por un monto de $3 billones. | AG83: La Junta Directiva del Banco de la República en su sesión de hoy definió la meta de inflación de 2011 en un rango entre 2% y 4%, con 3% como meta puntual para efectos legales. | AJ83: La Junta Directiva del Banco de la República en su sesión de hoy definió la meta de inflación de 2011 en un rango entre 2% y 4%, con 3% como meta puntual para efectos legales.
AD90: http://www.banrep.gov.co/documentos/publicaciones/inflacion/2009/septiembre_resumen.pdf | AG90: http://www.banrep.gov.co/sala-prensa/com2010.html#05112010 | AJ90: http://www.banrep.gov.co/sala-prensa/com2010.html#05112010

Sheet Rubros (hidden)
A1: Estructuras algunos rubros Zonas de Frontera - Resolución 90302 del 30 de abril de 2013
A2: Reajuste cada 1° de Febrero con base en el IPC del año anterior
B4: 2014 | C4: 2015 | D4: 2016 | E4: 2017 | F4: 2018
A5: IPC | B5: 0.0194 | C5: 0.0366 | D5: 0.0677 | E5: 0.0575
A6: IPC Ultimos 12 meses (Ajuste Margen Mayorista Junio) | D6: 0.0793
A7: Fuente: Dane
A9: Recuperación de costos de la Gasolina Corriente, Corriente Oxigenada, ACPM y ACPM con Biocombustibles
B11: 2013 | E11: 2014 | H11: 2015 | K11: 2016 | N11: 2017
A12: Zona | B12: Combustible exento | C12: Combustible sin exención | D12: Producto importado | E12: Combustible exento | F12: Combustible sin exención | G12: Producto importado | H12: Combustible exento | I12: Combustible sin exención | J12: Producto importado | K12: Combustible exento | L12: Combustible sin exención | M12: Producto importado | N12: Combustible exento | O12: Combustible sin exención | P12: Producto importado
A13: Amazonas | B13: 16.47 | C13: 16.47 | D13: 0 | E13: =B13*(1+$B$5) -> 16.789518 | F13: =C13*(1+$B$5) -> 16.789518 | G13: 0 | H13: =E13*(1+$C$5) -> 17.40401436 | I13: =F13*(1+$C$5) -> 17.40401436 | J13: =G13*(1+$C$5) -> 0 | K13: =H13*(1+$D$5) -> 18.58226613 | L13: =I13*(1+$D$5) -> 18.58226613 | M13: =J13*(1+$D$5) -> 0 | N13: =K13*(1+$E$5) -> 19.65074643 | O13: =L13*(1+$E$5) -> 19.65074643 | P13: =M13*(1+$E$5) -> 0
A14: Arauca | B14: 7.62 | C14: 16.47 | D14: 0 | E14: =B14*(1+$B$5) -> 7.767828 | F14: 16.789518 | G14: 0 | H14: =E14*(1+$C$5) -> 8.052130505 | I14: =F14*(1+$C$5) -> 17.40401436 | J14: =G14*(1+$C$5) -> 0 | K14: =H14*(1+$D$5) -> 8.59725974 | L14: =I14*(1+$D$5) -> 18.58226613 | M14: =J14*(1+$D$5) -> 0 | N14: 9.091602175 | O14: 19.65074643 | P14: 0
A15: Cubará (Boyacá) | B15: 16.47 | C15: 16.47 | D15: 0 | E15: 16.789518 | F15: 16.789518 | G15: 0 | H15: 17.40401436 | I15: 17.40401436 | J15: 0 | K15: 18.58226613 | L15: 18.58226613 | M15: 0 | N15: 19.65074643 | O15: 19.65074643 | P15: 0
A16: Guainía | B16: 7.62 | C16: 16.47 | D16: 0 | E16: 7.767828 | F16: 16.789518 | G16: 0 | H16: 8.052130505 | I16: 17.40401436 | J16: 0 | K16: 8.59725974 | L16: 18.58226613 | M16: 0 | N16: 9.091602175 | O16: 19.65074643 | P16: 0
A17: La Guajira | B17: 16.47 | C17: 16.47 | D17: 16.47 | E17: 16.789518 | F17: 16.789518 | G17: 16.789518 | H17: 17.40401436 | I17: 17.40401436 | J17: 17.40401436 | K17: 18.58226613 | L17: 18.58226613 | M17: 18.58226613 | N17: 19.65074643 | O17: 19.65074643 | P17: 19.65074643
A18: Nariño | B18: 11.21 | C18: 16.47 | D18: 0 | E18: 11.427474 | F18: 16.789518 | G18: 0 | H18: 11.84571955 | I18: 17.40401436 | J18: 0 | K18: 12.64767476 | L18: 18.58226613 | M18: 0 | N18: 13.37491606 | O18: 19.65074643 | P18: 0
A19: Putumayo | B19: 16.47 | C19: 16.47 | D19: 0 | E19: 16.789518 | F19: 16.789518 | G19: 0 | H19: 17.40401436 | I19: 17.40401436 | J19: 0 | K19: 18.58226613 | L19: 18.58226613 | M19: 0 | N19: 19.65074643 | O19: 19.65074643 | P19: 0
A20: Puerto Carreño (Vichada) | B20: 7.62 | C20: 16.47 | D20: 0 | E20: 7.767828 | F20: 16.789518 | G20: 0 | H20: 8.052130505 | I20: 17.40401436 | J20: 0 | K20: 8.59725974 | L20: 18.58226613 | M20: 0 | N20: 9.091602175 | O20: 19.65074643 | P20: 0
A21: Norte de Santander | K21: =K13 -> 18.58226613 | L21: =L13 -> 18.58226613 | M21: =M13 -> 0 | N21: 19.65074643 | O21: 19.65074643 | P21: 0
A23: Marcación de la Gasolina Motor Corriente, Corriente Oxigenada, ACPM y ACPM con Biocombustibles
L24: Punto medio meta inflación Banrep 2015 | P24: 0.03 | Q24: Punto medio meta inflación Banrep 2016 | U24: 0.03 | V24: Punto medio meta inflación Banrep 2016 | Z24: 0.03
A25: Zona | B25: 2013 | G25: 2014 | L25: 2015 | Q25: 2016 | V25: 2017
B26: Combustible exento | D26: Combustible sin exención | F26: Producto importado | G26: Combustible exento | I26: Combustible sin exención | K26: Producto importado | L26: Combustible exento | N26: Combustible sin exención | P26: Producto importado | Q26: Combustible exento | S26: Combustible sin exención | U26: Producto importado | V26: Combustible exento | X26: Combustible sin exención | Z26: Producto importado
B27: Gasolina Corriente | C27: ACPM B2 | D27: Gasolina Corriente | E27: ACPM B2 | G27: Gasolina Corriente | H27: ACPM B2 | I27: Gasolina Corriente | J27: ACPM B2 | L27: Gasolina Corriente | M27: ACPM B2 | N27: Gasolina Corriente | O27: ACPM B2 | Q27: Gasolina Corriente | R27: ACPM B2 | S27: Gasolina Corriente | T27: ACPM B2 | V27: Gasolina Corriente | W27: ACPM B2 | X27: Gasolina Corriente | Y27: ACPM B2
A28: Arauca | B28: 9.06 | C28: 8.63 | D28: 9.06 | E28: 8.63 | F28: 0 | G28: 10.52 | H28: 10.52 | I28: 10.52 | J28: 10.52 | K28: =F28*(1+$B$5) -> 0 | L28: =G28*(1+$P$24) -> 10.8356 | M28: =H28*(1+$P$24) -> 10.8356 | N28: 10.8356 | O28: 10.8356 | P28: 0 | Q28: =L28*(1+U24) -> 11.160668 | R28: =M28*(1+$U$24) -> 11.160668 | S28: =N28*(1+$U$24) -> 11.160668 | T28: =O28*(1+$U$24) -> 11.160668 | U28: =P28*(1+$U$24) -> 0 | V28: =Q28*(1+$Z$24) -> 11.49548804 | W28: =R28*(1+$Z$24) -> 11.49548804 | X28: =S28*(1+$Z$24) -> 11.49548804 | Y28: =T28*(1+$Z$24) -> 11.49548804 | Z28: =U28*(1+$Z$24) -> 0
A29: Cubará (Boyacá) | B29: 5.56 | C29: 5.13 | D29: 5.56 | E29: 5.13 | F29: 0 | G29: 6.82 | H29: 6.82 | I29: 6.82 | J29: 6.82 | K29: 0 | L29: =G29*(1+$P$24) -> 7.0246 | M29: 7.0246 | N29: 7.0246 | O29: 7.0246 | P29: 0 | Q29: =L29*(1+$U$24) -> 7.235338 | R29: 7.235338 | S29: 7.235338 | T29: =O29*(1+$U$24) -> 7.235338 | U29: 0 | V29: =Q29*(1+$Z$24)+0.01 -> 7.46239814 | W29: =R29*(1+$Z$24)+0.01 -> 7.46239814 | X29: =S29*(1+$Z$24)+0.01 -> 7.46239814 | Y29: =T29*(1+$Z$24)+0.01 -> 7.46239814 | Z29: =U29*(1+$Z$24) -> 0
A30: Guainía | B30: 9.06 | C30: 8.63 | D30: 9.06 | E30: 8.63 | F30: 0 | G30: 10.52 | H30: 10.52 | I30: 10.52 | J30: 10.52 | K30: 0 | L30: 10.8356 | M30: 10.8356 | N30: 10.8356 | O30: 10.8356 | P30: 0 | Q30: 11.160668 | R30: 11.160668 | S30: 11.160668 | T30: =O30*(1+$U$24) -> 11.160668 | U30: 0 | V30: =Q30*(1+$Z$24) -> 11.49548804 | W30: =R30*(1+$Z$24) -> 11.49548804 | X30: 11.49548804 | Y30: 11.49548804 | Z30: 0
A31: Puerto Carreño (Vichada) | B31: 9.06 | C31: 8.63 | D31: 9.06 | E31: 8.63 | F31: 0 | G31: 10.52 | H31: 10.52 | I31: 10.52 | J31: 10.52 | K31: 0 | L31: 10.8356 | M31: 10.8356 | N31: 10.8356 | O31: 10.8356 | P31: 0 | Q31: 11.160668 | R31: 11.160668 | S31: 11.160668 | T31: =O31*(1+$U$24) -> 11.160668 | U31: 0 | V31: =Q31*(1+$Z$24) -> 11.49548804 | W31: 11.49548804 | X31: 11.49548804 | Y31: 11.49548804 | Z31: 0
A32: Norte de Santander | Q32: =Q28 -> 11.160668 | R32: =R28 -> 11.160668 | S32: 11.160668 | T32: 11.160668 | U32: 0 | V32: =Q32*(1+$Z$24) -> 11.49548804 | W32: 11.49548804 | X32: 11.49548804 | Y32: 11.49548804 | Z32: 0
A34: Marcación de las actividades de distribución de la Gasolina Motor Corriente, Corriente Oxigenada, ACPM y ACPM con Biocombustibles
L35: Punto medio meta inflación Banrep 2015 | P35: 0.03 | Q35: Punto medio meta inflación Banrep 2016 | U35: 0.03 | V35: Punto medio meta inflación Banrep 2016 | Z35: 0.03
A36: Zona | B36: 2013 | G36: 2014 | L36: 2015 | Q36: 2016 | V36: 2017
B37: Combustible exento | D37: Combustible sin exención | F37: Producto importado | G37: Combustible exento | I37: Combustible sin exención | K37: Producto importado | L37: Combustible exento | N37: Combustible sin exención | P37: Producto importado | Q37: Combustible exento | S37: Combustible sin exención | U37: Producto importado | V37: Combustible exento | X37: Combustible sin exención | Z37: Producto importado
B38: Gasolina Corriente Oxigenada 8% | C38: ACPM B10 | D38: Gasolina Corriente Oxigenada 8% | E38: ACPM B10 | G38: Gasolina Corriente Oxigenada 8% | H38: ACPM B10 | I38: Gasolina Corriente Oxigenada 8% | J38: ACPM B10 | L38: Gasolina Corriente Oxigenada 8% | M38: ACPM B10 | N38: Gasolina Corriente Oxigenada 8% | O38: ACPM B10 | Q38: Gasolina Corriente Oxigenada 8% | R38: ACPM B10 | S38: Gasolina Corriente Oxigenada 8% | T38: ACPM B10 | V38: Gasolina Corriente Oxigenada 8% | W38: ACPM B10 | X38: Gasolina Corriente Oxigenada 8% | Y38: ACPM B10
A39: Amazonas | B39: 9.65 | C39: 8.79 | D39: 9.65 | E39: 8.79 | F39: 0 | G39: 10.52 | H39: 10.52 | I39: 10.52 | J39: 10.52 | K39: =F39*(1+$B$5) -> 0 | L39: =G39*(1+$P$35) -> 10.8356 | M39: =H39*(1+$P$35) -> 10.8356 | N39: 10.8356 | O39: 10.8356 | P39: 0 | Q39: =L39*(1+U35) -> 11.160668 | R39: =M39*(1+$U$35) -> 11.160668 | S39: =N39*(1+$U$35) -> 11.160668 | T39: =O39*(1+$U$35) -> 11.160668 | U39: =P39*(1+$U$35) -> 0 | V39: =Q39*(1+$Z$35) -> 11.49548804 | W39: =R39*(1+$Z$35) -> 11.49548804 | X39: =S39*(1+$Z$35) -> 11.49548804 | Y39: =T39*(1+$Z$35) -> 11.49548804 | Z39: =U39*(1+$Z$35) -> 0
A40: Nariño | B40: 6.15 | C40: 5.29 | D40: 6.15 | E40: 5.29 | F40: 0 | G40: 6.82 | H40: 6.82 | I40: 6.82 | J40: 6.82 | K40: 0 | L40: =G40*(1+$P$35) -> 7.0246 | M40: 7.0246 | N40: 7.0246 | O40: 7.0246 | P40: 0 | Q40: =L40*(1+$U$35) -> 7.235338 | R40: 7.235338 | S40: 7.235338 | T40: 7.235338 | U40: 0 | V40: =Q40*(1+$Z$35)+0.01 -> 7.46239814 | W40: 7.46239814 | X40: 7.46239814 | Y40: 7.46239814 | Z40: =U40*(1+$Z$35) -> 0
A41: Putumayo | B41: 6.15 | C41: 5.29 | D41: 6.15 | E41: 5.29 | F41: 0 | G41: 6.82 | H41: 6.82 | I41: 6.82 | J41: 6.82 | K41: 0 | L41: 7.0246 | M41: 7.0246 | N41: 7.0246 | O41: 7.0246 | P41: 0 | Q41: 7.235338 | R41: 7.235338 | S41: 7.235338 | T41: 7.235338 | U41: 0 | V41: 7.46239814 | W41: 7.46239814 | X41: 7.46239814 | Y41: 7.46239814 | Z41: 0
A42: La Guajira | B42: 9.15 | C42: 8.29 | D42: 9.15 | E42: 8.29 | F42: 3 | G42: 10.52 | H42: 10.52 | I42: 10.52 | J42: 10.52 | K42: 3.7 | L42: 10.8356 | M42: 10.8356 | N42: 10.8356 | O42: 10.8356 | P42: 3.811 | Q42: 11.160668 | R42: 11.160668 | S42: 11.160668 | T42: 11.160668 | U42: 3.92533 | V42: =Q42*(1+$Z$35) -> 11.49548804 | W42: =R42*(1+$Z$35) -> 11.49548804 | X42: =S42*(1+$Z$35) -> 11.49548804 | Y42: =T42*(1+$Z$35) -> 11.49548804 | Z42: 4.0430899
A43: Norte de Santander | Q43: =Q39 -> 11.160668 | R43: =R39 -> 11.160668 | S43: 11.160668 | T43: 11.160668 | U43: 0 | V43: 11.49548804 | W43: 11.49548804 | X43: 11.49548804 | Y43: 11.49548804 | Z43: 0
A45: Costos de conversión de las actividades de reconversión socio-laboral
A47: Zona | B47: 2013 | E47: 2014 | H47: 2015 | K47: 2016 | N47: 2017
B48: Combustible exento | C48: Combustible sin exención | D48: Producto importado | E48: Combustible exento | F48: Combustible sin exención | G48: Producto importado | H48: Combustible exento | I48: Combustible sin exención | J48: Producto importado | K48: Combustible exento | L48: Combustible sin exención | M48: Producto importado | N48: Combustible exento | O48: Combustible sin exención | P48: Producto importado
A49: Amazonas | B49: 0 | C49: 0 | D49: 0 | E49: =B49*(1+$B$5) -> 0 | F49: =C49*(1+$B$5) -> 0 | G49: 0 | H49: =E49*(1+$C$5) -> 0 | I49: =F49*(1+$C$5) -> 0 | J49: =G49*(1+$C$5) -> 0 | K49: =H49*(1+$D$5) -> 0 | L49: =I49*(1+$D$5) -> 0 | M49: =J49*(1+$D$5) -> 0 | N49: =K49*(1+$E$5) -> 0 | O49: =L49*(1+$E$5) -> 0 | P49: =M49*(1+$E$5) -> 0
A50: Arauca | B50: 78.87 | C50: 78.87 | D50: 0 | E50: =B50*(1+$B$5) -> 80.400078 | F50: 80.400078 | G50: 0 | H50: =E50*(1+$C$5) -> 83.34272085 | I50: =F50*(1+$C$5) -> 83.34272085 | J50: =G50*(1+$C$5) -> 0 | K50: =H50*(1+$D$5)-0.01 -> 88.97502306 | L50: =I50*(1+$D$5)-0.01 -> 88.97502306 | M50: =J50*(1+$D$5) -> 0 | N50: 94.09108688 | O50: 94.09108688 | P50: 0
A51: Cubará (Boyacá) | B51: 0 | C51: 0 | D51: 0 | E51: 0 | F51: 0 | G51: 0 | H51: 0 | I51: 0 | J51: 0 | K51: =H51*(1+$D$5) -> 0 | L51: 0 | M51: 0 | N51: 0 | O51: 0 | P51: 0
A52: Guainía | B52: 78.87 | C52: 78.87 | D52: 0 | E52: 80.400078 | F52: 80.400078 | G52: 0 | H52: 83.34272085 | I52: 83.34272085 | J52: 0 | K52: =H52*(1+$D$5)-0.01 -> 88.97502306 | L52: =I52*(1+$D$5)-0.01 -> 88.97502306 | M52: 0 | N52: 94.09108688 | O52: 94.09108688 | P52: 0
A53: La Guajira | B53: 58.03 | C53: 58.03 | D53: 58.03 | E53: 59.155782 | F53: 59.155782 | G53: 59.155782 | H53: 61.32088362 | I53: 61.32088362 | J53: 61.32088362 | K53: 65.47230744 | L53: 65.47230744 | M53: 65.47230744 | N53: 69.23696512 | O53: 69.23696512 | P53: 69.23696512
A54: Nariño | B54: 78.87 | C54: 78.87 | D54: 0 | E54: 80.400078 | F54: 80.400078 | G54: 0 | H54: 83.34272085 | I54: 83.34272085 | J54: 0 | K54: =H54*(1+$D$5)-0.01 -> 88.97502306 | L54: =I54*(1+$D$5)-0.01 -> 88.97502306 | M54: 0 | N54: 94.09108688 | O54: 94.09108688 | P54: 0
A55: Putumayo | B55: 0 | C55: 0 | D55: 0 | E55: 0 | F55: 0 | G55: 0 | H55: 0 | I55: 0 | J55: 0 | K55: 0 | L55: 0 | M55: 0 | N55: 0 | O55: 0 | P55: 0
A56: Puerto Carreño (Vichada) | B56: 78.87 | C56: 78.87 | D56: 0 | E56: 80.400078 | F56: 80.400078 | G56: 0 | H56: 83.34272085 | I56: 83.34272085 | J56: 0 | K56: =H56*(1+$D$5)-0.01 -> 88.97502306 | L56: =I56*(1+$D$5)-0.01 -> 88.97502306 | M56: 0 | N56: 94.09108688 | O56: 94.09108688 | P56: 0
A57: Norte de Santander | K57: 88.98 | L57: 88.98 | M57: 88.98 | N57: 94.09635 | O57: 94.09635 | P57: 94.09635
A59: Márgen mayorista de las actividades de distribución de la Gasolina Motor Corriente, Corriente Oxigenada, ACPM y ACPM con Biocombustibles
A61: Zona | B61: 2013 | E61: 2014 | H61: 2015 | K61: 2016 | N61: 2017
B62: Combustible exento | C62: Combustible sin exención | D62: Producto importado | E62: Combustible exento | F62: Combustible sin exención | G62: Producto importado | H62: Combustible exento | I62: Combustible sin exención | J62: Producto importado | K62: Combustible exento | L62: Combustible sin exención | M62: Producto importado | N62: Combustible exento | O62: Combustible sin exención | P62: Producto importado
A63: Amazonas | B63: * | C63: * | D63: 0 | E63: * | F63: * | G63: =D63*(1+$B$5) -> 0 | H63: * | I63: * | J63: =G63*(1+$B$5) -> 0 | K63: * | L63: * | M63: =J63*(1+$D$5) -> 0 | N63: * | O63: * | P63: =M63*(1+$E$5) -> 0
A64: Arauca | B64: 240 | C64: * | D64: 0 | E64: =B64*(1+$B$5) -> 244.656 | F64: * | G64: 0 | H64: =E64*(1+$C$5) -> 253.6104096 | I64: * | J64: 0 | K64: =H64*(1+$D$5) -> 270.7798343 | L64: * | M64: 0 | N64: =K64*(1+$E$5) -> 286.3496748 | O64: * | P64: =M64*(1+$E$5) -> 0
A65: Cubará (Boyacá) | B65: * | C65: * | D65: 0 | E65: * | F65: * | G65: 0 | H65: * | I65: * | J65: 0 | K65: * | L65: * | M65: 0 | N65: * | O65: * | P65: 0
A66: Guainía | B66: 240 | C66: * | D66: 0 | E66: =B66*(1+$B$5) -> 244.656 | F66: * | G66: 0 | H66: =E66*(1+$C$5) -> 253.6104096 | I66: * | J66: 0 | K66: =H66*(1+$D$5) -> 270.7798343 | L66: * | M66: 0 | N66: =K66*(1+$E$5) -> 286.3496748 | O66: * | P66: 0
A67: La Guajira | B67: 240 | C67: * | D67: 240 | E67: 326.4 | F67: * | G67: 326.4 | H67: =E67*(1+$C$5) -> 338.34624 | I67: * | J67: =G67*(1+$C$5) -> 338.34624 | K67: =H67*(1+$D$5) -> 361.2522804 | L67: * | M67: 361.2522804 | N67: =K67*(1+$E$5) -> 382.0242866 | O67: * | P67: 382.0242866
A68: Nariño | B68: * | C68: * | D68: 0 | E68: * | F68: * | G68: 0 | H68: * | I68: * | J68: =G68*(1+$B$5) -> 0 | K68: * | L68: * | M68: 0 | N68: * | O68: * | P68: 0
A69: Putumayo | B69: * | C69: * | D69: 0 | E69: * | F69: * | G69: 0 | H69: * | I69: * | J69: 0 | K69: * | L69: * | M69: 0 | N69: * | O69: * | P69: 0
A70: Puerto Carreño (Vichada) | B70: 240 | C70: * | D70: 0 | E70: =B70*(1+$B$5) -> 244.656 | F70: * | G70: 0 | H70: =E70*(1+$C$5) -> 253.6104096 | I70: * | J70: 0 | K70: =H70*(1+$D$5) -> 270.7798343 | L70: * | M70: 0 | N70: =K70*(1+$E$5) -> 286.3496748 | O70: * | P70: 0
A71: Norte de Santander | K71: =285*(1+D6) -> 307.6005 | L71: * | M71: 0 | N71: =K71*(1+$E$5) -> 325.2875287 | O71: * | P71: 0
A73: * Será el señalado en el Artículo 1° de la Resolución 91657 del 30 de octubre de 2012, o en la forma que la modifique o sustituya
A76: Márgen minorista de las actividades de distribución de la Gasolina Motor Corriente, Corriente Oxigenada, ACPM y ACPM con Biocombustibles
A78: Zona | B78: 2013 | E78: 2014 | H78: 2015 | K78: 2016 | N78: 2017
B79: Combustible exento | C79: Combustible sin exención | D79: Producto importado | E79: Combustible exento | F79: Combustible sin exención | G79: Producto importado | H79: Combustible exento | I79: Combustible sin exención | J79: Producto importado | K79: Combustible exento | L79: Combustible sin exención | M79: Producto importado | N79: Combustible exento | O79: Combustible sin exención | P79: Producto importado
A80: Amazonas | B80: * | C80: * | D80: 0 | E80: * | F80: * | G80: =D80*(1+$B$5) -> 0 | H80: * | I80: * | J80: =G80*(1+$B$5) -> 0 | K80: * | L80: * | M80: =J80*(1+$D$5) -> 0 | N80: * | O80: * | P80: =M80*(1+$E$5) -> 0
A81: Arauca | B81: 400 | C81: * | D81: 0 | E81: =B81*(1+$B$5) -> 407.76 | F81: * | G81: 0 | H81: =E81*(1+$C$5) -> 422.684016 | I81: * | J81: 0 | K81: =H81*(1+$D$5) -> 451.2997239 | L81: * | M81: 0 | N81: =K81*(1+$E$5) -> 477.249458 | O81: * | P81: =M81*(1+$E$5) -> 0
A82: Cubará (Boyacá) | B82: * | C82: * | D82: 0 | E82: * | F82: * | G82: 0 | H82: * | I82: * | J82: 0 | K82: * | L82: * | M82: 0 | N82: * | O82: * | P82: 0
A83: Guainía | B83: 400 | C83: * | D83: 0 | E83: =B83*(1+$B$5) -> 407.76 | F83: * | G83: 0 | H83: =E83*(1+$C$5) -> 422.684016 | I83: * | J83: 0 | K83: =H83*(1+$D$5) -> 451.2997239 | L83: * | M83: 0 | N83: =K83*(1+$E$5) -> 477.249458 | O83: * | P83: 0
A84: La Guajira | B84: 400 | C84: * | D84: 400 | E84: =B84*(1+$B$5) -> 407.76 | F84: * | G84: 407.76 | H84: =E84*(1+$C$5) -> 422.684016 | I84: * | J84: =G84*(1+$C$5) -> 422.684016 | K84: =H84*(1+$D$5) -> 451.2997239 | L84: * | M84: 451.2997239 | N84: =K84*(1+$E$5) -> 477.249458 | O84: * | P84: 477.249458
A85: Nariño | B85: * | C85: * | D85: 0 | E85: * | F85: * | G85: 0 | H85: * | I85: * | J85: 0 | K85: * | L85: * | M85: 0 | N85: * | O85: * | P85: 0
A86: Putumayo | B86: * | C86: * | D86: 0 | E86: * | F86: * | G86: 0 | H86: * | I86: * | J86: 0 | K86: * | L86: * | M86: 0 | N86: * | O86: * | P86: 0
A87: Puerto Carreño (Vichada) | B87: 400 | C87: * | D87: 0 | E87: =B87*(1+$B$5) -> 407.76 | F87: * | G87: 0 | H87: =E87*(1+$C$5) -> 422.684016 | I87: * | J87: 0 | K87: =H87*(1+$D$5) -> 451.2997239 | L87: * | M87: 0 | N87: =K87*(1+$E$5) -> 477.249458 | O87: * | P87: 0
A88: Norte de Santander | K88: 543.25 | L88: * | M88: 0 | N88: =K88*(1+$E$5) -> 574.486875 | O88: * | P88: 0
A90: * Será el señalado en el Artículo 1° de la Resolución 182336 del 28 de diciembre de 2011, o en la forma que la modifique o sustituya

Sheet EXTRA OXIGENADA (hidden)
A3: ($/Galón)
A4: ITEM | B4: Alcohol Carburante | C4: Gasolina Extra Base para Oxigenar | D4: Gasolina Extra Oxigenada | E4: Gasolina Extra Oxigenada | F4: Gasolina Extra Oxigenada
D5: 0.08 | E5: 0.1 | F5: 0.06
B6: 1° DE MARZO DE 2017 | C6: 1° DE MARZO DE 2017 | D6: 1° DE MARZO DE 2017 | E6: 1° DE MARZO DE 2017 | F6: 1° DE MARZO DE 2017
A7: Ingreso al productor | B7: 8211.28 | C7: 5110 | D7: 5358.1 | E7: 5420.13 | F7: 5296.08
A8: Tarifa de Marcación | C8: 7.447818 | D8: 7.447818 | E8: 7.447818 | F8: 7.447818
A9: Tarifa de transporte por poliductos y/o manejo | C9: (*) | D9: (*) | E9: (*) | F9: (*)
A10: Margen plan de continuidad (a) | C10: 71.51 | D10: 71.51 | E10: 71.51 | F10: 71.51
A11: Impuesto Nacional a la Gasolina y al ACPM | C11: 930 | D11: 855.6 | E11: 837 | F11: 874.2
A12: Impuesto sobre las Ventas | C12: (******) | D12: (******) | E12: (******) | F12: (******)
A13: Impuesto al carbono | C13: 135 | D13: 124.2 | E13: 121.5 | F13: 126.9
A14: Precio de venta al distribuidor Mayorista | C14: (**) | D14: (**) | E14: (**) | F14: (**)
A15: Margen mayorista
A16: Sobretasa | C16: 1776.95 | D16: 1634.79 | E16: 1599.26 | F16: 1670.33
A17: Precio de venta en planta de abasto mayorista
A18: Margen minorista
A19: Pérdida evaporación
A20: Transporte planta de abasto a estación de servicio
A21: Precio de venta al público | C21: (**) | D21: (**) | E21: (**) | F21: (**)
D22: (****) | E22: (****)
D23: (*****) | E23: (*****)
D24: (****) | E24: (****)
D25: (***) | E25: (***)

Sheet BIODIESEL (hidden)
A2: =CONCATENATE("ESTRUCTURAS DE PRECIOS PARA LA MEZCLA DE BIOCOMBUSTIBLE PARA USO EN MOTORES DIESEL CON EL ACPM VIGENTES A PARTIR DEL 01 DE ",'[9]COMBUSTIBLES '!$A$1) -> ESTRUCTURAS DE PRECIOS PARA LA MEZCLA DE BIOCOMBUSTIBLE PARA USO EN MOTORES DIESEL CON EL ACPM VIGENTES A PARTIR DEL 01 DE MARZO DE 2013
A3: ($/Galón)
A4: ITEM | B4: BIOCOMBUSTIBLE B100 | C4: ACPM Base para Mezcla al 10% (1) | D4: ACPM Base para Mezcla al 8% (2) | E4: Biodiesel B2 Para Mezclas de B10 | F4: Biodiesel B4 | G4: Biodiesel B8 | H4: Biodiesel B10 | I4: Biodiesel B2 Para Mezclas de B8
B5: 1 | E5: 0.02 | F5: 0.04 | G5: 0.08 | H5: 0.1 | I5: 0.02
B6: 1° DE MARZO DE 2017 | C6: 1° DE MARZO DE 2017 | D6: 1° DE MARZO DE 2017 | E6: 1° DE MARZO DE 2017 | F6: 1° DE MARZO DE 2017 | G6: 1° DE MARZO DE 2017 | H6: 1° DE MARZO DE 2017 | I6: 1° DE MARZO DE 2017
A7: Ingreso al productor | B7: 10574.9 | C7: 3999.53 | D7: 3999.53
A8: Proporción Ingreso al productor del ACPM | E8: 3919.54 | F8: 3839.55 | G8: 3679.57 | H8: 3599.58 | I8: 3919.55
A9: Proporción Ingreso al productor del Biocombustible | E9: 211.5 | F9: 423 | G9: 845.99 | H9: 1057.49 | I9: 211.5
A10: Ingreso al productor de la mezcla de ACPM- Biocombustible (B2, B4, B8, B10) | E10: 4131.04 | F10: 4262.55 | G10: 4525.56 | H10: 4657.07 | I10: 4131.05
A11: Impuesto Nacional a la Gasolina y al ACPM | C11: 469 | D11: 469 | E11: 459.62 | F11: 450.24 | G11: 431.48 | H11: 422.1 | I11: 459.62
A12: Impuesto sobre las Ventas | C12: (******) | D12: (******) | E12: (******) | F12: (******) | G12: (******) | H12: (******)
A13: Impuesto al carbono | C13: 152 | D13: 152 | E13: 148.96 | F13: 145.92 | G13: 139.84 | H13: 136.8
A14: Tarifa de marcación | C14: 7.447818 | D14: 7.447818 | E14: 7.447818 | F14: 7.447818 | G14: 7.447818 | H14: 7.447818 | I14: 5.13
A15: Proporción Tarifa de transporte por poliductos (*) | C15: (*) | D15: (*) | E15: (*) | F15: (*) | G15: (*) | H15: (*) | I15: (*)
A16: Tarifa de transporte del biocombustible (**) | E16: (**) | F16: (**) | G16: (**) | H16: (**) | I16: (**)
A17: Margen plan de continuidad (a) | C17: 71.51 | D17: 71.51 | E17: 71.51 | F17: 71.51 | G17: 71.51 | H17: 71.51 | I17: 71.51
A18: Precio máximo de venta al distribuidor mayorista
A19: Margen al distribuidor mayorista | H19: (****) | I19: (****)
A20: Precio máximo en planta de abastecimiento mayorista | H20: (***) | I20: (***)
A21: Margen del distribuidor minorista | H21: (****) | I21: (****)
A22: Transporte de la planta de abastecimiento mayorista a estación | H22: (****) | I22: (****)
A23: Sobretasa | G23: 301.48 | H23: 301.48 | I23: 301.48
A24: Precio máximo de venta por galón incluida la sobretasa | H24: (***) | I24: (***)
A26: (1) Estructura de precio para el ACPM que se utiliza con destino a mezcla con un 10% de biocombustible para uso de motores diesel
A28: (2) Estructura de precio para el ACPM que se utiliza con destino a mezcla con un 8% de biocombustible para uso de motores diesel
A30: (*) Corresponde al costo máximo del transporte a través del sistema de poliductos, definido en la Resolución 18 088 del 30 de enero de 2003, modificada por las resoluciones 18 1701, 18 0320, 181300 y 18 0989, del 22 de diciembre de 2003, 27 de febrero de 2006, 23 de agosto de 2007 y 17 de junio de 2011, respectivamente
A32: (**) Se calculará y ajustará de acuerdo a lo señalado en las resoluciones 181661 del 23 de Octubre de 2007 , 181639 del 29 de septiembre de 2008, 180294 del 26 de febrero de 2009 y 181452 del 27 de Agosto de 2009.
A34: (***) Se calculará en cada sitio de entrega habilitado dependiente de la tarifa de transporte por poliductos que le corresponda, así como el margen al distribuidor mayorista y del transporte entre la planta de abastecimiento y la estación de servicio según sea el caso.
A36: (****) Se calcularán y ajustaran a lo señalado en el Articulo 2° de la Resolución 18 1549 del 29 de noviembre de 2004, en el Articulo 1° de la Resolución 18 0769 del 29 de mayo de 2007, en la Resolución 18 1837 del 4 de noviembre de 2011 y en el articulo 1° y 3° de la Resolución 18 2336 del 28 de diciembre de 2011, Resolución número 18 1254 del 30 de julio de 2012.
A38: (a) Dicho margen está dirigido a remunerar a Ecopetrol S.A. las inversiones en el plan de continuidad para el abastecimiento del país y específicamente las expansión del sistema Pozos Colorados - Galán a 60 mil barriles por día de capacidad y parte el montaje del poliducto Mansilla - Tocancipá.

Sheet COMBUSTIBLES (hidden)
A1: SEPTIEMBRE DE 2012
A3: ($/Galón)
A4: ITEM | B4: Gasolina Corriente | C4: Gasolina Extra | E4: Diesel (ACPM) | F4: Avigás
C5: Ecopetrol | D5: Reficar | F5: Barranca
B6: 1° DE MARZO DE 2017 | C6: 1° DE MARZO DE 2017 | D6: 1° DE MARZO DE 2017 | E6: 1° DE MARZO DE 2017 | F6: 1° DE MARZO DE 2017
A7: Ingreso al productor | B7: 3893.32 | C7: 5110 | D7: 5110 | E7: 3999.53 | F7: 5420
A8: Tarifa de marcación | B8: 7.447818 | C8: 7.447818 | D8: 7.447818 | E8: 7.447818
A9: Tarifa de transporte por poliductos y/o manejo | B9: (*) | C9: (*) | D9: (*) | E9: (*) | F9: (*)
A10: Margen plan de continuidad (a) | B10: 71.51 | C10: 71.51 | D10: 71.51 | E10: 71.51
A11: Impuesto Nacional a la Gasolina y al ACPM | B11: 490 | C11: 930 | D11: 930 | E11: 469
A12: Impuesto sobre las Ventas | B12: (******) | C12: (******) | D12: (******) | E12: (******) | F12: (******)
A13: Impuesto al carbono | B13: 135 | C13: 135 | D13: 135 | E13: 152
A14: Precio máximo de venta al Distribuidor Mayorista | B14: (**) | C14: (**) | D14: (**) | E14: (**)
A15: Margen mayorista | B15: (***) | E15: (***)
A16: Sobretasa | B16: 1269.69 | C16: 1776.95 | D16: 1776.95 | E16: 301.48
A17: Precio de venta en planta de abasto mayorista | B17: (**) | C17: (**) | D17: (**) | E17: (**)
A18: Margen minorista | B18: (***) | E18: (***)
A19: Pérdida evaporación | B19: (****)
A20: Transporte planta de abasto a estación de servicio | B20: (***) | E20: (***)
A21: Precio de venta al público | B21: (**) | C21: (**) | D21: (**) | E21: (**)

Sheet CORRIENTE OXIGENADA (hidden)
A3: ($/Galón)
A4: ITEM | B4: Alcohol Carburante | C4: Gasolina Corriente Base para Oxigenar 8% | D4: Gasolina Corriente Oxigenada | E4: Gasolina Corriente Oxigenada | F4: Gasolina Corriente Oxigenada
D5: 0.08 | E5: 0.1 | F5: 0.06
B6: 1° DE MARZO DE 2017 | C6: 1° DE MARZO DE 2017 | D6: 1° DE MARZO DE 2017 | E6: 1° DE MARZO DE 2017 | F6: 1° DE MARZO DE 2017
A7: Ingreso al productor | B7: 8211.28 | C7: 3893.32
A8: Proporción Ingreso al productor de la Gasolina Motor Corriente | D8: 3581.85 | E8: 3503.99 | F8: 3659.73
A9: Proporción Ingreso al productor del Alcohol Carburante | D9: 656.9 | E9: 821.13 | F9: 492.68
A10: Ingreso al productor de la Gasolina Motor Corriente Oxigenada | D10: 4238.75 | E10: 4325.12 | F10: 4152.4
A11: Impuesto Nacional a la Gasolina y al ACPM | C11: 490 | D11: 450.8 | E11: 441 | F11: 460.6
A12: Impuesto sobre las Ventas | C12: (******) | D12: (******) | E12: (******) | F12: (******)
A13: Impuesto al carbono | C13: 135 | D13: 124.2 | E13: 121.5 | F13: 126.9
A14: Tarifa de marcación | C14: 7.447818 | D14: 7.447818 | E14: 7.447818 | F14: 7.447818
A15: Proporción Tarifa de transporte por poliductos de Gasolina Motor Corriente | D15: (*) | E15: (*) | F15: (*)
A16: Proporción tarifa de transporte del Alcohol Carburante | D16: (**) | E16: (**) | F16: (**)
A17: Margen plan de continuidad (a) | C17: 71.51 | D17: 71.51 | E17: 71.51 | F17: 71.51
A18: Precio máximo de venta al distribuidor mayorista | C18: (***) | D18: (***) | E18: (***) | F18: (***)
A19: Sobretasa | C19: 1269.69 | D19: 1168.12 | E19: 1142.73 | F19: 1193.51
A20: Margen al distribuidor mayorista | D20: (****) | E20: (****) | F20: (****)
A21: Precio máximo en planta de abastecimiento mayorista | D21: (***) | E21: (***) | F21: (***)
A22: Margen del distribuidor minorista | D22: (****) | E22: (****) | F22: (****)
A23: Perdida por evaporación | D23: (*****) | E23: (*****) | F23: (*****)
A24: Transporte planta de abasto a estación de servicio | D24: (****) | E24: (****) | F24: (****)
A25: Precio máximo de venta por galón incluida la sobretasa | D25: (***) | E25: (***) | F25: (***)
A27: * Estos ítems se publican como una referencia y se calculan de acuerdo con lo dispuesto en las Resoluciones 18 1549 del 29 de Noviembre de 2004 y 18 0822 del 29 de Junio de 2005, 18 0822 del 29 de Junio de 2005, 180769 del 29 de Mayo de 2007, en el Artículo 1º de la Resolución 18 1334 del 29 de agosto de 2007, Resolución 181231 del 29 de Julio del 2008, Resoluciones 181047 y 181837 de 2011, y aquellas que las modifiquen o deroguen. Modificado por la Resolución 182336 del 28 de Diciembre de 2011.
A28: * Proporción del 92% de la tarifa de transporte por poliductos de la Gasolina Motor Corriente. Se calculará en cada sitio de entrega como el costo máximo de transporte de la gasolina motor corriente a través del sistema de poliductos, definido en la Resolución 18 0088 del 30 de enero de 2003, modificada por las resoluciones 18 1701, 18 0230 y 18 1300, del 22 de diciembre de 2003, 27 de febrero de 2006 y 23 de agosto de 2007, respectivamente. Modificación de porcentajes en Resolución 18 2368 de diciembre de 2009
A29: ** Proporción del 8% de la tarifa de transporte de Alcohol Carburante se calculará como el costo máximo de transporte de alcohol carburante entre las plantas destiladoras de dicho producto, ubicadas en el suroccidente del país y el eje cafetero, y las plantas de abastecimiento mayorista en las cuales se realizará la mezcla, definido en el Artículo 3º de la Resolución 18 1088 del 23 de agosto de 2005. Modificación de porcentajes en Resolución 18 2368 de diciembre de 2009
A30: *** Los ítems de la estructura de precios está regulada por la Resolución 8 2438 del 23 de diciembre de 1998 y las resoluciones que la modifiquen o deroguen.
A31: **** Margen dirigido a remunerar a Ecopetrol S.A. las inversiones en el plan de continuidad para el abastecimiento del país. Resolución 18 2370 de Dic 29 de 2009

Sheet OTROS DPTOS - BASE (hidden)
B1: Nariño-Putumayo | E1: Boyacá-Cesar-Vichada-Arauca y Gainía
B2: 91,52% IP Gasolina Motor Corriente | C2: ='COMBUSTIBLES '!B7*91.52% -> 3563.166464 | E2: 89,06% IP Gasolina Motor Corriente | F2: ='COMBUSTIBLES '!B7*89.06% -> 3467.390792 | G2: =F2*98% -> 3398.042976 | J2: 24000
B3: 84,27% IP ACPM | C3: ='COMBUSTIBLES '!E7*84.27% -> 3370.403931 | D3: =C3*98% -> 3302.995852 | E3: 78,39% IP ACPM | F3: ='COMBUSTIBLES '!E7*78.39% -> 3135.231567 | G3: =F3*98% -> 3072.526936 | J3: 30418
J4: =J3/J2-1 -> 0.2674166667
B5: Amazonas | E5: Norte de Santander
B6: 86,02% IP Gasolina Motor Corriente | C6: ='COMBUSTIBLES '!B7*86.02% -> 3349.033864 | E6: 100% IP Gasolina Motor Corriente | F6: ='COMBUSTIBLES '!B7*100% -> 3893.32
B7: 80,91% IP ACPM | C7: ='COMBUSTIBLES '!E7*80.91% -> 3236.019723 | D7: =C7*98% -> 3171.299329 | E7: 84,83% IP ACPM | F7: ='COMBUSTIBLES '!E7*84.83% -> 3392.801299 | G7: =F7*98% -> 3324.945273
B8: Componentes de la estructura de precio (Ventas a las estaciones de servicio desde la planta de abastecimiento y centro de acopio ubicados en el área metropolitana de Cúcuta). | E8: Componentes de la estructura de precio (Ventas a las estaciones de servicio desde la planta de abastecimiento y centro de acopio ubicados en el área metropolitana de Cúcuta).
B9: ITEM | C9: GASOLINA MOTOR CORRIENTE | E9: ITEM | F9: ACPM -B2
C10: (Pesos por Galón) | F10: (Pesos por Galón) | H10: 0.08 | I10: 0.1 | J10: 0.07
A11: Ingreso al Productor | B11: 1,Ingreso al Productor (1) | C11: =+C2 -> 3563.166464 | E11: propIP acpm 98% | F11: =F3*98% -> 3072.526936 | G11: =+F11/0.98 -> 3135.231567 | H11: =+G11*(1-H10) -> 2884.413042 | I11: =+G11*(1-I10) -> 2821.70841 | J11: =+G11*(1-J10) -> 2915.765357
A12: Tarifa de transporte (poliductos y biocombustibles) | B12: 2, Tarifa de Transporte por poliductos de la Gasolina Motor Corriente | C12: =+'TARIFAS HISTORICO POLIDUCTO'!AO13 -> 139.1041471 | E12: ip biodiesel 2% | F12: =+BIODIESEL!E9 -> 211.5 | G12: =+BIODIESEL!B7 -> 10574.9 | H12: =+G12*H10 -> 845.992 | I12: =+G12*I10 -> 1057.49 | J12: =+G12*J10 -> 740.243
A13: Costo de cesión | B13: 3, Costo de la cesión de las actividades de distribución | C13: =75.86*1.0396+0.01 -> 78.874056 | D13: Ingreso al Productor | E13: 1,Ingreso al Productor (2) | F13: =+F11+F12 -> 3284.026936 | H13: =+H11+H12 -> 3730.405042 | I13: =+I11+I12 -> 3879.19841 | J13: =+J11+J12 -> 3656.008357
A14: Recuperación costos | B14: 4, Rubro de Recuperación de costos | C14: 7.62 | E14: poliductos b2 | F14: =+C12 -> 139.1041471
A15: Tarifa de marcación | B15: 5, Tarifa de Marcación | C15: 5.56 | E15: transporte biodiesel | F15: 8.18
A16: Margen plan de continuidad | B16: 6, Margen plan de continuidad (a) | C16: 86.42 | D16: Tarifa de transporte (poliductos y biocombustibles) | E16: 2, Tarifa de Transporte por poliductos del ACPM | F16: =+F14+F15 -> 147.2841471
A17: Precio Máx. de Venta al Distribuidor Mayorista | B17: 7, Precio Máximo de Venta al Distribuidor Mayorista | C17: =+SUM(C11:C16)-0.01 -> 3880.734667 | D17: Costo de cesión | E17: 3, Costo de la cesión de las actividades de distribución | F17: =+C13 -> 78.874056
A18: Margen del distribuidor mayorista | B18: 8, Margen al distribuidor mayorista(2) | C18: 240 | D18: Recuperación costos | E18: 4, Rubro de Recuperación de costos | F18: =+C14 -> 7.62
A19: Transporte plantas no interconectadas* | B19: 9, Transporte de la planta de abastecimiento mayorista al centro de acopio y/o planta de abastecimiento en el departamento | C19: 662 | D19: Tarifa de marcación | E19: 5, Tarifa de Marcación | F19: =+BIODIESEL!E14 -> 7.447818 | J19: =D3+F12 -> 3514.495852
A20: Sobretasa | B20: 10, Sobretasa | C20: 475 | D20: Margen plan de continuidad | E20: 6, Margen plan de continuidad (a) | F20: 86.42
A21: Precio Máximo en Planta de Abasto Mayorista | B21: 11, Precio Máximo en Centro de Acopio | C21: =+C17+C18+C19+C20 -> 5257.734667 | D21: Precio Máx. de Venta al Distribuidor Mayorista | E21: 7, Precio Máximo de Venta al Distribuidor Mayorista | F21: =+F13+F16+F17+F18+F19+F20-0.01 -> 3611.662957
A22: Margen del distribuidor minorista | B22: 12, Margen del distribuidor minorista | C22: 400 | D22: Margen del distribuidor mayorista | E22: 8, Margen al distribuidor mayorista(3) | F22: 240
A23: Pérdida por evaporación** | B23: 13, Pérdida por evaporación | C23: 19.24 | D23: Transporte plantas no interconectadas* | E23: 9, Transporte de la planta de abastecimiento mayorista al centro de acopio y/o planta de abastecimiento en el departamento | F23: 662
A24: Transporte planta abasto mayorista a estación*** | B24: 14, Transporte de la planta y/o centro de acopio a la estación | C24: 47.82 | D24: Precio Máximo en Planta de Abasto Mayorista | E24: 10, Precio Máximo en Centro de Acopio | F24: =+F21+F22+F23 -> 4513.662957
A25: Precio Máximo de Venta al público por galón | B25: 15, Precio Máximo de Venta por Galón Incluida la Sobretasa, | C25: =+SUM(C21:C24) -> 5724.794667 | D25: Margen del distribuidor minorista | E25: 11, Margen del distribuidor minorista | F25: 400
A26: IVA | D26: Transporte planta abasto mayorista a estación*** | E26: 12, Transporte de la planta y/o centro de acopio a la estación | F26: 47.82
A28: Impuesto Global | E28: 13, Precio Venta al Público sin Sobretasa | F28: =+F24+F25+F26+0.009 -> 4961.491957
D29: Sobretasa | E29: 14, Sobretasa | F29: 204
D30: Precio Máximo de Venta al público por galón | E30: 15, Precio Máximo de Venta por Galón Incluida la Sobretasa, | F30: =+F28+F29 -> 5165.491957
D32: =C35*1.0396 -> 7.921752
C33: Recuperación costos | F33: Costo de cesión
C34: Con cupo | D34: Fuera UPME | F34: Con cupo | G34: Fuera UPME
B35: Arauca | C35: =+C14 -> 7.62 | D35: 16.47 | E35: =+B35 -> Arauca | F35: 78.8702763 | G35: 78.8702763
B36: Norte Santander | C36: 11.21 | D36: 16.47 | E36: Norte Santander | F36: 78.8702763 | G36: 78.8702763
B37: Nariño | C37: 11.21 | D37: 16.47 | E37: Nariño
B38: Cesar | C38: 16.47 | D38: 16.47 | E38: Cesar
B39: cesar casco urbano | C39: 16.47 | D39: 16.47 | E39: cesar casco urbano | F39: 78.8702763 | G39: 78.8702763
B40: Putumayo | C40: 16.47 | D40: 16.47 | E40: Putumayo
B41: Guajira | C41: 16.47 | D41: 0 | E41: Guajira | F41: 58.03 | G41: 58.03
B42: Choco | C42: 16.47 | D42: 16.47 | E42: Choco
B43: Amazonas - Boyacá | C43: 16.47 | D43: 16.47 | E43: Amazonas - Boyacá
B44: Guania | C44: 10.93524078 | D44: 16.47 | E44: Guania | F44: 78.8702763 | G44: 78.8702763
B45: Vaupes | C45: 16.47 | D45: 16.47 | E45: Vaupes
B46: Vichada | C46: 16.47 | D46: 16.47 | E46: Vichada | F46: 78.8702763 | G46: 78.8702763
B47: Guajira nacional | C47: 16.47 | D47: 16.47 | E47: Guajira nacional | F47: 0 | G47: 0
B48: Guajira importado | C48: =+C47 -> 16.47 | D48: =+D47 -> 16.47 | E48: Guajira importado
E49: 0
B51: Transporte Etanol
B52: Planta | C52: proporcion del 8% | D52: proporcion del 10%
B53: Bogotá | C53: 36.6866518 | D53: 45.85831475
B54: Mansilla | C54: 37.99300142 | D54: 47.49125177 | E54: Margen planta no internconectada (Planta de Neiva) para Putumayo | F54: 50
B55: Yumbo/Mulalo | C55: 6.531748095 | D55: 8.164685118
B56: Medellín | C56: 32.11442813 | D56: 40.14303517 | E56: SEBASTOPOL | F56: 650.76 | G56: =+F56*8% -> 52.0608
B57: Rionegro | C57: 35.38030218 | D57: 44.22537772
B58: Cartago | C58: 18.5066196 | D58: 23.1332745
B59: Pereira | C59: 19.48638182 | D59: 24.35797727
B60: Buga | C60: 5.769710817 | D60: 7.212138521
B61: Manizáles | C61: 20.46614403 | D61: 25.58268004
B62: Buenaventura | C62: 13.60780853 | D62: 17.00976066
B63: Mariquita | C63: 27.86879187 | D63: 34.83598984
B64: Puerto Boyacá – Boyacá (Planta Puerto Niño) | C64: 37.762451 | D64: 47.20306375
B65: Girón y Barrancabermeja – Santander (Plantas Girón, Chimitá y Lisama) | C65: 59.62492263 | D65: 74.53115329
B66: Turbo | C66: 44.10007675 | D66: 55.12509594
B67: Girardota | C67: 35.36738829 | D67: 44.20923536
B68: La Pintada | C68: 35.36738829 | D68: 44.20923536
B69: Sebastopol | C69: 39.2970981 | D69: 49.12137262
B70: Cartagena | C70: 88.79288 | D70: 110.9911
B71: Barranquilla | C71: 96.67636 | D71: 120.84545
B72: Sito Nuevo | C72: 88.79288 | D72: 110.9911
B73: Neiva | C73: 37.37590663 | D73: 46.71988329
B74: Gualanday | C74: 22.96697066 | D74: 28.70871333
B75: La Dorada (Caldas) | C75: 31.53392 | D75: 39.4174
B77: base guajira sobretasa
B78: corriente | C78: acpm
B79: 1900 | C79: 1900
B81: 1900 | C81: 3400
B83: =1900*25% -> 475 | C83: =1900*6% -> 114
B84: =1900*25% -> 475 | C84: =3400*6% -> 204

Sheet NORTEDESANTANDER - BASE (hidden)
B1: Componentes de la estructura de precio (Ventas a las estaciones de servicio desde la planta de abastecimiento y centro de acopio ubicados en el área metropolitana de Cúcuta). | E1: Componentes de la estructura de precio (Ventas a las estaciones de servicio desde la planta de abastecimiento y centro de acopio ubicados en el área metropolitana de Cúcuta).
B2: ITEM | C2: GASOLINA MOTOR CORRIENTE | E2: ITEM | F2: ACPM B2
C3: (Pesos por Galón) | D3: 1 | F3: (Pesos por Galón) | G3: 0.8411 | H3: 0.08 | I3: 0.1 | J3: 0.07
A4: Ingreso al Productor | B4: 1,Ingreso al Productor (1) | C4: ='OTROS DPTOS - BASE'!F6 -> 3893.32 | D4: =C4-3663.97 -> 229.35 | E4: propIP acpm 98% | F4: ='OTROS DPTOS - BASE'!G7 -> 3324.945273 | G4: =+F4/0.98 -> 3392.801299 | H4: =+G4*(1-H3) -> 3121.377195 | I4: =+G4*(1-I3) -> 3053.521169 | J4: =+G4*(1-J3) -> 3155.305208
A5: Tarifa de transporte (poliductos y biocombustibles) | B5: 2, Tarifa de Transporte por poliductos de la Gasolina Motor Corriente | C5: =+'TARIFAS HISTORICO POLIDUCTO'!AY13 -> 152.0028573 | E5: ip biodiesel 2% | F5: =+BIODIESEL!B7*0.02 -> 211.498 | G5: =+BIODIESEL!B7 -> 10574.9 | H5: =+G5*H3 -> 845.992 | I5: =+G5*I3 -> 1057.49 | J5: =+G5*J3 -> 740.243
A6: Costo de cesión | B6: 3, Costo de la cesión de las actividades de distribución | C6: 88.98 | D6: Ingreso al Productor | E6: 1,Ingreso al Productor (2) | F6: =+F4+F5 -> 3536.443273 | H6: =+H4+H5 -> 3967.369195 | I6: =+I4+I5 -> 4111.011169 | J6: =+J4+J5 -> 3895.548208
A7: Recuperación costos | B7: 4, Rubro de Recuperación de costos | C7: 18.58 | E7: A Tarifa del Transporte por poliductos del B2 | F7: =+C5 -> 152.0028573
A8: Tarifa de marcación | B8: 5, Tarifa de Marcación | C8: 11.16 | E8: B Proporción - Tarifa del Transporte del Biodiesel (2%) | F8: 9.24
A9: Margen plan de continuidad | B9: 6, Margen plan de continuidad (a) | C9: 71.51 | D9: Costo de cesión | E9: 3, Costo de la cesión de las actividades de distribución | F9: =+C6 -> 88.98 | G9: =+G4/'COMBUSTIBLES '!E7 -> 0.8483
A10: Precio Máx. de Venta al Distribuidor Mayorista | B10: 7, Precio Máximo de Venta al Distribuidor Mayorista | C10: =+SUM(C4:C9) -> 4235.552857 | D10: Recuperación costos | E10: 4, Rubro de Recuperación de costos | F10: =+C7 -> 18.58
A11: Margen del distribuidor mayorista | B11: 8, Margen al distribuidor mayorista(2) | C11: 285 | D11: Tarifa de marcación | E11: 5, Tarifa de Marcación | F11: 11.16 | H11: 6.82
A12: Transporte plantas no interconectadas* | B12: 9, Transporte de la planta de abastecimiento mayorista al centro de acopio y/o planta de abastecimiento en el departamento | C12: 233.77 | D12: Margen plan de continuidad | E12: 6, Margen plan de continuidad (a) | F12: 71.51 | H12: 3.7
A13: Sobretasa | B13: 10, Sobretasa | C13: 475 | D13: Precio Máx. de Venta al Distribuidor Mayorista | E13: 7, Precio Máximo de Venta al Distribuidor Mayorista | F13: =+F6+F7+F8+F9+F10+F11+F12 -> 3887.91613 | H13: =H11+H12 -> 10.52
A14: Precio Máximo en Planta de Abasto Mayorista | B14: 11, Precio Máximo en Centro de Acopio | C14: =+C10+C11+C12+C13 -> 5229.322857 | D14: Margen del distribuidor mayorista | E14: 8, Margen al distribuidor mayorista(3) | F14: 285
A15: Margen del distribuidor minorista | B15: 12, Margen del distribuidor minorista | C15: 543.25 | D15: Transporte plantas no interconectadas* | E15: 9, Transporte de la planta de abastecimiento mayorista al centro de acopio y/o planta de abastecimiento en el departamento | F15: 233.77
A16: Pérdida por evaporación** | B16: 13, Pérdida por evaporación | C16: 19.44 | D16: Sobretasa | E16: 14, Sobretasa | F16: 204
A17: Transporte planta abasto mayorista a estación*** | B17: 14, Transporte de la planta y/o centro de acopio a la estación | C17: 53.95 | D17: Precio Máximo en Planta de Abasto Mayorista | E17: 10, Precio Máximo en Planta de Abastecimiento | F17: =+F13+F14+F15+F16 -> 4610.68613
A18: Precio Máximo de Venta al público por galón | B18: 15, Precio Máximo de Venta por Galón Incluida la Sobretasa, | C18: =+SUM(C14:C17) -> 5845.962857 | D18: Margen del distribuidor minorista | E18: 11, Margen del distribuidor minorista | F18: =C15 -> 543.25
A19: IVA | D19: Transporte planta abasto mayorista a estación*** | E19: 12, Transporte de la planta de abastecimiento a la estación | F19: =C17 -> 53.95
A20: Impuesto al carbono | C20: ='COMBUSTIBLES '!B13 -> 135 | E20: 13, Precio Venta por Galón Incluida la Sobretasa | F20: =+F17+F18+F19 -> 5207.88613
E21: Impuesto al carbono | F21: ='COMBUSTIBLES '!E13*98% -> 148.96
D23: =C26*1.0396 -> 19.315768
C24: Recuperación costos | F24: Costo de cesión
C25: Con cupo | D25: Fuera UPME | F25: Con cupo | G25: Fuera UPME
B26: Arauca | C26: =+C7 -> 18.58 | D26: 16.47 | E26: =+B26 -> Arauca | F26: 78.8702763 | G26: 78.8702763
B27: Norte Santander | C27: 11.21 | D27: 16.47 | E27: Norte Santander | F27: 78.8702763 | G27: 78.8702763
B28: Nariño | C28: 11.21 | D28: 16.47 | E28: Nariño
B29: Cesar | C29: 16.47 | D29: 16.47 | E29: Cesar
B30: cesar casco urbano | C30: 16.47 | D30: 16.47 | E30: cesar casco urbano | F30: 78.8702763 | G30: 78.8702763
B31: Putumayo | C31: 16.47 | D31: 16.47 | E31: Putumayo
B32: Guajira | C32: 16.47 | D32: 0 | E32: Guajira | F32: 58.03 | G32: 58.03
B33: Choco | C33: 16.47 | D33: 16.47 | E33: Choco
B34: Amazonas - Boyacá | C34: 16.47 | D34: 16.47 | E34: Amazonas - Boyacá
B35: Guania | C35: 10.93524078 | D35: 16.47 | E35: Guania | F35: 78.8702763 | G35: 78.8702763
B36: Vaupes | C36: 16.47 | D36: 16.47 | E36: Vaupes
B37: Vichada | C37: 16.47 | D37: 16.47 | E37: Vichada | F37: 78.8702763 | G37: 78.8702763
B38: Guajira nacional | C38: 16.47 | D38: 16.47 | E38: Guajira nacional | F38: 0 | G38: 0
B39: Guajira importado | C39: =+C38 -> 16.47 | D39: =+D38 -> 16.47 | E39: Guajira importado
E40: 0
B42: Transporte Etanol
B43: Planta | C43: proporcion del 8% | D43: proporcion del 10%
B44: Bogotá | C44: 36.6866518 | D44: 45.85831475
B45: Mansilla | C45: 37.99300142 | D45: 47.49125177 | E45: Margen planta no internconectada (Planta de Neiva) para Putumayo | F45: 50
B46: Yumbo/Mulalo | C46: 6.531748095 | D46: 8.164685118
B47: Medellín | C47: 32.11442813 | D47: 40.14303517 | E47: SEBASTOPOL | F47: 650.76 | G47: =+F47*8% -> 52.0608
B48: Rionegro | C48: 35.38030218 | D48: 44.22537772
B49: Cartago | C49: 18.5066196 | D49: 23.1332745
B50: Pereira | C50: 19.48638182 | D50: 24.35797727
B51: Buga | C51: 5.769710817 | D51: 7.212138521
B52: Manizáles | C52: 20.46614403 | D52: 25.58268004
B53: Buenaventura | C53: 13.60780853 | D53: 17.00976066
B54: Mariquita | C54: 27.86879187 | D54: 34.83598984
B55: Puerto Boyacá – Boyacá (Planta Puerto Niño) | C55: 37.762451 | D55: 47.20306375
B56: Girón y Barrancabermeja – Santander (Plantas Girón, Chimitá y Lisama) | C56: 59.62492263 | D56: 74.53115329
B57: Turbo | C57: 44.10007675 | D57: 55.12509594
B58: Girardota | C58: 35.36738829 | D58: 44.20923536
B59: La Pintada | C59: 35.36738829 | D59: 44.20923536
B60: Sebastopol | C60: 39.2970981 | D60: 49.12137262
B61: Cartagena | C61: 88.79288 | D61: 110.9911
B62: Barranquilla | C62: 96.67636 | D62: 120.84545
B63: Sito Nuevo | C63: 88.79288 | D63: 110.9911
B64: Neiva | C64: 37.37590663 | D64: 46.71988329
B65: Gualanday | C65: 22.96697066 | D65: 28.70871333
B66: La Dorada (Caldas) | C66: 31.53392 | D66: 39.4174
B68: base guajira sobretasa
B69: corriente | C69: acpm
B70: 1900 | C70: 1900
B72: 1900 | C72: 3400
B74: =1900*25% -> 475 | C74: =1900*6% -> 114
B75: =1900*25% -> 475 | C75: =3400*6% -> 204

Sheet NARIÑO-PUTUMAYO - BASE (hidden)
B1: Componentes de la estructura de precio (Ventas a las estaciones de servicio desde la planta de abastecimiento y centro de acopio ubicados en el área metropolitana de Cúcuta). | F1: Componentes de la estructura de precio (Ventas a las estaciones de servicio desde la planta de abastecimiento y centro de acopio ubicados en el área metropolitana de Cúcuta).
B2: ITEM | C2: GASOLINA MOTOR CORRIENTE 8% | D2: GASOLINA MOTOR CORRIENTE 6% | F2: ITEM | G2: ACPM B2 | H2: ACPM B10
C3: (Pesos por Galón) | D3: (Pesos por Galón) | H3: (Pesos por Galón) | J3: 0.08 | K3: 0.1 | L3: 0.07
A4: Ingreso al Productor | B4: 1,Ingreso al Productor Fósil (1) | C4: ='OTROS DPTOS - BASE'!C2*92% -> 3278.113147 | D4: =+'OTROS DPTOS - BASE'!C2*94% -> 3349.376476 | F4: 1,Ingreso al Productor Fósil (1) | G4: ='OTROS DPTOS - BASE'!C3*98% -> 3302.995852 | H4: ='OTROS DPTOS - BASE'!C3*90% -> 3033.363538 | I4: =+H4/0.9 -> 3370.403931 | J4: =+I4*(1-J3) -> 3100.771617 | K4: =+I4*(1-K3) -> 3033.363538 | L4: =+I4*(1-L3) -> 3134.475656
B5: 2. Ingreso al productor Alcohol Carburante | C5: ='CORRIENTE OXIGENADA'!B7*8% -> 656.9024 | D5: ='CORRIENTE OXIGENADA'!B7*6% -> 492.6768 | F5: 2. Ingreso al productor Biodiesel | G5: =(I5*2%) -> 211.498 | H5: =BIODIESEL!H9 -> 1057.49 | I5: =+BIODIESEL!B7 -> 10574.9 | J5: =+I5*J3 -> 845.992 | K5: =+I5*K3 -> 1057.49 | L5: =+I5*L3 -> 740.243
B6: 3. Ingreso al productor mezcla | C6: =+C4+C5 -> 3935.015547 | D6: =+D4+D5 -> 3842.053276 | E6: Ingreso al Productor | F6: 3. Ingreso al productor mezcla | G6: =G4+G5+0.01 -> 3514.503852 | H6: =+H4+H5-0.004 -> 4090.849538 | J6: =+J4+J5 -> 3946.763617 | K6: =+K4+K5 -> 4090.853538 | L6: =+L4+L5 -> 3874.718656
A7: Tarifa de transporte (poliductos y biocombustibles) | B7: 4, Tarifa de Transporte (2) | C7: 358.33 | D7: 358.33 | E7: Tarifa de transporte (poliductos y biocombustibles) | F7: 4, Tarifa de Transporte (2) | H7: 428.58
A8: Recuperación costos | B8: 5. Recuperación costos (3) | E8: Recuperación costos | F8: 5. Recuperación costos (3)
A9: Costo de cesión | B9: 6. Costo de cesión (4) | E9: Costo de cesión | F9: 6. Costo de cesión (4)
B10: 7. Margen plan de continuidad | C10: 86.42 | D10: 86.42 | F10: 7. Margen plan de continuidad | H10: 86.42
A11: Transporte plantas no interconectadas* | B11: 8. Transporte planta de abastecimiento mayorista hasta planta de abastecimiento del Departamento | C11: (5) | E11: Transporte plantas no interconectadas* | F11: 8. Transporte planta de abastecimiento mayorista hasta planta de abastecimiento del Departamento | H11: (5)
A12: Precio Máx. de Venta al Distribuidor Mayorista | B12: 9. Precio Máximo de Venta al Distribuidor Mayorista | C12: =+SUM(C6:C11) -> 4379.765547 | D12: =+SUM(D6:D11) -> 4286.803276 | E12: Precio Máx. de Venta al Distribuidor Mayorista | F12: 9. Precio Máximo de Venta al Distribuidor Mayorista | H12: =+SUM(H6:H11) -> 4605.849538
A13: Margen del distribuidor mayorista | B13: 10. Margen al distribuidor mayorista(2) | C13: 305 | D13: 305 | E13: Margen del distribuidor mayorista | F13: 10. Margen al distribuidor mayorista(2) | H13: 305
A14: Sobretasa | B14: 11. Sobretasa | C14: 437 | D14: 437 | E14: Sobretasa | F14: 11. Sobretasa | H14: 204
A15: Precio Máximo en Planta de Abasto Mayorista | B15: 12. Precio máximo en planta de abasto Mayorista | C15: =SUM(C12:C14) -> 5121.765547 | D15: =SUM(D12:D14) -> 5028.803276 | E15: Precio Máximo en Planta de Abasto Mayorista | F15: 12. Precio máximo en planta de abasto Mayorista | H15: =SUM(H12:H14) -> 5114.849538
A16: Margen del distribuidor minorista | B16: 13. Margen del distribuidor minorista | C16: 578 | D16: 578 | E16: Margen del distribuidor minorista | F16: 13. Margen del distribuidor minorista | H16: 578
A17: Pérdida por evaporación** | B17: 14. Pérdida por evaporación | C17: 20.76 | D17: 20.76 | E17: Pérdida por evaporación** | F17: 14. Pérdida por evaporación | H17: 0
A18: Transporte planta abasto mayorista a estación*** | B18: 15. Transporte desde San Juan de Pasto a las EDS (6) | C18: 55 | D18: 55 | E18: Transporte planta abasto mayorista a estación*** | F18: 15. Transporte desde San Juan de Pasto a las EDS (6) | H18: 55
A19: Precio Máximo de Venta al público por galón | B19: 16. Precio Máximo de Venta por Galón | C19: =+SUM(C15:C18) -> 5775.525547 | D19: =+SUM(D15:D18) -> 5682.563276 | E19: Precio Máximo de Venta al público por galón | F19: 16. Precio Máximo de Venta por Galón | H19: =+SUM(H15:H18) -> 5747.849538
A20: IVA | E20: IVA
A21: Impuesto al carbono | C21: ='COMBUSTIBLES '!B13*(1-8%) -> 124.2 | D21: ='COMBUSTIBLES '!C13*(1-6%) -> 126.9 | E21: Impuesto al carbono | G21: ='COMBUSTIBLES '!E13*(1-2%) -> 148.96 | H21: ='COMBUSTIBLES '!E13*(1-10%) -> 136.8
H23: Costo de cesión
H24: Con cupo | I24: Fuera UPME
C25: Recuperación costos | F25: =+B27 -> Arauca | H25: 78.8702763 | I25: 78.8702763
C26: Con cupo | E26: Fuera UPME | F26: Norte Santander | H26: 78.8702763 | I26: 78.8702763
B27: Arauca | C27: =+C11 -> (5) | E27: 16.47 | F27: Nariño
B28: Norte Santander | C28: 11.21 | E28: 16.47 | F28: Cesar
B29: Nariño | C29: 11.21 | E29: 16.47 | F29: cesar casco urbano | H29: 78.8702763 | I29: 78.8702763
B30: Cesar | C30: 16.47 | E30: 16.47 | F30: Putumayo
B31: cesar casco urbano | C31: 16.47 | E31: 16.47 | F31: Guajira | H31: 58.03 | I31: 58.03
B32: Putumayo | C32: 16.47 | E32: 16.47 | F32: Choco
B33: Guajira | C33: 16.47 | E33: 0 | F33: Amazonas - Boyacá
B34: Choco | C34: 16.47 | E34: 16.47 | F34: Guania | H34: 78.8702763 | I34: 78.8702763
B35: Amazonas - Boyacá | C35: 16.47 | E35: 16.47 | F35: Vaupes
B36: Guania | C36: 10.93524078 | E36: 16.47 | F36: Vichada | H36: 78.8702763 | I36: 78.8702763
B37: Vaupes | C37: 16.47 | E37: 16.47 | F37: Guajira nacional | H37: 0 | I37: 0
B38: Vichada | C38: 16.47 | E38: 16.47 | F38: Guajira importado
B39: Guajira nacional | C39: 16.47 | E39: 16.47 | F39: 0
B40: Guajira importado | C40: =+C39 -> 16.47 | E40: =+E39 -> 16.47
B43: Transporte Etanol
B44: Planta | C44: proporcion del 8% | E44: proporcion del 10% | F44: Margen planta no internconectada (Planta de Neiva) para Putumayo | H44: 50
B45: Bogotá | C45: 36.6866518 | E45: 45.85831475
B46: Mansilla | C46: 37.99300142 | E46: 47.49125177 | F46: SEBASTOPOL | H46: 650.76 | I46: =+H46*8% -> 52.0608
B47: Yumbo/Mulalo | C47: 6.531748095 | E47: 8.164685118
B48: Medellín | C48: 32.11442813 | E48: 40.14303517
B49: Rionegro | C49: 35.38030218 | E49: 44.22537772
B50: Cartago | C50: 18.5066196 | E50: 23.1332745
B51: Pereira | C51: 19.48638182 | E51: 24.35797727
B52: Buga | C52: 5.769710817 | E52: 7.212138521
B53: Manizáles | C53: 20.46614403 | E53: 25.58268004
B54: Buenaventura | C54: 13.60780853 | E54: 17.00976066
B55: Mariquita | C55: 27.86879187 | E55: 34.83598984
B56: Puerto Boyacá – Boyacá (Planta Puerto Niño) | C56: 37.762451 | E56: 47.20306375
B57: Girón y Barrancabermeja – Santander (Plantas Girón, Chimitá y Lisama) | C57: 59.62492263 | E57: 74.53115329
B58: Turbo | C58: 44.10007675 | E58: 55.12509594
B59: Girardota | C59: 35.36738829 | E59: 44.20923536
B60: La Pintada | C60: 35.36738829 | E60: 44.20923536
B61: Sebastopol | C61: 39.2970981 | E61: 49.12137262
B62: Cartagena | C62: 88.79288 | E62: 110.9911
B63: Barranquilla | C63: 96.67636 | E63: 120.84545
B64: Sito Nuevo | C64: 88.79288 | E64: 110.9911
B65: Neiva | C65: 37.37590663 | E65: 46.71988329
B66: Gualanday | C66: 22.96697066 | E66: 28.70871333
B67: La Dorada (Caldas) | C67: 31.53392 | E67: 39.4174
B69: base guajira sobretasa
B70: corriente | C70: acpm
B71: 1900 | C71: 1900
B73: 1900 | C73: 3400
B75: =1900*25% -> 475 | C75: =1900*6% -> 114
B76: =1900*25% -> 475 | C76: =3400*6% -> 204

Sheet RESOLUCION ZF (hidden)
B1: Vigencia: 01 de mayo de 2013; 00:00horas
B2: RESOLUCION 90230 DE 2013 - Por la cual se establecen las estructuras de precios de la Gasolina Motor Corriente y el ACPM que se distribuyan en los municipios de Cubará (Boyacá) y Puerto Carreño (Vichada) y en los departamentos de Amazonas, Arauca, Guainía, La Guajira, Nariño y Putumayo
B4: Información según Resolución vigente para el mes (Minminas) | E4: =+B4 -> Información según Resolución vigente para el mes (Minminas)
B5: ITEM | C5: GASOLINA MOTOR CORRIENTE | E5: ITEM | F5: ACPM B2
C6: (Pesos por Galón) | F6: (Pesos por Galón)
B7: 1. Ingreso al Productor (1) | C7: =+'OTROS DPTOS - BASE'!C11 -> 3563.166464 | E7: 1. A. Proporción - Ingreso al Productor del ACPM (98%) | F7: =+'OTROS DPTOS - BASE'!F11 -> 3072.526936
B8: 2. Tarifa de Transporte por poliductos de la Gasolina Motor Corriente * | C8: =+'OTROS DPTOS - BASE'!C12 -> 139.1041471 | E8: 1. B. Proporción - Ingreso al Productor del Biodiesel (2%) | F8: =+'OTROS DPTOS - BASE'!F12 -> 211.5
B9: 3. Costo de la cesión de las actividades de distribución (2) | C9: =+'OTROS DPTOS - BASE'!C13 -> 78.874056 | E9: 1.Ingreso al Productor (1) | F9: =SUM(F7:F8) -> 3284.026936
B10: 4. Rubro de Recuperación de costos (3) | C10: =+'OTROS DPTOS - BASE'!C14 -> 7.62 | E10: 2. A Tarifa de Transporte por poliductos del B-2 * | F10: =+'OTROS DPTOS - BASE'!F14 -> 139.1041471
B11: 5. Tarifa de Marcación ** | C11: =+'OTROS DPTOS - BASE'!C15 -> 5.56 | E11: 2. B Proporción - Tarifa de Transporte del Biodiesel (2%) | F11: =+'OTROS DPTOS - BASE'!F15 -> 8.18
B12: 6. Margen plan de continuidad (4) | C12: =+'OTROS DPTOS - BASE'!C16 -> 86.42 | E12: 3. Costo de la cesión de las actividades de distribución (2) | F12: =+'OTROS DPTOS - BASE'!F17 -> 78.874056
B13: 7. Precio Máximo de Venta al Distribuidor Mayorista | C13: =+'OTROS DPTOS - BASE'!C17 -> 3880.734667 | E13: 4. Rubro de Recuperación de costos (3) | F13: =+'OTROS DPTOS - BASE'!F18 -> 7.62
B14: 8. Margen al distribuidor mayorista(5) | C14: =+'OTROS DPTOS - BASE'!C18 -> 240 | E14: 5. Tarifa de Marcación | F14: =+'OTROS DPTOS - BASE'!F19 -> 7.447818
B15: 9. Transporte de la planta de abastecimiento mayorista a la planta de abastecimiento en el departamento (6) | C15: =+'OTROS DPTOS - BASE'!C19 -> 662 | E15: 6. Margen plan de continuidad (4) | F15: =+'OTROS DPTOS - BASE'!F20 -> 86.42
B16: 10. Sobretasa | C16: =+'OTROS DPTOS - BASE'!C20 -> 475 | E16: 7. Precio Máximo de Venta al Distribuidor Mayorista | F16: =SUM(F9:F15)+0.01 -> 3611.682957
B17: 11. Precio Máximo en planta de abastecimiento | C17: =+'OTROS DPTOS - BASE'!C21 -> 5257.734667 | E17: 8. Margen al distribuidor mayorista(5) | F17: =+'OTROS DPTOS - BASE'!F22 -> 240
B18: 12. Margen del distribuidor minorista(7) | C18: =+'OTROS DPTOS - BASE'!C22 -> 400 | E18: 9. Transporte de la planta de abastecimiento mayorista a la planta de abastecimiento en el departamento (6) | F18: 662
B19: 13. Pérdida por evaporación | C19: =+'OTROS DPTOS - BASE'!C23 -> 19.24 | E19: 10. Precio Máximo en planta de abastecimiento | F19: =SUM(F16:F18) -> 4513.682957
B20: 14. Transporte de la planta de abastecimiento a la Estación(8) | C20: =+'OTROS DPTOS - BASE'!C24 -> 47.82 | E20: 11. Margen del distribuidor minorista(7) | F20: =+'OTROS DPTOS - BASE'!F25 -> 400
B21: 15. Precio Máximo de Venta por Galón Incluida la Sobretasa | C21: =+'OTROS DPTOS - BASE'!C25 -> 5724.794667 | E21: 12. Transporte de la planta de abastecimiento a la estación(8) | F21: =+'OTROS DPTOS - BASE'!F26 -> 47.82
E22: 13. Precio Venta al Público sin Sobretasa | F22: =SUM(F19:F21) -> 4961.502957
E23: 14. Sobretasa | F23: =+'OTROS DPTOS - BASE'!F29 -> 204
E24: 15. Precio Máximo de Venta por Galón Incluida la Sobretasa | F24: =F22+F23 -> 5165.502957
B37: NOTA INFORMATIVA: Esta publicación tiene fines netamente ilustrativos. La misma pretende reflejar los precios aplicables de los distribuidores mayoristas y minoristas, acorde con las disposiciones establecidas por el Ministerio de Minas y Energía y las autoridades locales y municipales. En el caso de presentarse cualquier discrepancia prevalece lo establecido por las autoridades mencionadas, lo cual debe ser verificado permanentemente por todos los agentes de la cadena de distribución de los combustibles líquidos. Esta publicación puede cambiar sin previo aviso.

Sheet AMAZONAS - BASE (hidden)
B1: Componentes de la estructura de precio (Ventas a las estaciones de servicio desde la planta de abastecimiento y centro de acopio ubicados en el área metropolitana de Cúcuta). | F1: Componentes de la estructura de precio (Ventas a las estaciones de servicio desde la planta de abastecimiento y centro de acopio ubicados en el área metropolitana de Cúcuta).
B2: ITEM | C2: GASOLINA MOTOR CORRIENTE 8% | D2: GASOLINA MOTOR CORRIENTE 6% | F2: ITEM | G2: ACPM B2 | H2: ACPM B10
C3: (Pesos por Galón) | D3: (Pesos por Galón) | H3: (Pesos por Galón) | J3: 0.08 | K3: 0.1 | L3: 0.07
A4: Ingreso al Productor | B4: 1,Ingreso al Productor Fósil (1) | C4: ='OTROS DPTOS - BASE'!C6*92% -> 3081.111155 | D4: =+'OTROS DPTOS - BASE'!C6*94% -> 3148.091832 | F4: 1,Ingreso al Productor Fósil (1) | G4: ='OTROS DPTOS - BASE'!C7*98% -> 3171.299329 | H4: ='OTROS DPTOS - BASE'!C7*90% -> 2912.417751 | I4: =+H4/0.9 -> 3236.019723 | J4: =+I4*(1-J3) -> 2977.138145 | K4: =+I4*(1-K3) -> 2912.417751 | L4: =+I4*(1-L3) -> 3009.498342
B5: 2. Ingreso al productor Alcohol Carburante | C5: ='CORRIENTE OXIGENADA'!B7*8% -> 656.9024 | D5: ='CORRIENTE OXIGENADA'!B7*6% -> 492.6768 | F5: 2. Ingreso al productor Biodiesel | G5: =I5*2% -> 211.498 | H5: =BIODIESEL!H9 -> 1057.49 | I5: =+BIODIESEL!B7 -> 10574.9 | J5: =+I5*J3 -> 845.992 | K5: =+I5*K3 -> 1057.49 | L5: =+I5*L3 -> 740.243
B6: 3. Ingreso al productor mezcla | C6: =+C4+C5 -> 3738.013555 | D6: =+D4+D5 -> 3640.768632 | E6: Ingreso al Productor | F6: 3. Ingreso al productor mezcla | G6: =G4+G5 -> 3382.797329 | H6: =+H4+H5-0.004 -> 3969.903751 | J6: =+J4+J5 -> 3823.130145 | K6: =+K4+K5 -> 3969.907751 | L6: =+L4+L5 -> 3749.741342
A7: Tarifa de transporte (poliductos y biocombustibles) | B7: 4, Tarifa de Transporte (2) | C7: 358.33 | D7: 358.33 | E7: Tarifa de transporte (poliductos y biocombustibles) | F7: 4, Tarifa de Transporte (2) | H7: 428.58
A8: Recuperación costos | B8: 5. Recuperación costos (3) | E8: Recuperación costos | F8: 5. Recuperación costos (3)
A9: Costo de cesión | B9: 6. Costo de cesión (4) | E9: Costo de cesión | F9: 6. Costo de cesión (4)
B10: 7. Margen plan de continuidad | C10: 86.42 | D10: 86.42 | F10: 7. Margen plan de continuidad | H10: 86.42
A11: Transporte plantas no interconectadas* | B11: 8. Transporte planta de abastecimiento mayorista hasta planta de abastecimiento del Departamento | C11: (5) | E11: Transporte plantas no interconectadas* | F11: 8. Transporte planta de abastecimiento mayorista hasta planta de abastecimiento del Departamento | H11: (5)
A12: Precio Máx. de Venta al Distribuidor Mayorista | B12: 9. Precio Máximo de Venta al Distribuidor Mayorista | C12: =+SUM(C6:C11) -> 4182.763555 | D12: =+SUM(D6:D11) -> 4085.518632 | E12: Precio Máx. de Venta al Distribuidor Mayorista | F12: 9. Precio Máximo de Venta al Distribuidor Mayorista | H12: =+SUM(H6:H11) -> 4484.903751
A13: Margen del distribuidor mayorista | B13: 10. Margen al distribuidor mayorista(2) | C13: 305 | D13: 305 | E13: Margen del distribuidor mayorista | F13: 10. Margen al distribuidor mayorista(2) | H13: 305
A14: Sobretasa | B14: 11. Sobretasa | C14: 437 | D14: 437 | E14: Sobretasa | F14: 11. Sobretasa | H14: 204
A15: Precio Máximo en Planta de Abasto Mayorista | B15: 12. Precio máximo en planta de abasto Mayorista | C15: =SUM(C12:C14) -> 4924.763555 | D15: =SUM(D12:D14) -> 4827.518632 | E15: Precio Máximo en Planta de Abasto Mayorista | F15: 12. Precio máximo en planta de abasto Mayorista | H15: =SUM(H12:H14) -> 4993.903751
A16: Margen del distribuidor minorista | B16: 13. Margen del distribuidor minorista | C16: 578 | D16: 578 | E16: Margen del distribuidor minorista | F16: 13. Margen del distribuidor minorista | H16: 578
A17: Pérdida por evaporación** | B17: 14. Pérdida por evaporación | C17: 20.76 | D17: 20.76 | E17: Pérdida por evaporación** | F17: 14. Pérdida por evaporación | H17: 0
A18: Transporte planta abasto mayorista a estación*** | B18: 15. Transporte desde San Juan de Pasto a las EDS (6) | C18: 55 | D18: 55 | E18: Transporte planta abasto mayorista a estación*** | F18: 15. Transporte desde San Juan de Pasto a las EDS (6) | H18: 55
A19: Precio Máximo de Venta al público por galón | B19: 16. Precio Máximo de Venta por Galón | C19: =+SUM(C15:C18) -> 5578.523555 | D19: =+SUM(D15:D18) -> 5481.278632 | E19: Precio Máximo de Venta al público por galón | F19: 16. Precio Máximo de Venta por Galón | H19: =+SUM(H15:H18) -> 5626.903751
A20: IVA | E20: IVA
A21: Impuesto Global | E21: Impuesto Global
H23: Costo de cesión
H24: Con cupo | I24: Fuera UPME
C25: Recuperación costos | F25: =+B27 -> Arauca | H25: 78.8702763 | I25: 78.8702763
C26: Con cupo | E26: Fuera UPME | F26: Norte Santander | H26: 78.8702763 | I26: 78.8702763
B27: Arauca | C27: =+C11 -> (5) | E27: 16.47 | F27: Nariño
B28: Norte Santander | C28: 11.21 | E28: 16.47 | F28: Cesar
B29: Nariño | C29: 11.21 | E29: 16.47 | F29: cesar casco urbano | H29: 78.8702763 | I29: 78.8702763
B30: Cesar | C30: 16.47 | E30: 16.47 | F30: Putumayo
B31: cesar casco urbano | C31: 16.47 | E31: 16.47 | F31: Guajira | H31: 58.03 | I31: 58.03
B32: Putumayo | C32: 16.47 | E32: 16.47 | F32: Choco
B33: Guajira | C33: 16.47 | E33: 0 | F33: Amazonas - Boyacá
B34: Choco | C34: 16.47 | E34: 16.47 | F34: Guania | H34: 78.8702763 | I34: 78.8702763
B35: Amazonas - Boyacá | C35: 16.47 | E35: 16.47 | F35: Vaupes
B36: Guania | C36: 10.93524078 | E36: 16.47 | F36: Vichada | H36: 78.8702763 | I36: 78.8702763
B37: Vaupes | C37: 16.47 | E37: 16.47 | F37: Guajira nacional | H37: 0 | I37: 0
B38: Vichada | C38: 16.47 | E38: 16.47 | F38: Guajira importado
B39: Guajira nacional | C39: 16.47 | E39: 16.47 | F39: 0
B40: Guajira importado | C40: =+C39 -> 16.47 | E40: =+E39 -> 16.47
B43: Transporte Etanol
B44: Planta | C44: proporcion del 8% | E44: proporcion del 10% | F44: Margen planta no internconectada (Planta de Neiva) para Putumayo | H44: 50
B45: Bogotá | C45: 36.6866518 | E45: 45.85831475
B46: Mansilla | C46: 37.99300142 | E46: 47.49125177 | F46: SEBASTOPOL | H46: 650.76 | I46: =+H46*8% -> 52.0608
B47: Yumbo/Mulalo | C47: 6.531748095 | E47: 8.164685118
B48: Medellín | C48: 32.11442813 | E48: 40.14303517
B49: Rionegro | C49: 35.38030218 | E49: 44.22537772
B50: Cartago | C50: 18.5066196 | E50: 23.1332745
B51: Pereira | C51: 19.48638182 | E51: 24.35797727
B52: Buga | C52: 5.769710817 | E52: 7.212138521
B53: Manizáles | C53: 20.46614403 | E53: 25.58268004
B54: Buenaventura | C54: 13.60780853 | E54: 17.00976066
B55: Mariquita | C55: 27.86879187 | E55: 34.83598984
B56: Puerto Boyacá – Boyacá (Planta Puerto Niño) | C56: 37.762451 | E56: 47.20306375
B57: Girón y Barrancabermeja – Santander (Plantas Girón, Chimitá y Lisama) | C57: 59.62492263 | E57: 74.53115329
B58: Turbo | C58: 44.10007675 | E58: 55.12509594
B59: Girardota | C59: 35.36738829 | E59: 44.20923536
B60: La Pintada | C60: 35.36738829 | E60: 44.20923536
B61: Sebastopol | C61: 39.2970981 | E61: 49.12137262
B62: Cartagena | C62: 88.79288 | E62: 110.9911
B63: Barranquilla | C63: 96.67636 | E63: 120.84545
B64: Sito Nuevo | C64: 88.79288 | E64: 110.9911
B65: Neiva | C65: 37.37590663 | E65: 46.71988329
B66: Gualanday | C66: 22.96697066 | E66: 28.70871333
B67: La Dorada (Caldas) | C67: 31.53392 | E67: 39.4174
B69: base guajira sobretasa
B70: corriente | C70: acpm
B71: 1900 | C71: 1900
B73: 1900 | C73: 3400
B75: =1900*25% -> 475 | C75: =1900*6% -> 114
B76: =1900*25% -> 475 | C76: =3400*6% -> 204

Sheet GUAJIRA - BASE (hidden)
B1: Gasolina | C1: 1
B2: ACPM | C2: 0.8483
B4: Componentes de la estructura de precio (Ventas a las estaciones de servicio desde la planta de abastecimiento y centro de acopio ubicados en el área metropolitana de Cúcuta). | F4: Componentes de la estructura de precio (Ventas a las estaciones de servicio desde la planta de abastecimiento y centro de acopio ubicados en el área metropolitana de Cúcuta).
B5: ITEM | C5: GASOLINA MOTOR CORRIENTE | D5: GASOLINA MOTOR CORRIENTE 10% | F5: ITEM | G5: ACPM B2 | H5: ACPM B4
C6: (Pesos por Galón) | D6: (Pesos por Galón) | H6: (Pesos por Galón) | J6: 0.08 | K6: 0.1 | L6: 0.07
A7: Ingreso al Productor | B7: 1,Ingreso al Productor Fósil (1) | C7: ='COMBUSTIBLES '!B7*'GUAJIRA - BASE'!C1 -> 3893.32 | D7: =+'OTROS DPTOS - BASE'!C2*90% -> 3206.849818 | F7: 1,Ingreso al Productor Fósil (1) | G7: ='OTROS DPTOS - BASE'!C3*98% -> 3302.995852 | H7: =(BIODIESEL!F8)*'GUAJIRA - BASE'!C2 -> 3257.090265 | I7: =+H7/96% -> 3392.802359 | J7: =+I7*(1-J6) -> 3121.378171 | K7: =+I7*(1-K6) -> 3053.522123 | L7: =+I7*(1-L6) -> 3155.306194
B8: 2. Ingreso al productor Alcohol Carburante | C8: ='CORRIENTE OXIGENADA'!B7 -> 8211.28 | D8: ='CORRIENTE OXIGENADA'!B7*10% -> 821.128 | F8: 2. Ingreso al productor Biodiesel | G8: =I8*2% -> 211.498 | H8: =BIODIESEL!B7*4% -> 422.996 | I8: =+BIODIESEL!B7 -> 10574.9 | J8: =+I8*J6 -> 845.992 | K8: =+I8*K6 -> 1057.49 | L8: =+I8*L6 -> 740.243
B9: 3. Ingreso al productor mezcla | C9: =C7 -> 3893.32 | D9: =+D7+D8 -> 4027.977818 | E9: Ingreso al Productor | F9: 3. Ingreso al productor mezcla | G9: =G7+G8 -> 3514.493852 | H9: =+H7+H8 -> 3680.086265 | J9: =+J7+J8 -> 3967.370171 | K9: =+K7+K8 -> 4111.012123 | L9: =+L7+L8 -> 3895.549194
C10: 0.92 | E10: =C9*C10 -> 3581.8544
H11: Costo de cesión
H12: Con cupo | I12: Fuera UPME
C13: Recuperación costos | F13: =+B15 -> Arauca | H13: 78.8702763 | I13: 78.8702763
C14: Con cupo | E14: Fuera UPME | F14: Norte Santander | H14: 78.8702763 | I14: 78.8702763
B15: Arauca | C15: =+#REF! ->  | E15: 16.47 | F15: Nariño
B16: Norte Santander | C16: 11.21 | E16: 16.47 | F16: Cesar
B17: Nariño | C17: 11.21 | E17: 16.47 | F17: cesar casco urbano | H17: 78.8702763 | I17: 78.8702763
B18: Cesar | C18: 16.47 | E18: 16.47 | F18: Putumayo
B19: cesar casco urbano | C19: 16.47 | E19: 16.47 | F19: Guajira | H19: 58.03 | I19: 58.03
B20: Putumayo | C20: 16.47 | E20: 16.47 | F20: Choco
B21: Guajira | C21: 16.47 | E21: 0 | F21: Amazonas - Boyacá
B22: Choco | C22: 16.47 | E22: 16.47 | F22: Guania | H22: 78.8702763 | I22: 78.8702763
B23: Amazonas - Boyacá | C23: 16.47 | E23: 16.47 | F23: Vaupes
B24: Guania | C24: 10.93524078 | E24: 16.47 | F24: Vichada | H24: 78.8702763 | I24: 78.8702763
B25: Vaupes | C25: 16.47 | E25: 16.47 | F25: Guajira nacional | H25: 0 | I25: 0
B26: Vichada | C26: 16.47 | E26: 16.47 | F26: Guajira importado
B27: Guajira nacional | C27: 16.47 | E27: 16.47 | F27: 0
B28: Guajira importado | C28: =+C27 -> 16.47 | E28: =+E27 -> 16.47
B31: Transporte Etanol
B32: Planta | C32: proporcion del 8% | E32: proporcion del 10% | F32: Margen planta no internconectada (Planta de Neiva) para Putumayo | H32: 50
B33: Bogotá | C33: 36.6866518 | E33: 45.85831475
B34: Mansilla | C34: 37.99300142 | E34: 47.49125177 | F34: SEBASTOPOL | H34: 650.76 | I34: =+H34*8% -> 52.0608
B35: Yumbo/Mulalo | C35: 6.531748095 | E35: 8.164685118
B36: Medellín | C36: 32.11442813 | E36: 40.14303517
B37: Rionegro | C37: 35.38030218 | E37: 44.22537772
B38: Cartago | C38: 18.5066196 | E38: 23.1332745
B39: Pereira | C39: 19.48638182 | E39: 24.35797727
B40: Buga | C40: 5.769710817 | E40: 7.212138521
B41: Manizáles | C41: 20.46614403 | E41: 25.58268004
B42: Buenaventura | C42: 13.60780853 | E42: 17.00976066
B43: Mariquita | C43: 27.86879187 | E43: 34.83598984
B44: Puerto Boyacá – Boyacá (Planta Puerto Niño) | C44: 37.762451 | E44: 47.20306375
B45: Girón y Barrancabermeja – Santander (Plantas Girón, Chimitá y Lisama) | C45: 59.62492263 | E45: 74.53115329
B46: Turbo | C46: 44.10007675 | E46: 55.12509594
B47: Girardota | C47: 35.36738829 | E47: 44.20923536
B48: La Pintada | C48: 35.36738829 | E48: 44.20923536
B49: Sebastopol | C49: 39.2970981 | E49: 49.12137262
B50: Cartagena | C50: 88.79288 | E50: 110.9911
B51: Barranquilla | C51: 96.67636 | E51: 120.84545
B52: Sito Nuevo | C52: 88.79288 | E52: 110.9911
B53: Neiva | C53: 37.37590663 | E53: 46.71988329
B54: Gualanday | C54: 22.96697066 | E54: 28.70871333
B55: La Dorada (Caldas) | C55: 31.53392 | E55: 39.4174
B57: base guajira sobretasa
B58: corriente | C58: acpm
B59: 1900 | C59: 1900
B61: 1900 | C61: 3400
B63: =1900*25% -> 475 | C63: =1900*6% -> 114
B64: =1900*25% -> 475 | C64: =3400*6% -> 204
C66: 0.08 | E66: =C8*C66 -> 656.9024
E67: =E10+E66 -> 4238.7568
C69: 0.94 | E69: =C9*C69 -> 3659.7208
C70: 0.06 | E70: =C8*C70 -> 492.6768
E71: =E69+E70 -> 4152.3976

Sheet RESOLUCION NORTEDESANTANDER (hidden)
B1: Vigencia: 5 de Abril; 00:00horas
B2: Resolución por la cual se establecen las estructuras de precios de la Gasolina Motor Corriente, del ACPM y del ACPM mezclado con biocombustibles para uso en motores disel, de origen nacional e importado, que se distribuyan en el departamento de Norte de Santander
B4: Información según Resolución vigente para el mes (Minminas) | E4: Información según Resolución vigente para el mes (Minminas)
B5: ITEM | C5: GASOLINA MOTOR CORRIENTE | E5: ITEM | F5: ACPM B2
C6: (Pesos por Galón) | F6: (Pesos por Galón)
B7: 1. Ingreso al Productor (1) | C7: ='NORTEDESANTANDER - BASE'!C4 -> 3893.32 | E7: 1. A. Proporción - Ingreso al Productor del ACPM (98%) | F7: ='NORTEDESANTANDER - BASE'!F4 -> 3324.945273
B8: 2. Tarifa de Transporte por poliductos de la Gasolina Motor Corriente | C8: ='NORTEDESANTANDER - BASE'!C5 -> 152.0028573 | E8: 1. B. Proporción - Ingreso al Productor del Biodiesel (2%) | F8: ='NORTEDESANTANDER - BASE'!F5 -> 211.498
B9: 3. Costo de la cesión de las actividades de distribución | C9: ='NORTEDESANTANDER - BASE'!C6 -> 88.98 | E9: 1.Ingreso al Productor | F9: =F7+F8 -> 3536.443273
B10: 4. Rubro de Recuperación de costos | C10: ='NORTEDESANTANDER - BASE'!C7 -> 18.58 | E10: 2. A Tarifa de Transporte por poliductos del B-2 | F10: ='NORTEDESANTANDER - BASE'!F7 -> 152.0028573
B11: 5. Tarifa de Marcación | C11: ='NORTEDESANTANDER - BASE'!C8 -> 11.16 | E11: 2. B Proporción - Tarifa de Transporte del Biodiesel (2%) | F11: ='NORTEDESANTANDER - BASE'!F8 -> 9.24
B12: 6. Margen plan de continuidad | C12: ='NORTEDESANTANDER - BASE'!C9 -> 71.51 | E12: 3. Costo de la cesión de las actividades de distribución | F12: ='NORTEDESANTANDER - BASE'!F9 -> 88.98
B13: 7. Precio Máximo de Venta al Distribuidor Mayorista | C13: =SUM(C7:C12) -> 4235.552857 | E13: 4. Rubro de Recuperación de costos | F13: ='NORTEDESANTANDER - BASE'!F10 -> 18.58
B14: 8. Margen al distribuidor mayorista | C14: ='NORTEDESANTANDER - BASE'!C11 -> 285 | E14: 5. Tarifa de Marcación | F14: ='NORTEDESANTANDER - BASE'!F11 -> 11.16
B15: 9. Transporte de la planta de abastecimiento mayorista a la planta de abastecimiento en el departamento | C15: ='NORTEDESANTANDER - BASE'!C12 -> 233.77 | E15: 6. Margen plan de continuidad | F15: ='NORTEDESANTANDER - BASE'!F12 -> 71.51
B16: 10. Sobretasa | C16: ='NORTEDESANTANDER - BASE'!C13 -> 475 | E16: 7. Precio Máximo de Venta al Distribuidor Mayorista | F16: =SUM(F9:F15) -> 3887.91613
B17: 11. Precio Máximo en planta de abastecimiento | C17: =SUM(C13:C16) -> 5229.322857 | E17: 8. Margen al distribuidor mayorista | F17: ='NORTEDESANTANDER - BASE'!F14 -> 285
B18: 12. Margen del distribuidor minorista | C18: ='NORTEDESANTANDER - BASE'!C15 -> 543.25 | E18: 9. Transporte de la planta de abastecimiento mayorista a la planta de abastecimiento en el departamento | F18: ='NORTEDESANTANDER - BASE'!F15 -> 233.77
B19: 13. Pérdida por evaporación | C19: ='NORTEDESANTANDER - BASE'!C16 -> 19.44 | E19: 10. Sobretasa | F19: ='NORTEDESANTANDER - BASE'!F16 -> 204
B20: 14. Transporte de la planta de abastecimiento a la Estación | C20: ='NORTEDESANTANDER - BASE'!C17 -> 53.95 | E20: 11. Precio Máximo en planta de abastecimiento | F20: =SUM(F16:F19) -> 4610.68613
B21: 15. Precio Máximo de Venta por Galón Incluida la Sobretasa | C21: =SUM(C17:C20) -> 5845.962857 | E21: 12. Margen del distribuidor minorista | F21: ='NORTEDESANTANDER - BASE'!F18 -> 543.25
E22: 13. Transporte de la planta de abastecimiento a la estación | F22: ='NORTEDESANTANDER - BASE'!F19 -> 53.95
E23: 14. Precio Máximo de Venta por Galón Incluida la Sobretasa | F23: =SUM(F20:F22) -> 5207.88613
B25: NOTA INFORMATIVA: Esta publicación tiene fines netamente ilustrativos. La misma pretende reflejar los precios aplicables de los distribuidores mayoristas y minoristas, acorde con las disposiciones establecidas por el Ministerio de Minas y Energía y las autoridades locales y municipales. En el caso de presentarse cualquier discrepancia prevalece lo establecido por las autoridades mencionadas, lo cual debe ser verificado permanentemente por todos los agentes de la cadena de distribución de los combustibles líquidos. Esta publicación puede cambiar sin previo aviso.

Sheet RES ALGUNAS ZONAS (hidden)
B1: Vigencia: 1 de octubre de 2013; 00:00horas
B2: RESOLUCION 90312 DE 2013 - Por la cual se establecen las estructuras de precios de la Gasolina Motor Corriente, del ACPM y del ACPM mezclado con biocombustibles para uso en motores disel, de origen nacional que se distribuya en algunas zonas de frontera
B4: Información según Resolución vigente para el mes (Minminas) | E4: =+B4 -> Información según Resolución vigente para el mes (Minminas)
B5: ITEM | C5: GASOLINA MOTOR CORRIENTE (E8) | E5: ITEM | F5: ACPM B2
C6: (Pesos por Galón) | F6: (Pesos por Galón)
B7: =+'NARIÑO-PUTUMAYO - BASE'!B4 -> 1,Ingreso al Productor Fósil (1) | C7: =+'NARIÑO-PUTUMAYO - BASE'!C4 -> 3278.113147 | E7: =+'NARIÑO-PUTUMAYO - BASE'!F4 -> 1,Ingreso al Productor Fósil (1) | F7: =+'NARIÑO-PUTUMAYO - BASE'!H4 -> 3033.363538
B8: =+'NARIÑO-PUTUMAYO - BASE'!B5 -> 2. Ingreso al productor Alcohol Carburante | C8: =+'NARIÑO-PUTUMAYO - BASE'!C5 -> 656.9024 | E8: =+'NARIÑO-PUTUMAYO - BASE'!F5 -> 2. Ingreso al productor Biodiesel | F8: =+'NARIÑO-PUTUMAYO - BASE'!H5 -> 1057.49
B9: =+'NARIÑO-PUTUMAYO - BASE'!B6 -> 3. Ingreso al productor mezcla | C9: =SUM(C7:C8) -> 3935.015547 | E9: =+'NARIÑO-PUTUMAYO - BASE'!F6 -> 3. Ingreso al productor mezcla | F9: =SUM(F7:F8) -> 4090.853538
B10: =+'NARIÑO-PUTUMAYO - BASE'!B7 -> 4, Tarifa de Transporte (2) | C10: =+'NARIÑO-PUTUMAYO - BASE'!C7 -> 358.33 | E10: =+'NARIÑO-PUTUMAYO - BASE'!F7 -> 4, Tarifa de Transporte (2) | F10: ='NARIÑO-PUTUMAYO - BASE'!H7 -> 428.58
B11: =+'NARIÑO-PUTUMAYO - BASE'!B8 -> 5. Recuperación costos (3) | C11: =+'NARIÑO-PUTUMAYO - BASE'!C8 -> 0 | E11: =+'NARIÑO-PUTUMAYO - BASE'!F8 -> 5. Recuperación costos (3) | F11: ='NARIÑO-PUTUMAYO - BASE'!H8 -> 0
B12: =+'NARIÑO-PUTUMAYO - BASE'!B9 -> 6. Costo de cesión (4) | C12: =+'NARIÑO-PUTUMAYO - BASE'!C9 -> 0 | E12: =+'NARIÑO-PUTUMAYO - BASE'!F9 -> 6. Costo de cesión (4) | F12: ='NARIÑO-PUTUMAYO - BASE'!H9 -> 0
B13: =+'NARIÑO-PUTUMAYO - BASE'!B10 -> 7. Margen plan de continuidad | C13: =+'NARIÑO-PUTUMAYO - BASE'!C10 -> 86.42 | E13: =+'NARIÑO-PUTUMAYO - BASE'!F10 -> 7. Margen plan de continuidad | F13: ='NARIÑO-PUTUMAYO - BASE'!H10 -> 86.42
B14: =+'NARIÑO-PUTUMAYO - BASE'!B11 -> 8. Transporte planta de abastecimiento mayorista hasta planta de abastecimiento del Departamento | C14: =+'NARIÑO-PUTUMAYO - BASE'!C11 -> (5) | E14: =+'NARIÑO-PUTUMAYO - BASE'!F11 -> 8. Transporte planta de abastecimiento mayorista hasta planta de abastecimiento del Departamento | F14: ='NARIÑO-PUTUMAYO - BASE'!H11 -> (5)
B15: =+'NARIÑO-PUTUMAYO - BASE'!B12 -> 9. Precio Máximo de Venta al Distribuidor Mayorista | C15: =SUM(C9:C13) -> 4379.765547 | E15: =+'NARIÑO-PUTUMAYO - BASE'!F12 -> 9. Precio Máximo de Venta al Distribuidor Mayorista | F15: =SUM(F9:F13) -> 4605.853538
B16: =+'NARIÑO-PUTUMAYO - BASE'!B13 -> 10. Margen al distribuidor mayorista(2) | C16: ='NARIÑO-PUTUMAYO - BASE'!C13 -> 305 | E16: =+'NARIÑO-PUTUMAYO - BASE'!F13 -> 10. Margen al distribuidor mayorista(2) | F16: =+'NARIÑO-PUTUMAYO - BASE'!H13 -> 305
B17: =+'NARIÑO-PUTUMAYO - BASE'!B14 -> 11. Sobretasa | C17: ='NARIÑO-PUTUMAYO - BASE'!C14 -> 437 | E17: =+'NARIÑO-PUTUMAYO - BASE'!F14 -> 11. Sobretasa | F17: =+'NARIÑO-PUTUMAYO - BASE'!H14 -> 204
B18: =+'NARIÑO-PUTUMAYO - BASE'!B15 -> 12. Precio máximo en planta de abasto Mayorista | C18: =SUM(C15:C17) -> 5121.765547 | E18: =+'NARIÑO-PUTUMAYO - BASE'!F15 -> 12. Precio máximo en planta de abasto Mayorista | F18: =SUM(F15:F17) -> 5114.853538
B19: =+'NARIÑO-PUTUMAYO - BASE'!B16 -> 13. Margen del distribuidor minorista | C19: =+'NARIÑO-PUTUMAYO - BASE'!C16 -> 578 | E19: =+'NARIÑO-PUTUMAYO - BASE'!F16 -> 13. Margen del distribuidor minorista | F19: =+'NARIÑO-PUTUMAYO - BASE'!H16 -> 578
B20: =+'NARIÑO-PUTUMAYO - BASE'!B17 -> 14. Pérdida por evaporación | C20: =+'NARIÑO-PUTUMAYO - BASE'!C17 -> 20.76 | E20: =+'NARIÑO-PUTUMAYO - BASE'!F17 -> 14. Pérdida por evaporación | F20: =+'NARIÑO-PUTUMAYO - BASE'!H17 -> 0
B21: =+'NARIÑO-PUTUMAYO - BASE'!B18 -> 15. Transporte desde San Juan de Pasto a las EDS (6) | C21: =+'NARIÑO-PUTUMAYO - BASE'!C18 -> 55 | E21: =+'NARIÑO-PUTUMAYO - BASE'!F18 -> 15. Transporte desde San Juan de Pasto a las EDS (6) | F21: =+'NARIÑO-PUTUMAYO - BASE'!H18 -> 55
B22: =+'NARIÑO-PUTUMAYO - BASE'!B19 -> 16. Precio Máximo de Venta por Galón | C22: =SUM(C18:C21) -> 5775.525547 | E22: =+'NARIÑO-PUTUMAYO - BASE'!F19 -> 16. Precio Máximo de Venta por Galón | F22: =SUM(F18:F21) -> 5747.853538
B24: NOTA INFORMATIVA: Esta publicación tiene fines netamente ilustrativos. La misma pretende reflejar los precios aplicables de los distribuidores mayoristas y minoristas, acorde con las disposiciones establecidas por el Ministerio de Minas y Energía y las autoridades locales y municipales. En el caso de presentarse cualquier discrepancia prevalece lo establecido por las autoridades mencionadas, lo cual debe ser verificado permanentemente por todos los agentes de la cadena de distribución de los combustibles líquidos. Esta publicación puede cambiar sin previo aviso.

Sheet NORTESANTANDER
B1: Vigencia: 1° de marzo de 2017; 00:00horas
A3: ESTRUCTURA DE PRECIOS DE COMBUSTIBLES LÍQUIDOS PARA ZONAS DE FRONTERA
B4: DEPARTAMENTO DE NORTE DE SANTANDER PRODUCTO NACIONAL
B5: PLANTA DE ABASTO: CHIMITA Y AGUALINDA | C5: Con cupo ZDF | E5: Por encima del cupo
A6: ID | B6: Ítem | C6: Gasolina Corriente | D6: B2 (ACPM) | E6: Gasolina Corriente | F6: B2 (ACPM)
C7: $/Galón | D7: $/Galón | E7: $/Galón | F7: $/Galón
A8: IP | B8: Ingreso al Productor | C8: 3893.32 | D8: 3536.453273 | E8: 3893.32 | F8: 4131.04
A9: PN | B9: Impuesto Nacional a la gasolina y al ACPM | C9: ------------------ | D9: ------------------ | E9: 490 | F9: 459.62
B10: Impuesto sobre las Ventas | C10: ------------------ | D10: ------------------ | E10: (9) | F10: (9)
B11: Impuesto al carbono | C11: 135 | D11: 148.96 | E11: 135 | F11: 148.96
A12: Tt | B12: Tarifa de transporte (poliductos y biocombustibles) | C12: (1) | D12: (1) | E12: (1) | F12: (1)
A13: Cc | B13: Recuperación costos | C13: 19.65074643 | D13: 19.65074643 | E13: 19.65074643 | F13: 19.65074643
A14: Ce | B14: Costo de cesión | C14: 94.09635 | D14: 94.09635 | E14: 94.09108688 | F14: 94.09108688
A15: Tma | B15: Tarifa de marcación (1) | C15: 11.49548804 | D15: 11.49548804 | E15: 11.49548804 | F15: 11.49548804
B16: Margen plan de continuidad | C16: 71.51 | D16: 71.51 | E16: 71.51 | F16: 71.51
A17: PMI | B17: Precio Máx. de Venta al Distribuidor Mayorista | C17: 4225.072584 | D17: 3882.165857 | E17: 4715.067321 | F17: 4936.367321
A18: MD | B18: Margen del distribuidor mayorista | C18: (8) | D18: (8) | E18: (2) | F18: (2)
A19: Ti | B19: Transporte plantas no interconectadas | C19: (3) | D19: (3) | E19: (3) | F19: (3)
A20: PS | B20: Sobretasa*** | C20: (4) | D20: (4) | E20: (4) | F20: (4)
A21: PMIL | B21: Precio Máximo en Planta de Abasto Mayorista | C21: 4225.072584 | D21: 3882.165857 | E21: 4715.067321 | F21: 4936.367321
A22: MDM | B22: Margen del distribuidor minorista | C22: (5) | D22: (5) | E22: (5) | F22: (5)
A23: E | B23: Pérdida por evaporación | C23: (6) | D23: N.A | E23: (6) | F23: N.A
A24: FI | B24: Transporte planta abasto mayorista a estación | C24: (7) | D24: (7) | E24: (7) | F24: (7)
A25: PMV | B25: Precio de Venta al público por galón | C25: 5845.962857 | D25: 5207.88613
A27: (1) | B27: Según punto de entrega
A28: (2) | B28: Será el señalado en la Resolución 182336 del 28 de 2011 y 91657 de 2012 o en la norma que la modifique o sustituya
A29: (3) | B29: Valor por ruta según corresponda
A30: (4) | B30: Valor de referencia de sobretasa establecida en las normas legales vigentes.
A31: (5) | B31: Será el señalado en la Resolución 4 0222 de febrero de 2015 o en la norma que la modifique o sustituya
A32: (6) | B32: 0,4% del precio máximo de venta en planta de abastecimiento mayorista.
A33: (7) | B33: Flete desde planta de abastecimiento mayorista hasta las estaciones de servicio de los diferentes municipios.
A34: (8) | B34: Será el señalado en la Resolución 4 0435 del 29 de abril de 2016 o en la norma que la modifique o sustituya
A35: (9) | B35: Es el valor que se obtiene conforme se establece en el Artículo 467 del Estatuto Tributario, modificado por el Artículo 183 de la Ley 1819 del 29 de diciembre
B36: de 2016, a las normas que lo modifiquen o sustituyan, considerando la tarifa general del impuesto sobre las ventas que corresponde al 19%. El valor final se
B37: obtiene aplicando dicha tarifa sobre el IP fósil considerando el nivel de mezcla con biocombustible respectivo, si hay lugar.
B38: Vigencia: 1° de marzo de 2017; 00:00horas
A40: DEPARTAMENTO DE NORTE DE SANTANDER PRODUCTO IMPORTADO
A41: PLANTAS DE ABASTO: VILLA DEL ROSARIO Y AGUALINDA
A42: ITEM | B42: DESCRIPCION | D42: ABREGO
C43: GASOLINA | D43: DIESEL
A44: 1 | B44: Ingreso importador (IP) | C44: 3875.45 | D44: 3784.61
B45: Impuesto al carbono | C45: 135 | D45: 152
A46: 2 | B46: Costo Cesión actividades distribución (Cc) | C46: 58.03 | D46: 58.03
A47: 3 | B47: Recuperación de costos (Ce) | C47: 16.47 | D47: 16.47
A48: 5 | B48: Tarifa de marcación (Tma) | C48: 3.5 | D48: 3.5
A49: 6 | B49: Margen plan de continuidad | C49: 71.51 | D49: 71.51
A50: 4 | B50: Precio Máximo Venta al distribuidor mayorista (PMI) | C50: 4024.96 | D50: 3934.12
A51: 8 | B51: Margen del centro acopio y/o distribuidor mayorista (MD) | C51: 240 | D51: 240
A52: 9 | B52: Sobretasa (PS) | C52: 475 | D52: 114
A53: 10 | B53: Precio Máximo Venta en la Planta Abasto /Centro acopio (PMA) | C53: 4739.96 | D53: 4288.12
A54: 11 | B54: Margen Distribuidor Minorista (MD) | C54: 400 | D54: 400
A55: 12 | B55: Perdida por evaporación ( E ) | C55: 19.02 | D55: NA
A56: 13 | B56: Flete máximo Planta abasto/centro acopio a EDS municipios (Fi) | C56: 47.82 | D56: 47.82
B57: Precio de Venta al público por galón | C57: 5206.8 | D57: 4735.94
B61: Ver Nota Informativa
B63: Esta estructura aplica en caso de contingencia previa autorización del Ministerio de Minas y Energía
A65: ESTRUCTURA DE PRECIOS DE COMBUSTIBLES LÍQUIDOS PARA ZONAS DE FRONTERA
B66: DEPARTAMENTO DE NORTE DE SANTANDER PRODUCTO NACIONAL
B67: PLANTA DE ABASTO: AYACUCHO | C67: Con cupo ZDF | E67: Por encima del cupo UPME*
A68: ID | B68: Ítem | C68: Gasolina Corriente | D68: B10 | E68: Gasolina Corriente | F68: B10
D69: 0.1 | F69: 0.1
C70: $/Galón | D70: $/Galón | E70: $/Galón | F70: $/Galón
A71: IP | B71: Ingreso al Productor | C71: 3563.166464 | D71: 3879.19841 | E71: 3893.32 | F71: 4657.07
A72: PN | B72: Impuesto Nacional a la gasolina y al ACPM | C72: ------------------ | D72: ------------------ | E72: 490 | F72: 422.1
B73: Impuesto sobre las Ventas | C73: ------------------ | D73: ------------------ | E73: (******) | F73: (******)
B74: Impuesto al carbono | C74: 135 | D74: 148.96 | E74: 135 | F74: 148.96
A75: Tt | B75: Tarifa de transporte (poliductos y biocombustibles) | C75: (2) | D75: (2) | E75: (2) | F75: (2)
A76: Cc | B76: Recuperación costos | C76: 19.65074643 | D76: 19.65074643 | E76: 19.65074643 | F76: 19.65074643
A77: Ce | B77: Costo de cesión | C77: 75.86 | D77: 75.86 | E77: 75.86 | F77: 75.86
A78: Tma | B78: Tarifa de marcación | C78: 7.447818 | D78: 7.447818 | E78: 6.15 | F78: 5.25
B79: Margen plan de continuidad | C79: 86.42 | D79: 86.42 | E79: 86.42 | F79: 86.42
A80: PMI | B80: Precio Máx. de Venta al Distribuidor Mayorista | C80: 3887.545028 | D80: 4217.536975 | E80: 4706.400746 | F80: 5415.310746
A81: MD | B81: Margen del distribuidor mayorista | C81: (8) | D81: (8) | E81: ****** | F81: ******
A82: Ti | B82: Transporte plantas no interconectadas | C82: ** | D82: ** | E82: ** | F82: **
A83: PS | B83: Sobretasa*** | C83: 475 | D83: 204 | E83: 1168.12 | F83: 301.48
A84: PMIL | B84: Precio Máximo en Planta de Abasto Mayorista | C84: 4354.545028 | D84: 4413.536975 | E84: 5874.520746 | F84: 5716.790746
A85: MDM | B85: Margen del distribuidor minorista | C85: (5) | D85: (5) | E85: ****** | F85: ******
A86: E | B86: Pérdida por evaporación | C86: **** | D86: N.A | E86: **** | F86: N.A
A87: FI | B87: Transporte planta abasto mayorista a estación | C87: ***** | D87: ***** | E87: ***** | F87: *****
A88: PMV | B88: Precio de Venta al público por galón
B91: La planta de Ayacucho se abastece de la Lizama
A92: (2) | B92: Según punto de entrega
A93: * | B93: Para ventas sobre el cupo a estaciones de servicio, previa autorización del Ministerio de Minas y Energía, aplica la estructura nacional
A94: ** | B94: Valor del transporte desde la planta la Lizama hasta la planta Ayacucho
A95: *** | B95: Valor de referencia de sobretasa según Resolución Minminas.
A96: **** | B96: Corresponde a la pérdida por evaporación de que trata la Ley 26 de 1989, definida como el 0.4% del Precio Máximo de Venta en Planta de Abastecimiento Mayorista.
A97: ***** | B97: Valor del transporte desde las plantas de abasto a las estaciones de servicio
A98: ****** | B98: Será el señalado en la Resolución 182336 del 28 de 2011 y 91657 de 2012, o en la norma que la modifique o sustituya
B99: Ver Nota Informativa
A101: NOTA INFORMATIVA: Esta publicación tiene fines netamente ilustrativos. La misma pretende reflejar los precios aplicables de los distribuidores mayoristas y minoristas, acorde con las disposiciones establecidas por el Ministerio de Minas y Energía y las autoridades locales y municipales. En el caso de presentarse cualquier discrepancia prevalece lo establecido por las autoridades mencionadas, lo cual debe ser verificado permanentemente por todos los agentes de la cadena de distribución de los combustibles líquidos. Esta publicación puede cambiar sin previo aviso.

Sheet AMAZONAS
B1: Vigencia: 1° de marzo de 2017; 00:00horas
A2: ESTRUCTURA DE PRECIOS DE COMBUSTIBLES LÍQUIDOS PARA ZONAS DE FRONTERA
B3: DEPARTAMENTO DE AMAZONAS | C3: Con cupo ZDF | H3: Por encima del cupo*
B4: Planta de Abasto: Leticia
A5: ID | B5: Ítem | C5: Gasolina Corriente | D5: Gasolina Corriente | E5: Gasolina Corriente | F5: B10 | G5: Gasolina Corriente | H5: Gasolina Corriente | I5: Gasolina Corriente | J5: B10
D6: 0.08 | E6: 0.06 | F6: 0.1 | H6: 0.08 | I6: 0.06 | J6: 0.1
C7: $/Galón | D7: $/Galón | E7: $/Galón | F7: $/Galón | G7: $/Galón | H7: $/Galón | I7: $/Galón | J7: $/Galón
A8: IP | B8: Ingreso al Productor | C8: 3349.033864 | D8: 3738.013555 | E8: 3640.768632 | F8: 3969.903751 | G8: 3893.32 | H8: 4238.75 | I8: 4325.12 | J8: 4657.07
A9: PN | B9: Impuesto Nacional a la gasolina y al ACPM | C9: ------------------ | D9: ------------------ | E9: ------------------ | F9: ------------------ | G9: 490 | H9: 450.8 | I9: 441 | J9: 422.1
B10: Impuesto sobre las Ventas | C10: ------------------ | D10: ------------------ | E10: ------------------ | F10: ------------------ | G10: (4) | H10: (4) | I10: (4) | J10: (4)
B11: Impuesto al carbono | C11: ------------------ | D11: ------------------ | E11: ------------------ | F11: ------------------ | G11: ------------------ | H11: ------------------ | I11: ------------------ | J11: ------------------
A12: Tt | B12: Tarifa de transporte (poliductos y biocombustibles) | C12: (3) | D12: (3) | E12: (3) | F12: (3) | G12: (3) | H12: (3) | I12: (3) | J12: (3)
A13: Cc | B13: Recuperación costos | C13: 19.65074643 | D13: 19.65074643 | E13: 19.65074643 | F13: 19.65074643 | G13: 19.65074643 | H13: 19.65074643 | I13: 19.65074643 | J13: 19.65074643
A14: Tma | B14: Tarifa de marcación (1) | C14: 11.49548804 | D14: 11.49548804 | E14: 11.49548804 | F14: 11.49548804 | G14: 11.49548804 | H14: 11.49548804 | I14: 11.49548804 | J14: 11.49548804
B15: Margen plan de continuidad | C15: 71.51 | D15: 71.51 | E15: 71.51 | F15: 71.51 | G15: 71.51 | H15: 71.51 | I15: 71.51 | J15: 71.51
A16: PMI | B16: Precio Máx. de Venta al Distribuidor Mayorista | C16: 3451.690098 | D16: 3840.669789 | E16: 3743.424867 | F16: 4072.559985 | G16: 4485.976234 | H16: 4792.206234 | I16: 4868.776234 | J16: 5181.826234
A17: MPN | B17: Costo de la utilización de la planta de abastecimiento de Neiva | C17: ** | D17: ** | E17: ** | F17: ** | G17: ** | H17: ** | I17: ** | J17: **
A18: MD | B18: Margen del distribuidor mayorista planta Leticia | C18: *** | D18: *** | E18: *** | F18: *** | G18: *** | H18: *** | I18: *** | J18: ***
A19: TPL | B19: Tarifa de transporte vía fluvial entre Puerto Asis y Leticia | C19: **** | D19: **** | E19: **** | F19: **** | G19: **** | H19: **** | I19: **** | J19: ****
A20: PS | B20: Sobretasa***** | C20: ***** | D20: ***** | E20: ***** | F20: ***** | G20: ***** | H20: ***** | I20: ***** | J20: *****
A21: PMIL | B21: Precio Máximo en Planta en la cuidad de Leticia | C21: 3451.690098 | D21: 3840.669789 | E21: 3743.424867 | F21: 4072.559985 | G21: 4485.976234 | H21: 4792.206234 | I21: 4868.776234 | J21: 5181.826234
A22: MDM | B22: Margen del distribuidor minorista | C22: *** | D22: *** | E22: *** | F22: *** | G22: *** | H22: *** | I22: *** | J22: ***
A23: E | B23: Pérdida por evaporación | C23: ****** | D23: ****** | E23: ****** | F23: N.A | G23: ****** | H23: ****** | I23: ****** | J23: N.A
A24: FI | B24: Transporte planta abasto mayorista a estación | C24: ******* | D24: ******* | E24: ******* | F24: ******* | G24: ******* | H24: ******* | I24: ******* | J24: *******
A25: PMV | B25: Precio de Venta al público por galón
B27: Ver Nota Informativa
A28: (2) | B28: Abastecimiento desde Neiva
A29: * | B29: Para ventas sobre el cupo a estaciones de servicio, previa autorización del Ministerio de Minas y Energía, aplica la estructura nacional
A30: ** | B30: El rubro será fijado de común acuerdo entre el Cesionario y el distribuidor mayorista al cual cedan las actividades de distribución, para lo cual presentarán al Ministerio de Minas y Energía - Dirección de Hidrocarburos la información respectiva
A31: *** | B31: Será el señalado en la Resolución 182336 del 28 de 2011 y 91657 de 2012, o en la norma que la modifique o sustituya
A32: **** | B32: Este rubro corresponde al valor de la tarifa de transporte vía fluvial entre la Ciudad de Puerto Asís y Leticia en el caso en que se utilice esta ruta para el abastecimiento del departamento. El cesionario y el distribuidor mayorista al cual cedan las actividades de distribución, deberán fijar la misma, para lo cual presentarán para aprobación del Ministerio de Minas y Energía - Dirección de Hidrocarburos el estudio de costos respectivo
A33: ***** | B33: Valor de referencia de sobretasa según Resolución vigente de Minminas.
A34: ****** | B34: Corresponde a la pérdida por evaporación de que trata la Ley 26 de 1989, definida como el 0.4% del Precio Máximo de Venta en Planta de Abastecimiento Mayorista.
A35: ******* | B35: Será el valor correspondiente al Flete desde la Planta de Abastecimiento de Leticia hasta las estaciones de servicio de los diferentes municipios. Este valor será definido por el Comité Local de Precios del respectivo municipio
A37: (1) | B37: En los departamentos y en las circunstancias donde se aplique doble marcación se deberá cobrar una tarifa adicional de $3.5 por galón.
A38: (3) | B38: Según punto de entrega
A39: (4) | B39: Es el valor que se obtiene conforme se establece en el Artículo 467 del Estatuto Tributario, modificado por el Artículo 183 de la Ley 1819 del 29 de diciembre
B40: de 2016, a las normas que lo modifiquen o sustituyan, considerando la tarifa general del impuesto sobre las ventas que corresponde al 19%. El valor final se
B41: obtiene aplicando dicha tarifa sobre el IP fósil considerando el nivel de mezcla con biocombustible respectivo, si hay lugar.
A43: NOTA INFORMATIVA: Esta publicación tiene fines netamente ilustrativos. La misma pretende reflejar los precios aplicables de los distribuidores mayoristas y minoristas, acorde con las disposiciones establecidas por el Ministerio de Minas y Energía y las autoridades locales y municipales. En el caso de presentarse cualquier discrepancia prevalece lo establecido por las autoridades mencionadas, lo cual debe ser verificado permanentemente por todos los agentes de la cadena de distribución de los combustibles líquidos. Esta publicación puede cambiar sin previo aviso.

Sheet NARIÑO
B1: Vigencia: 1° de marzo de 2017; 00:00horas
A2: ESTRUCTURA DE PRECIOS DE COMBUSTIBLES LÍQUIDOS PARA ZONAS DE FRONTERA
B3: DEPARTAMENTO DE NARIÑO | C3: Con cupo ZDF | I3: Por encima del Cupo *
B4: PLANTA DE ABASTO: YUMBO Y MULALÓ
A5: ID | B5: Ítem | C5: Gasolina Corriente | D5: Gasolina Corriente | E5: B10 | F5: Gasolina Extra | G5: Gasolina Extra | H5: Gasolina Extra | I5: Gasolina Corriente | J5: Gasolina Corriente | K5: B10 | L5: Gasolina Extra | M5: Gasolina Extra
C6: 0.08 | D6: 0.06 | E6: 0.1 | F6: 0.08 | G6: 1.06 | I6: 0.08 | J6: 0.06 | K6: 0.1 | L6: 0.08 | M6: 0.06
C7: $/Galón | D7: $/Galón | E7: $/Galón | F7: $/Galón | G7: $/Galón | H7: $/Galón | I7: $/Galón | J7: $/Galón | K7: $/Galón | L7: $/Galón | M7: $/Galón
A8: IP | B8: Ingreso al Productor | C8: 3935.015547 | D8: 3842.053276 | E8: 4090.849538 | F8: 5358.1 | G8: 5296.08 | H8: 5110 | I8: 4238.75 | J8: 4152.4 | K8: 4657.07 | L8: 5358.1 | M8: 5358.1
A9: PN | B9: Impuesto Nacional a la gasolina y al ACPM | C9: ------------------ | D9: ------------------ | E9: ------------------ | F9: ------------------ | G9: ------------------ | H9: ------------------ | I9: 450.8 | J9: 460.6 | K9: 422.1 | L9: 855.6 | M9: 874.2
B10: Impuesto sobre las Ventas | C10: ------------------ | D10: ------------------ | E10: ------------------ | F10: ------------------ | G10: ------------------ | I10: ******* | J10: ******* | K10: ******* | L10: ******* | M10: *******
B11: Impuesto al carbono | C11: 124.2 | D11: 126.9 | E11: 136.8 | F11: 124.2 | G11: 126.9 | I11: 124.2 | J11: 126.9 | K11: 136.8 | L11: 124.2 | M11: 126.9
A12: Tt | B12: Tarifa de transporte (poliductos y biocombustibles) | C12: ** | D12: ** | E12: ** | F12: ** | G12: ** | H12: ** | I12: ** | J12: ** | K12: ** | L12: ** | M12: **
A13: Cc | B13: Recuperación costos | C13: 13.37491606 | D13: 13.37491606 | E13: 13.37491606 | F13: 13.37491606 | G13: 13.37491606 | H13: 13.37491606 | I13: 19.65074643 | J13: 19.65074643 | K13: 19.65074643 | L13: 19.65074643 | M13: 19.65074643
A14: Ce | B14: Costo de cesión | C14: 94.09108688 | D14: 94.09108688 | E14: 94.09108688 | F14: ------------------ | G14: ------------------ | H14: ------------------ | I14: 94.09108688 | J14: 94.09108688 | K14: 94.09108688 | L14: ------------------ | M14: ------------------
A15: Tma | B15: Tarifa de marcación | C15: 7.46239814 | D15: 7.46239814 | E15: 7.46239814 | F15: 7.447818 | G15: 7.447818 | H15: 7.447818 | I15: 7.46239814 | J15: 7.46239814 | K15: 7.46239814 | L15: 7.447818 | M15: 7.447818
B16: Margen plan de continuidad | C16: 71.51 | D16: 71.51 | E16: 71.51 | F16: 71.51 | G16: 71.51 | H16: 71.51 | I16: 71.51 | J16: 71.51 | K16: 71.51 | L16: 71.51 | M16: 71.51
A17: PMI | B17: Precio Máx. de Venta al Distribuidor Mayorista | C17: 4245.653948 | D17: 4155.391677 | E17: 4414.087939 | F17: 5574.632734 | G17: 5515.312734 | H17: 5202.332734 | I17: 5006.464231 | J17: 4932.614231 | K17: 5408.684231 | L17: 6436.508564 | M17: 6457.808564
A18: MD | B18: Margen del distribuidor mayorista | C18: * | D18: * | E18: * | F18: *** | G18: *** | H18: *** | I18: * | J18: * | K18: * | L18: *** | M18: ***
A19: PS | B19: Sobretasa**** | C19: **** | D19: **** | E19: **** | F19: **** | G19: **** | H19: **** | I19: **** | J19: **** | K19: **** | L19: **** | M19: ****
A20: PMIL | B20: Precio Máximo en Planta de Abasto Mayorista | C20: 4245.653948 | D20: 4155.391677 | E20: 4414.087939 | F20: 5574.632734 | G20: 5515.312734 | H20: 5202.332734 | I20: 5006.464231 | J20: 4932.614231 | K20: 5408.684231 | L20: 6436.508564 | M20: 6457.808564
A21: MDM | B21: Margen del distribuidor minorista | C21: * | D21: * | E21: * | F21: *** | G21: *** | H21: *** | I21: * | J21: * | K21: * | L21: *** | M21: ***
A22: E | B22: Pérdida por evaporación | C22: ***** | D22: ***** | E22: N.A | F22: ***** | G22: ***** | H22: ***** | I22: ***** | J22: ***** | K22: N.A | L22: ***** | M22: *****
A23: FI | B23: Transporte desde la ciudad de San Juan de Pasto a las EDS | C23: ****** | D23: ****** | E23: ****** | F23: ****** | G23: ****** | H23: ****** | I23: ****** | J23: ****** | K23: ****** | L23: ****** | M23: ******
A24: PMV | B24: Precio de Venta al público por galón
B26: Ver Nota Informativa
A27: 1 | B27: Para ventas sobre el cupo a estaciones de servicio, previa autorización del Ministerio de Minas y Energía, aplica la estructura nacional
A28: * | B28: Será el señalado en la Resolución 182336 del 28 de 2011 y 91657 de 2012, o en la norma que la modifique o sustituya
A29: ** | B29: Según punto de entrega
A30: *** | B30: Para la gasolina extra definido libremente por el distribuidor mayorista/minorista
A31: **** | B31: Valor de referencia de sobretasa según Resolución Minminas.
A32: ***** | B32: Corresponde a la pérdida por evaporación de que trata la Ley 26 de 1989, definida como el 0.4% del Precio Máximo de Venta en Planta de Abastecimiento Mayorista.
A33: ****** | B33: Tarifa de transporte entre el municipio de San Juan de Pasto y cada uno de los municipios del departamento, de acuerdo con la regulación del Ministerio de Minas y Energía sobre el particular
A34: ******* | B34: Es el valor que se obtiene conforme se establece en el Artículo 467 del Estatuto Tributario, modificado por el Artículo 183 de la Ley 1819 del 29 de diciembre
B35: de 2016, a las normas que lo modifiquen o sustituyan, considerando la tarifa general del impuesto sobre las ventas que corresponde al 19%. El valor final se
B36: obtiene aplicando dicha tarifa sobre el IP fósil considerando el nivel de mezcla con biocombustible respectivo, si hay lugar.
B37: DEPARTAMENTO DE NARIÑO PRODUCTO IMPORTADO | C37: Con cupo ZDF
B38: PLANTA DE ABASTO: MULALÓ, HASTA AGOTAR EXISTENCIAS DEL PRODUCTO
A39: ID | B39: Ítem | C39: Gasolina Importada | D39: ACPM Importado
C41: $/Galón | D41: $/Galón
A42: IP | B42: Ingreso al Productor | C42: 4051.44 | D42: 4282.19
A43: PN | B43: Impuesto Nacional a la gasolina y al ACPM | C43: ------------------ | D43: ------------------
B44: Impuesto sobre las Ventas | C44: ------------------ | D44: ------------------
B45: Impuesto al carbono | C45: 135 | D45: 152
A46: Tt | B46: Tarifa de transporte (poliductos y biocombustibles) | C46: ** | D46: **
A47: Cc | B47: Recuperación costos | C47: 13.37491606 | D47: 13.37491606
A48: Ce | B48: Costo de cesión | C48: 94.09108688 | D48: 94.09108688
A49: Tma | B49: Tarifa de marcación | C49: 7.46239814 | D49: 7.46239814
B50: Margen plan de continuidad
A51: PMI | B51: Precio Máx. de Venta al Distribuidor Mayorista | C51: 4166.368401 | D51: 4397.118401
A52: MD | B52: Margen del distribuidor mayorista | C52: * | D52: *
A53: PS | B53: Sobretasa**** | C53: **** | D53: ****
A54: PMIL | B54: Precio Máximo en Planta de Abasto Mayorista
A55: MDM | B55: Margen del distribuidor minorista | C55: * | D55: *
A56: E | B56: Pérdida por evaporación | C56: ***** | D56: N.A
A57: FI | B57: Transporte desde la ciudad de San Juan de Pasto a las EDS | C57: ****** | D57: ******
A58: PMV | B58: Precio de Venta al público por galón
A61: NOTA INFORMATIVA: Esta publicación tiene fines netamente ilustrativos. La misma pretende reflejar los precios aplicables de los distribuidores mayoristas y minoristas, acorde con las disposiciones establecidas por el Ministerio de Minas y Energía y las autoridades locales y municipales. En el caso de presentarse cualquier discrepancia prevalece lo establecido por las autoridades mencionadas, lo cual debe ser verificado permanentemente por todos los agentes de la cadena de distribución de los combustibles líquidos. Esta publicación puede cambiar sin previo aviso.

Sheet PUTUMAYO
B1: Vigencia: 1° de marzo de 2017; 00:00horas
A2: ESTRUCTURA DE PRECIOS DE COMBUSTIBLES LÍQUIDOS PARA ZONAS DE FRONTERA
B4: Esta estructura aplica para la contingencia desde la planta Mulaló autorizada por Ministerio de Minas y Energía.
B6: DEPARTAMENTO DE PUTUMAYO | D6: Con cupo ZDF | I6: Por encima del cupo 1
B7: ORIGEN: BARRANCA; PUNTO DE ENTREGA: NEIVA
A8: ID | B8: Ítem | C8: Gasolina Corriente | D8: Gasolina Corriente | E8: Gasolina Corriente | F8: B10 | G8: Gasolina Extra | H8: Gasolina Extra | I8: Gasolina Corriente | J8: Gasolina Corriente | K8: Gasolina Corriente | L8: B10 | M8: Gasolina Extra | N8: Gasolina Extra
D9: 0.08 | E9: 0.06 | F9: 0.1 | G9: 0.08 | H9: 0.06 | J9: 0.08 | K9: 0.06 | L9: 0.1 | M9: 0.08 | N9: 0.06
C10: $/Galón | D10: $/Galón | E10: $/Galón | F10: $/Galón | G10: $/Galón | H10: $/Galón | I10: $/Galón | J10: $/Galón | K10: $/Galón | L10: $/Galón | M10: $/Galón | N10: $/Galón
A11: IP | B11: Ingreso al Productor | C11: 3563.166464 | D11: 3935.015547 | E11: 3842.053276 | F11: 4090.849538 | G11: 5358.1024 | H11: 5296.0768 | I11: 3893.32 | J11: 4238.75 | K11: 4325.12 | L11: 4657.07 | M11: 5358.1 | N11: 5296.08
A12: PN | B12: Impuesto Nacional a la gasolina y al ACPM | C12: ------------------ | D12: ------------------ | E12: ------------------ | F12: ------------------ | G12: ------------------ | H12: ------------------ | I12: 490 | J12: 450.8 | K12: 441 | L12: 422.1 | M12: 855.6 | N12: 874.2
B13: Impuesto sobre las Ventas | C13: ------------------ | D13: ------------------ | E13: ------------------ | F13: ------------------ | G13: ------------------ | H13: ------------------ | I13: (******) | J13: (******) | K13: (******) | L13: (******) | M13: (******) | N13: (******)
B14: Impuesto al carbono | C14: 135 | D14: 124.2 | E14: 126.9 | F14: 136.8 | G14: 124.2 | H14: 126.9 | I14: 135 | J14: 124.2 | K14: 126.9 | L14: 136.8 | M14: 124.2 | N14: 126.9
A15: Tt | B15: Tarifa de transporte (poliductos y biocombustibles) | C15: (2) | D15: (2) | E15: (2) | F15: (2) | G15: (2) | H15: (2) | I15: (2) | J15: (2) | K15: (2) | L15: (2) | M15: (2) | N15: (2)
A16: Cc | B16: Recuperación costos | C16: 19.65074643 | D16: 19.65074643 | E16: 19.65074643 | F16: 19.65074643 | G16: 19.65074643 | H16: 19.65074643 | I16: 19.65074643 | J16: 19.65074643 | K16: 19.65074643 | L16: 19.65074643 | M16: 19.65074643 | N16: 19.65074643
A17: Tma | B17: Tarifa de marcación | C17: 7.46239814 | D17: 7.46239814 | E17: 7.46239814 | F17: 7.46239814 | G17: 7.447818 | H17: 7.447818 | I17: 7.46239814 | J17: 7.46239814 | K17: 7.46239814 | L17: 7.46239814 | M17: 7.447818 | N17: 7.447818
B18: Margen plan de continuidad | C18: 71.51 | D18: 71.51 | E18: 71.51 | F18: 71.51 | G18: 71.51 | H18: 71.51 | I18: 71.51 | J18: 71.51 | K18: 71.51 | L18: 71.51 | M18: 71.51 | N18: 71.51
A19: PMI | B19: Precio Máx. de Venta al Distribuidor Mayorista | C19: 3796.789609 | D19: 4157.838691 | E19: 4067.576421 | F19: 4326.272682 | G19: 5580.910964 | H19: 5521.585364 | I19: 4616.943145 | J19: 4912.373145 | K19: 4991.643145 | L19: 5314.593145 | M19: 6436.508564 | N19: 6395.788564
A20: MD | B20: Margen del distribuidor mayorista | C20: * | D20: * | E20: * | F20: * | G20: ** | H20: ** | I20: * | J20: * | K20: * | L20: * | M20: ** | N20: **
A21: Ti | B21: Transporte plantas no interconectadas | C21: *** | D21: *** | E21: *** | F21: *** | G21: *** | H21: *** | I21: *** | J21: *** | K21: *** | L21: *** | M21: *** | N21: ***
A22: PS | B22: Sobretasa**** | C22: **** | D22: **** | E22: **** | F22: **** | G22: **** | H22: **** | I22: **** | J22: **** | K22: **** | L22: **** | M22: **** | N22: ****
A23: PMIL | B23: Precio Máximo en Planta de Abasto Mayorista | C23: 3796.789609 | D23: 4157.838691 | E23: 4067.576421 | F23: 4326.272682 | G23: 5580.910964 | H23: 5521.585364 | I23: 4616.943145 | J23: 4912.373145 | K23: 4991.643145 | L23: 5314.593145 | M23: 6436.508564 | N23: 6395.788564
A24: MDM | B24: Margen del distribuidor minorista** | C24: * | D24: * | E24: * | F24: * | G24: ** | H24: ** | I24: * | J24: * | K24: * | L24: * | M24: ** | N24: **
A25: E | B25: Pérdida por evaporación | C25: ***** | D25: ***** | E25: ***** | F25: N.A | G25: ***** | H25: ***** | I25: ***** | J25: ***** | K25: ***** | L25: N.A | M25: ***** | N25: *****
A26: FI | B26: Transporte planta abasto mayorista a estación | C26: ******* | D26: ******* | E26: ******* | F26: ******* | G26: ******* | H26: ******* | I26: ******* | J26: ******* | K26: ******* | L26: ******* | M26: ******* | N26: *******
A27: PMV | B27: Precio de Venta al público por galón
B29: Abastecimiento desde Neiva
A30: 1 | B30: Para ventas sobre el cupo a estaciones de servicio, previa autorización del Ministerio de Minas y Energía, aplica la estructura nacional
A31: (2) | B31: Según punto de entrega
A32: * | B32: Será el señalado en la Resolución 182336 del 28 de 2011 y 91657 de 2012, o en la norma que la modifique o sustituya
A33: ** | B33: Para la gasolina extra definido libremente por el distribuidor mayorista/minorista
A34: *** | B34: Valor del transporte de la planta de Neiva a la Planta de Puerto Asis
A35: **** | B35: Valor de referencia de sobretasa según Resolución Minminas.
A36: ***** | B36: Corresponde a la pérdida por evaporación de que trata la Ley 26 de 1989, definida como el 0.4% del Precio Máximo de Venta en Planta de Abastecimiento Mayorista.
A37: ****** | B37: Es el valor que se obtiene conforme se establece en el Artículo 467 del Estatuto Tributario, modificado por el Artículo 183 de la Ley 1819 del 29 de diciembre
B38: de 2016, a las normas que lo modifiquen o sustituyan, considerando la tarifa general del impuesto sobre las ventas que corresponde al 19%. El valor final se
B39: obtiene aplicando dicha tarifa sobre el IP fósil considerando el nivel de mezcla con biocombustible respectivo, si hay lugar.
A40: ******* | B40: Valor del transporte de la planta de Puerto Asis a las estaciones de servicio
B41: Ver Nota Informativa
A44: NOTA INFORMATIVA: Esta publicación tiene fines netamente ilustrativos. La misma pretende reflejar los precios aplicables de los distribuidores mayoristas y minoristas, acorde con las disposiciones establecidas por el Ministerio de Minas y Energía y las autoridades locales y municipales. En el caso de presentarse cualquier discrepancia prevalece lo establecido por las autoridades mencionadas, lo cual debe ser verificado permanentemente por todos los agentes de la cadena de distribución de los combustibles líquidos. Esta publicación puede cambiar sin previo aviso.

Sheet ARAUCA
B1: Vigencia: 1° de marzo de 2017; 00:00horas
A2: ESTRUCTURA DE PRECIOS DE COMBUSTIBLES LÍQUIDOS PARA ZONAS DE FRONTERA
B3: DEPARTAMENTO DE ARAUCA | C3: Con cupo ZDF | E3: Por encima del cupo *
B4: PLANTA DE ABASTO: ARAUCA
A5: ID | B5: Ítem | C5: Gasolina Corriente | D5: ACPM (B2) | E5: Gasolina Corriente | F5: ACPM (B2)
C6: $/Galón | D6: $/Galón | E6: $/Galón | F6: $/Galón
A7: IP | B7: Ingreso al Productor | C7: 3467.390792 | D7: 3284.024936 | E7: 3893.32 | F7: 4131.04
A8: PN | B8: Impuesto Nacional a la gasolina y al ACPM | C8: ------------------ | D8: ------------------ | E8: 490 | F8: 459.62
B9: Impuesto sobre las Ventas | C9: ------------------ | D9: ------------------ | E9: (******) | F9: (******)
B10: Impuesto al carbono | C10: 135 | D10: 148.96 | E10: 135 | F10: 148.96
A11: Tt | B11: Tarifa de transporte por poliductos | C11: (2) | D11: (2) | E11: (2) | F11: (2)
A12: Fb | B12: Tarifa de Ttransporte terrestre | C12: N.A. | D12: ******* | E12: ******* | F12: *******
A13: Cc | B13: Recuperación costos | C13: 9.091602175 | D13: 9.091602175 | E13: 19.65074643 | F13: 19.65074643
A14: Ce | B14: Costo de cesión | C14: 94.09108688 | D14: 94.09108688 | E14: 94.09108688 | F14: 94.09108688
A15: Tma | B15: Tarifa de marcación (1) | C15: 11.49548804 | D15: 11.49548804 | E15: 11.49548804 | F15: 11.49548804
B16: Margen plan de continuidad | C16: 71.51 | D16: 71.51 | E16: 71.51 | F16: 71.51
A17: PMI | B17: Precio Máx. de Venta al Distribuidor Mayorista | C17: 3788.578969 | D17: 3619.173113 | E17: 4715.067321 | F17: 4936.367321
A18: MD | B18: Margen del distribuidor mayorista | C18: *** | D18: *** | E18: (3) | F18: (3)
A19: Ti | B19: Transporte plantas no interconectadas | C19: ** | D19: ** | E19: ** | F19: **
A20: PS | B20: Sobretasa | C20: (3) | D20: (3) | E20: (3) | F20: (3)
A21: PMIL | B21: Precio Máximo en Planta de Abasto Mayorista | C21: 3788.578969 | D21: 3619.173113 | E21: 4715.067321 | F21: 4936.367321
A22: MDM | B22: Margen del distribuidor minorista | C22: *** | D22: *** | E22: (3) | F22: (3)
A23: E | B23: Pérdida por evaporación | C23: **** | D23: N.A | E23: **** | F23: N.A
A24: FI | B24: Transporte planta abasto mayorista a estación | C24: ***** | D24: ***** | E24: ***** | F24: *****
A25: PMV | B25: Precio de Venta al público por galón
B27: Ver Nota Informativa
A28: (2) | B28: Abastecimiento desde la planta Chimitá (Bucaramanga)
A29: * | B29: Para ventas sobre el cupo a estaciones de servicio, previa autorización del Ministerio de Minas y Energía, aplica la estructura nacional
A30: ** | B30: Valor del transporte desde la planta de Chimitá (Santander) hasta la Planta de Arauca (Arauca)
